NUMERO_MANDATO;RIGA_MANDATO;QUIET;IMPORTO_RIGA;IMPORTO_MANDATO;BENEFICIARIO;CIG;TITOLO_PAGAMENTO;DATA_MANDATO;CAPITOLO;ARTICOLO;NUMERO_IMPEGNO;TITOLO;DESCR_TITOLO;LIVELLO_II;DESCR_LIVELLO_II;LIVELLO_III;DESCR_LIVELLO_III;LIVELLO_IV;DESCR_LIVELLO_IV;LIVELLO_V;DESCR_LIVELLO_V;DATA_PAG_EFF;
2;1;0;"175,68";"175,68";ECONOMO COMUNALE - DALLE NOGARE LUCIA; ;APPROVAZIONE RENDICONTO SPESE ECONOMALI IV TRIMESTRE 2017.;05-01-2018;319;0;29;1;Spese correnti;3;Acquisto di beni e servizi;2;Acquisto di servizi;99;Altri servizi;999;Altri servizi diversi n.a.c.;05-01-2018;
3;1;0;"153,97";"153,97";ECONOMO COMUNALE - DALLE NOGARE LUCIA; ;APPROVAZIONE RENDICONTO SPESE ECONOMALI IV TRIMESTRE 2017.;05-01-2018;323;0;30;1;Spese correnti;3;Acquisto di beni e servizi;1;Acquisto di beni;2;Altri beni di consumo;1;"Carta, cancelleria e stampati";05-01-2018;
4;1;0;"587,65";"587,65";MINISTERO DELL'INTERNO; ;n. 35 CIE EMESSE 1-15 DICEMBRE- LIQUIDAZIONE COMPETENZE DI SPETTANZA DEL MINISTERO;05-01-2018;901;0;718;1;Spese correnti;4;Trasferimenti correnti;1;Trasferimenti correnti a Amministrazioni Pubbliche;1;Trasferimenti correnti a Amministrazioni Centrali;1;Trasferimenti correnti a Ministeri;05-01-2018;
6;1;0;"259,00";"259,00";ATHESIS SPA;Z4620FCBB2;IMPEGNO DI SPESA E CONTESTUALE LIQUIDAZIONE PER RINNOVO ABBONAMENTO DEL QUOTIDIANO "GIORNALE DI VICENZA";05-01-2018;324;1;769;1;Spese correnti;3;Acquisto di beni e servizi;1;Acquisto di beni;1;"Giornali, riviste e pubblicazioni";1;Giornali e riviste;05-01-2018;
7;1;0;"-8,54";"1.301,42";FERRAMENTA FANTIN RENATO;Z171D005FD;ACCONTO Fatt.n. 06/2017  del 31/07/2017 FORNITURA MATERIALE  FERRAMENTA;11-01-2018;960;0;80;1;Spese correnti;3;Acquisto di beni e servizi;1;Acquisto di beni;2;Altri beni di consumo;999;Altri beni e materiali di consumo n.a.c.;11-01-2018;
7;2;0;"8,54";"1.301,42";FERRAMENTA FANTIN RENATO;Z171D005FD;SALDO Fatt.n. 15/2017  del 13/12/2017 A TOTALE STORNO FATTURA NR. 6/2017 DEL 31/07/2017;11-01-2018;960;0;80;1;Spese correnti;3;Acquisto di beni e servizi;1;Acquisto di beni;2;Altri beni di consumo;999;Altri beni e materiali di consumo n.a.c.;11-01-2018;
7;3;0;"-1.309,96";"1.301,42";FERRAMENTA FANTIN RENATO;Z171D005FD;ACCONTO Fatt.n. 15/2017  del 13/12/2017 A TOTALE STORNO FATTURA NR. 6/2017 DEL 31/07/2017;11-01-2018;960;0;80;1;Spese correnti;3;Acquisto di beni e servizi;1;Acquisto di beni;2;Altri beni di consumo;999;Altri beni e materiali di consumo n.a.c.;11-01-2018;
7;4;0;"1.301,42";"1.301,42";FERRAMENTA FANTIN RENATO;Z171D005FD;SALDO Fatt.n. 16/2017  del 13/12/2017 FORNITURA MATERIALE DI FERRAMENTA VARIO;11-01-2018;960;0;80;1;Spese correnti;3;Acquisto di beni e servizi;1;Acquisto di beni;2;Altri beni di consumo;999;Altri beni e materiali di consumo n.a.c.;11-01-2018;
7;5;0;"1.309,96";"1.301,42";FERRAMENTA FANTIN RENATO;Z171D005FD;SALDO Fatt.n. 06/2017  del 31/07/2017 FORNITURA MATERIALE  FERRAMENTA;11-01-2018;960;0;80;1;Spese correnti;3;Acquisto di beni e servizi;1;Acquisto di beni;2;Altri beni di consumo;999;Altri beni e materiali di consumo n.a.c.;11-01-2018;
8;1;0;"13,99";"13,99";GLOBAL POWER SPA;622385037F;SALDO Fatt.n. V0/140796  del 01/12/2017 CONSUMI E.E. MESE NOVEMBRE 2017 - ECOCENTRO;12-01-2018;2685;0;947;1;Spese correnti;3;Acquisto di beni e servizi;2;Acquisto di servizi;5;Utenze e canoni;4;Energia elettrica;12-01-2018;
9;1;0;"31,59";"240,43";GLOBAL POWER SPA;622385037F;ACCONTO Fatt.n. V0/140800  del 01/12/2017 CONSUMI E.E. MESE NOVEMBRE 2017 - SCUOLE;12-01-2018;259;3;89;1;Spese correnti;3;Acquisto di beni e servizi;2;Acquisto di servizi;5;Utenze e canoni;4;Energia elettrica;12-01-2018;
9;2;0;"208,84";"240,43";GLOBAL POWER SPA;622385037F;ACCONTO Fatt.n. V0/140801  del 01/12/2017 CONSUMI E.E. MESE NOVEMBRE 2017 - VARIE;12-01-2018;259;3;89;1;Spese correnti;3;Acquisto di beni e servizi;2;Acquisto di servizi;5;Utenze e canoni;4;Energia elettrica;12-01-2018;
10;1;0;"10,96";"53,32";GLOBAL POWER SPA;622385037F;ACCONTO Fatt.n. V0/140801  del 01/12/2017 CONSUMI E.E. MESE NOVEMBRE 2017 - VARIE;12-01-2018;1432;0;47;1;Spese correnti;3;Acquisto di beni e servizi;2;Acquisto di servizi;5;Utenze e canoni;4;Energia elettrica;12-01-2018;
10;2;0;"42,36";"53,32";GLOBAL POWER SPA;622385037F;ACCONTO Fatt.n. V0/140800  del 01/12/2017 CONSUMI E.E. MESE NOVEMBRE 2017 - SCUOLE;12-01-2018;1432;0;47;1;Spese correnti;3;Acquisto di beni e servizi;2;Acquisto di servizi;5;Utenze e canoni;4;Energia elettrica;12-01-2018;
11;1;0;"103,82";"224,13";GLOBAL POWER SPA;622385037F;ACCONTO Fatt.n. V0/140801  del 01/12/2017 CONSUMI E.E. MESE NOVEMBRE 2017 - VARIE;12-01-2018;1573;0;48;1;Spese correnti;3;Acquisto di beni e servizi;2;Acquisto di servizi;5;Utenze e canoni;4;Energia elettrica;12-01-2018;
11;2;0;"120,31";"224,13";GLOBAL POWER SPA;622385037F;ACCONTO Fatt.n. V0/140800  del 01/12/2017 CONSUMI E.E. MESE NOVEMBRE 2017 - SCUOLE;12-01-2018;1573;0;48;1;Spese correnti;3;Acquisto di beni e servizi;2;Acquisto di servizi;5;Utenze e canoni;4;Energia elettrica;12-01-2018;
12;1;0;"64,17";"236,49";GLOBAL POWER SPA;622385037F;SALDO Fatt.n. V0/140800  del 01/12/2017 CONSUMI E.E. MESE NOVEMBRE 2017 - SCUOLE;12-01-2018;1651;1;49;1;Spese correnti;3;Acquisto di beni e servizi;2;Acquisto di servizi;5;Utenze e canoni;4;Energia elettrica;12-01-2018;
12;2;0;"172,32";"236,49";GLOBAL POWER SPA;622385037F;ACCONTO Fatt.n. V0/140801  del 01/12/2017 CONSUMI E.E. MESE NOVEMBRE 2017 - VARIE;12-01-2018;1651;1;49;1;Spese correnti;3;Acquisto di beni e servizi;2;Acquisto di servizi;5;Utenze e canoni;4;Energia elettrica;12-01-2018;
13;1;0;"8,09";"316,04";GLOBAL POWER SPA;622385037F;SALDO Fatt.n. V0/140797  del 01/12/2017 CONSUMI E.E. MESE NOVEMBRE 2017 - PALAZZINA TRISSINO;12-01-2018;1810;0;50;1;Spese correnti;3;Acquisto di beni e servizi;2;Acquisto di servizi;5;Utenze e canoni;4;Energia elettrica;12-01-2018;
13;2;0;"9,45";"316,04";GLOBAL POWER SPA;622385037F;SALDO Fatt.n. V0/140798  del 01/12/2017 CONSUMI E.E. MESE NOVEMBRE 2017 - CENTRO DIREZIONALE MARCONI;12-01-2018;1810;0;50;1;Spese correnti;3;Acquisto di beni e servizi;2;Acquisto di servizi;5;Utenze e canoni;4;Energia elettrica;12-01-2018;
13;3;0;"298,50";"316,04";GLOBAL POWER SPA;622385037F;ACCONTO Fatt.n. V0/140801  del 01/12/2017 CONSUMI E.E. MESE NOVEMBRE 2017 - VARIE;12-01-2018;1810;0;50;1;Spese correnti;3;Acquisto di beni e servizi;2;Acquisto di servizi;5;Utenze e canoni;4;Energia elettrica;12-01-2018;
14;1;0;"30,30";"30,30";GLOBAL POWER SPA;622385037F;SALDO Fatt.n. V0/140802  del 01/12/2017 CONSUMI E.E. MESE NOVEMBRE 2017 - CIMITERI;12-01-2018;2240;0;51;1;Spese correnti;3;Acquisto di beni e servizi;2;Acquisto di servizi;5;Utenze e canoni;4;Energia elettrica;12-01-2018;
15;1;0;"12,63";"350,24";GLOBAL POWER SPA;622385037F;SALDO Fatt.n. V0/140801  del 01/12/2017 CONSUMI E.E. MESE NOVEMBRE 2017 - VARIE;12-01-2018;3303;0;53;1;Spese correnti;3;Acquisto di beni e servizi;2;Acquisto di servizi;5;Utenze e canoni;4;Energia elettrica;12-01-2018;
15;2;0;"337,61";"350,24";GLOBAL POWER SPA;622385037F;SALDO Fatt.n. V0/140799  del 01/12/2017 CONSUMI E.E. MESE NOVEMBRE 2017 - ILL.NE PUBBLICA;12-01-2018;3303;0;53;1;Spese correnti;3;Acquisto di beni e servizi;2;Acquisto di servizi;5;Utenze e canoni;4;Energia elettrica;12-01-2018;
23;1;0;"17,80";"17,80";PERSONALE DIPENDENTE; ;STIPENDI MESE DI: GENNAIO 18;16-01-2018;104;0;805;1;Spese correnti;3;Acquisto di beni e servizi;2;Acquisto di servizi;2;"Organizzazione eventi, pubblicita` e servizi per trasferta";1;Rimborso per viaggio e trasloco;16-01-2018;
30;1;0;"0,50";"6,50";PERSONALE DIPENDENTE; ;STIPENDI MESE DI: GENNAIO 18;16-01-2018;113;0;806;1;Spese correnti;3;Acquisto di beni e servizi;2;Acquisto di servizi;2;"Organizzazione eventi, pubblicita` e servizi per trasferta";1;Rimborso per viaggio e trasloco;16-01-2018;
30;2;0;"6,00";"6,50";PERSONALE DIPENDENTE; ;STIPENDI MESE DI: GENNAIO 18;16-01-2018;113;0;806;1;Spese correnti;3;Acquisto di beni e servizi;2;Acquisto di servizi;2;"Organizzazione eventi, pubblicita` e servizi per trasferta";1;Rimborso per viaggio e trasloco;16-01-2018;
54;1;0;"11,10";"11,10";PERSONALE DIPENDENTE; ;STIPENDI MESE DI: GENNAIO 18;16-01-2018;713;0;809;1;Spese correnti;3;Acquisto di beni e servizi;2;Acquisto di servizi;2;"Organizzazione eventi, pubblicita` e servizi per trasferta";1;Rimborso per viaggio e trasloco;16-01-2018;
88;1;0;"5.333,70";"5.333,70";AMMINISTRATORI COMUNALI E CONSIGLIERI; ;STIPENDI MESE DI: GENNAIO 18;16-01-2018;20;0;8;1;Spese correnti;3;Acquisto di beni e servizi;2;Acquisto di servizi;1;Organi e incarichi istituzionali dell'amministrazione;1;Organi istituzionali dell'amministrazione - Indennità;16-01-2018;
93;1;0;"150,06";"150,06";GIORNI NUOVI SOCIETA' COOP. SOCIALE DI SOLIDARIETA';67802821B6;SALDO Fatt.n. 2/144  del 31/10/2017 SERVIZIO DI PULIZIE STRAORDINARIE ESEGUITE NELL'ANNO 2016;23-01-2018;259;5;552;1;Spese correnti;3;Acquisto di beni e servizi;2;Acquisto di servizi;13;Servizi ausiliari per il funzionamento dell'ente;2;Servizi di pulizia e lavanderia;23-01-2018;
94;1;0;"1.599,42";"1.599,42";ACLI SERVICE VICENZA S.R.L.;Z2615B2EF3;SALDO Fatt.n. FATTPA 23_17  del 09/11/2017 BONUS GAS ANNO 2015;23-01-2018;3146;0;467;1;Spese correnti;3;Acquisto di beni e servizi;2;Acquisto di servizi;99;Altri servizi;999;Altri servizi diversi n.a.c.;23-01-2018;
95;1;0;"1.127,28";"1.127,28";ACLI SERVICE VICENZA S.R.L.;Z451C4A3B0;SALDO Fatt.n. FATTPA 24_17  del 09/11/2017 BONUS 2016;23-01-2018;3146;0;797;1;Spese correnti;3;Acquisto di beni e servizi;2;Acquisto di servizi;99;Altri servizi;999;Altri servizi diversi n.a.c.;23-01-2018;
96;1;0;"616,10";"616,10";DETTO SRL;Z3A1BA5F07;SALDO Fatt.n. 64  del 29/11/2017 CANONE GESTIONE SCHEDA SIM DAL 1/1/2017 AL 31/10/2017;23-01-2018;928;0;623;1;Spese correnti;3;Acquisto di beni e servizi;2;Acquisto di servizi;9;Manutenzione ordinaria e riparazioni;8;Manutenzione ordinaria e riparazioni di beni immobili;23-01-2018;
97;1;0;"500,00";"500,00";CAVALIERE SRL;Z5620DBD93;"SALDO Fatt.n. 434 / 210105  del 30/11/2017 Targa: FM060HM; Telaio: ZFA31200003270082; Marca: FIAT; Versione: Panda 1.2 Easy - PASSAGGIO PROPRIETA'";23-01-2018;4036;0;717;2;Spese in conto capitale;2;Investimenti fissi lordi e acquisto di terreni;1;Beni materiali;1;"Mezzi di trasporto ad uso civile, di sicurezza e ordine pubblico";1;Mezzi di trasporto stradali;23-01-2018;
98;1;0;"6.900,00";"6.900,00";CAVALIERE SRL;Z5620DBD93;"SALDO Fatt.n. 47B / 210145  del 02/11/2017 Targa: FM060HM; Telaio: ZFA31200003270082; Marca: FIAT; Versione: Panda 1.2 Easy";23-01-2018;4036;0;717;2;Spese in conto capitale;2;Investimenti fissi lordi e acquisto di terreni;1;Beni materiali;1;"Mezzi di trasporto ad uso civile, di sicurezza e ordine pubblico";1;Mezzi di trasporto stradali;23-01-2018;
99;1;0;"322,00";"322,00";FORMEL SRL; ;SALDO Fatt.n. 2017-715  del 12/12/2017 Giornata di studio L'annullamento in autotutela: da facoltÃ  a obbligo  Venezia 12 dicembre 2017;23-01-2018;150;0;756;1;Spese correnti;3;Acquisto di beni e servizi;2;Acquisto di servizi;4;Acquisto di servizi per formazione e addestramento del personale dell'ente;999;Acquisto di servizi per altre spese per formazione e addestramento n.a.c.;23-01-2018;
100;1;0;"1.199,37";"1.199,37";FERRAMENTA FANTIN RENATO;Z171D005FD;SALDO Fatt.n. 13/2017  del 30/11/2017 FORNITURA MATERIALE FERRAMENTA VARIO;23-01-2018;960;0;80;1;Spese correnti;3;Acquisto di beni e servizi;1;Acquisto di beni;2;Altri beni di consumo;999;Altri beni e materiali di consumo n.a.c.;23-01-2018;
101;1;0;"732,79";"732,79";MATERIALE EDILE DONA' SRL;ZD41CF256B;SALDO Fatt.n. 0000012  del 30/11/2017 MATERIALE EDILE VARIO;23-01-2018;3420;0;67;1;Spese correnti;3;Acquisto di beni e servizi;1;Acquisto di beni;2;Altri beni di consumo;999;Altri beni e materiali di consumo n.a.c.;23-01-2018;
102;1;0;"500,00";"500,00";MATERIALE EDILE DONA' SRL;Z5D20CEE9F;ACCONTO Fatt.n. 0000011  del 30/11/2017 NEVEX SCIOGLI GHIACCIO;23-01-2018;1912;0;715;1;Spese correnti;3;Acquisto di beni e servizi;1;Acquisto di beni;2;Altri beni di consumo;999;Altri beni e materiali di consumo n.a.c.;23-01-2018;
103;1;0;"63,64";"63,64";MATERIALE EDILE DONA' SRL;ZD41CF256B;SALDO Fatt.n. 0000011  del 30/11/2017 NEVEX SCIOGLI GHIACCIO;23-01-2018;3420;0;67;1;Spese correnti;3;Acquisto di beni e servizi;1;Acquisto di beni;2;Altri beni di consumo;999;Altri beni e materiali di consumo n.a.c.;23-01-2018;
104;1;0;"7.462,76";"7.462,76";ENGIE Servizi Spa;6838324B79;ACCONTO Fatt.n. 2200034319  del 13/12/2017 SERVIZIO INTEGRATO ENERGIA 3 - RATA LUGLIO AGOSTO SETTEMBRE 2017;23-01-2018;1651;3;76;1;Spese correnti;3;Acquisto di beni e servizi;2;Acquisto di servizi;5;Utenze e canoni;6;Gas;23-01-2018;
105;1;0;"3.446,20";"3.446,20";ENGIE Servizi Spa;6838324B79;ACCONTO Fatt.n. 2200034319  del 13/12/2017 SERVIZIO INTEGRATO ENERGIA 3 - RATA LUGLIO AGOSTO SETTEMBRE 2017;23-01-2018;259;2;73;1;Spese correnti;3;Acquisto di beni e servizi;2;Acquisto di servizi;5;Utenze e canoni;6;Gas;23-01-2018;
106;1;0;"1.907,28";"1.907,28";ENGIE Servizi Spa;6838324B79;ACCONTO Fatt.n. 2200034319  del 13/12/2017 SERVIZIO INTEGRATO ENERGIA 3 - RATA LUGLIO AGOSTO SETTEMBRE 2017;23-01-2018;1432;2;74;1;Spese correnti;3;Acquisto di beni e servizi;2;Acquisto di servizi;5;Utenze e canoni;6;Gas;23-01-2018;
107;1;0;"3.731,24";"3.731,24";ENGIE Servizi Spa;6838324B79;ACCONTO Fatt.n. 2200034319  del 13/12/2017 SERVIZIO INTEGRATO ENERGIA 3 - RATA LUGLIO AGOSTO SETTEMBRE 2017;23-01-2018;1573;2;75;1;Spese correnti;3;Acquisto di beni e servizi;2;Acquisto di servizi;5;Utenze e canoni;6;Gas;23-01-2018;
108;1;0;"1.404,01";"1.404,01";ENGIE Servizi Spa;6838324B79;SALDO Fatt.n. 2200034319  del 13/12/2017 SERVIZIO INTEGRATO ENERGIA 3 - RATA LUGLIO AGOSTO SETTEMBRE 2017;23-01-2018;1810;2;77;1;Spese correnti;3;Acquisto di beni e servizi;2;Acquisto di servizi;5;Utenze e canoni;6;Gas;23-01-2018;
109;1;0;"33.214,61";"33.214,61";SO.RA.RIS. SPA;0000000000;SALDO Fatt.n. 000240/PA  del 30/11/2017 SERVIZIO DI NETTEZZA URBANA MESE NOVEMBRE;23-01-2018;2691;0;398;1;Spese correnti;3;Acquisto di beni e servizi;2;Acquisto di servizi;15;Contratti di servizio pubblico;4;Contratti di servizio per la raccolta rifiuti;23-01-2018;
110;1;0;"674,05";"674,05";ONGARO SRL;Z3B1D741FE;SALDO Fatt.n. 141/PA  del 30/11/2017 RIFACIMENTO SEGNALETICA ORIZZONTALE;23-01-2018;3342;0;244;1;Spese correnti;3;Acquisto di beni e servizi;2;Acquisto di servizi;99;Altri servizi;999;Altri servizi diversi n.a.c.;23-01-2018;
111;1;0;"1.364,40";"1.364,40";GIARETTA MAURIZIO;Z5D20BCB6C;SALDO Fatt.n. FATTPA 4_17  del 15/12/2017 RASCHIATURA STUCCATURA E TINTEGGIATURA UFF. PROTOCOLLO E LOCALE RIPOSTIGLIO;23-01-2018;4053;0;705;2;Spese in conto capitale;2;Investimenti fissi lordi e acquisto di terreni;1;Beni materiali;9;Beni immobili;2;Fabbricati ad uso commerciale;23-01-2018;
112;1;0;"605,03";"605,03";COMMERCIALE '98 SRL;ZED1CEEF5E;SALDO Fatt.n. 2/E  del 28/02/2017 FORNITURA MATERIALE IDRAULICO VARIO;23-01-2018;960;0;64;1;Spese correnti;3;Acquisto di beni e servizi;1;Acquisto di beni;2;Altri beni di consumo;999;Altri beni e materiali di consumo n.a.c.;23-01-2018;
113;1;0;"3.965,00";"3.965,00";TRAFFIC TECNOLOGY SRL;Z181CDC9AA;SALDO Fatt.n. 1405  del 18/12/2017 CANONE VISTA RED DICEMBRE 2017;23-01-2018;3342;0;58;1;Spese correnti;3;Acquisto di beni e servizi;2;Acquisto di servizi;99;Altri servizi;999;Altri servizi diversi n.a.c.;23-01-2018;
114;1;0;"1.098,00";"1.098,00";VETRERIA QUIROLPE DI QUIROLPE U. & C. S.N.C.;Z49200C620;SALDO Fatt.n. 13  del 07/11/2017 FORNITURA E POSA IN OPERA PORTA IN VETRO;23-01-2018;4053;0;614;2;Spese in conto capitale;2;Investimenti fissi lordi e acquisto di terreni;1;Beni materiali;9;Beni immobili;2;Fabbricati ad uso commerciale;23-01-2018;
115;1;0;"128,53";"128,53";IBS ITALIA SRL;Z191E3F6D9;SALDO Fatt.n. 47773/C  del 06/12/2017 FORNITURA LIBRI PER BIBLIOTECA;24-01-2018;1795;0;385;1;Spese correnti;3;Acquisto di beni e servizi;1;Acquisto di beni;1;"Giornali, riviste e pubblicazioni";2;Pubblicazioni;24-01-2018;
116;1;0;"427,00";"427,00";ASSOCIAZIONE CULTURALE ARENA;Z111FFBFF4;ACCONTO Fatt.n. 4PA  del 19/12/2017 EVENTO DEL 6/10/2017 E DEL 26/10/2017;24-01-2018;1811;0;572;1;Spese correnti;3;Acquisto di beni e servizi;2;Acquisto di servizi;99;Altri servizi;999;Altri servizi diversi n.a.c.;24-01-2018;
117;1;0;"427,00";"427,00";ASSOCIAZIONE CULTURALE ARENA;Z561E933E7;SALDO Fatt.n. 4PA  del 19/12/2017 EVENTO DEL 6/10/2017 E DEL 26/10/2017;24-01-2018;1811;0;384;1;Spese correnti;3;Acquisto di beni e servizi;2;Acquisto di servizi;99;Altri servizi;999;Altri servizi diversi n.a.c.;24-01-2018;
118;1;0;"63,01";"63,01";CIVIS SPA;ZB41CD7D13;SALDO Fatt.n. V9/0003339  del 02/12/2017 SERVIZIO VIGILANZA P.ZZA MATTEOTTI 10;24-01-2018;370;0;105;1;Spese correnti;3;Acquisto di beni e servizi;2;Acquisto di servizi;13;Servizi ausiliari per il funzionamento dell'ente;1;"Servizi di sorveglianza, custodia e accoglienza";24-01-2018;
119;1;0;"37,81";"37,81";CIVIS SPA;ZB41CD7D13;SALDO Fatt.n. V9/0003340  del 02/12/2017 SERVIZIO ISPETTIVO VIA VOLTA;24-01-2018;370;0;105;1;Spese correnti;3;Acquisto di beni e servizi;2;Acquisto di servizi;13;Servizi ausiliari per il funzionamento dell'ente;1;"Servizi di sorveglianza, custodia e accoglienza";24-01-2018;
120;1;0;"295,84";"295,84";MARGHERITA SOC. COOP. SOCIALE ONLUS;Z5B1CE7B8A;SALDO Fatt.n. 296/E  del 30/11/2017 SERVIZIO DI SOSTEGNO SOCIO EDUCATIVO MESE NOVEMBRE 2017;24-01-2018;2741;0;38;1;Spese correnti;3;Acquisto di beni e servizi;2;Acquisto di servizi;99;Altri servizi;999;Altri servizi diversi n.a.c.;24-01-2018;
121;1;0;"2.579,85";"2.579,85";MARGHERITA SOC. COOP. SOCIALE ONLUS;5342930550;SALDO Fatt.n. 294/E  del 30/11/2017 SERVIZIO DI ASSISTENZA DOMICILIARE MESE DI NOVEMBRE;24-01-2018;3140;0;611;1;Spese correnti;3;Acquisto di beni e servizi;2;Acquisto di servizi;99;Altri servizi;999;Altri servizi diversi n.a.c.;24-01-2018;
122;1;0;"378,00";"378,00";MARGHERITA SOC. COOP. SOCIALE ONLUS;5342930550;SALDO Fatt.n. 295/E  del 30/11/2017 PROGETTO OASI MESE NOVEMBRE 2017;24-01-2018;3140;0;611;1;Spese correnti;3;Acquisto di beni e servizi;2;Acquisto di servizi;99;Altri servizi;999;Altri servizi diversi n.a.c.;24-01-2018;
123;1;0;"10.674,98";"10.674,98";U.S.D. AZZURRA - SANDRIGO;ZC91DD26F8;SALDO Fatt.n. 4/C  del 12/12/2017 CORRISPETTIVO GESTIONE CAMPI DA CALCIO MESI OTTOBRE NOVEMBRE DICEMBRE 2017;24-01-2018;2837;0;343;1;Spese correnti;3;Acquisto di beni e servizi;2;Acquisto di servizi;99;Altri servizi;999;Altri servizi diversi n.a.c.;24-01-2018;
124;1;0;"1.195,94";"1.195,94";COVER UP SRL;Z0720BFAD6;SALDO Fatt.n. 1064/2B  del 30/11/2017 TESTI SCOLASTICI;24-01-2018;1700;0;707;1;Spese correnti;4;Trasferimenti correnti;2;Trasferimenti correnti a Famiglie;5;Altri trasferimenti a famiglie;999;Altri trasferimenti a famiglie n.a.c.;24-01-2018;
125;1;0;"463,40";"463,40";CASA DI RIPOSO DI DUEVILLE; ;SALDO Fatt.n. 109/VH  del 30/11/2017 RETTE OSPITI MESE NOVEMBRE 2017;24-01-2018;3201;0;103;1;Spese correnti;3;Acquisto di beni e servizi;2;Acquisto di servizi;15;Contratti di servizio pubblico;8;Contratti di servizio di assistenza sociale residenziale e semiresidenziale;24-01-2018;
126;1;0;"675,60";"675,60";IPAB di VICENZA; ;SALDO Fatt.n. 249/E  del 30/11/2017 RETTE OSPITI MESE NOVEMBRE 2017;24-01-2018;3201;0;101;1;Spese correnti;3;Acquisto di beni e servizi;2;Acquisto di servizi;15;Contratti di servizio pubblico;8;Contratti di servizio di assistenza sociale residenziale e semiresidenziale;24-01-2018;
127;1;0;"660,02";"660,02";CARIOLARO SRL;Z7A2156C4B;SALDO Fatt.n. 22/17P  del 22/12/2017 SPAZZATRICE;24-01-2018;4016;0;797;2;Spese in conto capitale;2;Investimenti fissi lordi e acquisto di terreni;1;Beni materiali;5;Attrezzature;999;Attrezzature n.a.c.;24-01-2018;
128;1;0;"893,04";"893,04";DR3 S.A.S.;ZCE2092019;SALDO Fatt.n. FATTPA 5_17  del 30/11/2017 SPARGISALE MANUALE;24-01-2018;4016;0;684;2;Spese in conto capitale;2;Investimenti fissi lordi e acquisto di terreni;1;Beni materiali;5;Attrezzature;999;Attrezzature n.a.c.;24-01-2018;
129;1;0;"2.315,56";"2.315,56";DR3 S.A.S.;Z8D2052E58;SALDO Fatt.n. FATTPA 4_17  del 30/11/2017 FORNITURA CATENE DA NEVE;24-01-2018;4016;0;628;2;Spese in conto capitale;2;Investimenti fissi lordi e acquisto di terreni;1;Beni materiali;5;Attrezzature;999;Attrezzature n.a.c.;24-01-2018;
130;1;0;"146,40";"146,40";ECO CERTIFICAZIONI SPA;Z031E69B53;ACCONTO Fatt.n. 38807  del 30/11/2017 VERIFICA PERIODICA IMPIANTO ASCENSORI;24-01-2018;761;0;367;1;Spese correnti;3;Acquisto di beni e servizi;2;Acquisto di servizi;99;Altri servizi;999;Altri servizi diversi n.a.c.;24-01-2018;
131;1;0;"-24,40";"134,20";ECO CERTIFICAZIONI SPA;Z031E69B53;SALDO Fatt.n. 481/NC  del 19/12/2017 A PARZIALE STORNO FATTURA NR. 38807 DEL 30/11/2017;24-01-2018;1573;3;368;1;Spese correnti;3;Acquisto di beni e servizi;2;Acquisto di servizi;9;Manutenzione ordinaria e riparazioni;8;Manutenzione ordinaria e riparazioni di beni immobili;24-01-2018;
131;2;0;"24,40";"134,20";ECO CERTIFICAZIONI SPA;Z031E69B53;ACCONTO Fatt.n. 38807  del 30/11/2017 VERIFICA PERIODICA IMPIANTO ASCENSORI;24-01-2018;1573;3;368;1;Spese correnti;3;Acquisto di beni e servizi;2;Acquisto di servizi;9;Manutenzione ordinaria e riparazioni;8;Manutenzione ordinaria e riparazioni di beni immobili;24-01-2018;
131;3;0;"134,20";"134,20";ECO CERTIFICAZIONI SPA;Z031E69B53;SALDO Fatt.n. 38807  del 30/11/2017 VERIFICA PERIODICA IMPIANTO ASCENSORI;24-01-2018;1573;3;368;1;Spese correnti;3;Acquisto di beni e servizi;2;Acquisto di servizi;9;Manutenzione ordinaria e riparazioni;8;Manutenzione ordinaria e riparazioni di beni immobili;24-01-2018;
132;1;0;"180,00";"180,00";INTERAZIONE SRL; ;SALDO Fatt.n. 299/03  del 11/12/2017 CORSO DIPENDENTI 15 NOVEMBRE 2017;24-01-2018;150;0;689;1;Spese correnti;3;Acquisto di beni e servizi;2;Acquisto di servizi;4;Acquisto di servizi per formazione e addestramento del personale dell'ente;4;Acquisto di servizi per formazione obbligatoria;24-01-2018;
133;1;0;"90,00";"90,00";A.N.U.S.C.A. SRL;NO;SALDO Fatt.n. 2411E  del 29/12/2017 CORSI AGGIORNAMENTO SERVIZI DEMOGRAFICI;24-01-2018;150;0;650;1;Spese correnti;3;Acquisto di beni e servizi;2;Acquisto di servizi;4;Acquisto di servizi per formazione e addestramento del personale dell'ente;4;Acquisto di servizi per formazione obbligatoria;24-01-2018;
134;1;0;"1.830,00";"1.830,00";ITALIAPOSE PAVIMENTI E TENDE SRL;Z49207A611;SALDO Fatt.n. 1 PA  del 29/12/2017 POSA PAVIMENTI IN LINOLEUM PRESSO SCUOLA MEDIA SANDRIGO;24-01-2018;4086;0;674;2;Spese in conto capitale;2;Investimenti fissi lordi e acquisto di terreni;1;Beni materiali;9;Beni immobili;3;Fabbricati ad uso scolastico;24-01-2018;
135;1;0;"187,88";"187,88";T.E.S. SPA;Z6B1DBB86E;SALDO Fatt.n. 957PA  del 22/12/2017 INSTALLAZIONE SEGNALETICA;24-01-2018;3380;0;276;1;Spese correnti;3;Acquisto di beni e servizi;1;Acquisto di beni;2;Altri beni di consumo;999;Altri beni e materiali di consumo n.a.c.;24-01-2018;
136;1;0;"1.256,39";"1.256,39";CASSA DI RISPARMIO DEL VENETO SPA; ;RIMBORSO AL DATORE DI LAVORO PERMESSI RETRIBUITI FRUITI DAL SINDACO STIVAN GIULIANO PER L'ESERCIZIO DI FUNZIONI PUBBLICHE  MESE DI AGOSTO  2017;24-01-2018;21;0;132;1;Spese correnti;3;Acquisto di beni e servizi;2;Acquisto di servizi;1;Organi e incarichi istituzionali dell'amministrazione;2;Organi istituzionali dell'amministrazione - Rimborsi;24-01-2018;
137;1;0;"6.628,00";"6.628,00";COMUNE DI DUEVILLE; ;ACCORDO PER IL SERVIZIO DI PSICOLOGIA SCOLASTICA 2016/2019. LIQUIDAZIONE ANNO 2017.;24-01-2018;1622;0;741;1;Spese correnti;4;Trasferimenti correnti;1;Trasferimenti correnti a Amministrazioni Pubbliche;2;Trasferimenti correnti a Amministrazioni Locali;3;Trasferimenti correnti a Comuni;24-01-2018;
138;1;0;"2.340,00";"2.340,00";SERENISSIMA RISTORAZIONE S.P.A.;6996960A0B;SALDO Fatt.n. 06696/4  del 30/11/2017 Mensa: SCUOLA INFANZIA CAPOLUGO MESE NOVEMBRE 2017;24-01-2018;1425;0;603;1;Spese correnti;3;Acquisto di beni e servizi;2;Acquisto di servizi;14;Servizi di ristorazione;999;Altri servizi di ristorazione;24-01-2018;
139;1;0;"428,54";"428,54";I.P.A.B. SUOR DIODATA BERTOLO; ;SALDO Fatt.n. 172/E  del 12/12/2017 RETTE OSPITI MESE NOVEMBRE 2017;24-01-2018;3201;0;151;1;Spese correnti;3;Acquisto di beni e servizi;2;Acquisto di servizi;15;Contratti di servizio pubblico;8;Contratti di servizio di assistenza sociale residenziale e semiresidenziale;24-01-2018;
141;1;0;"774,77";"774,77";AGENZIA DELLE ENTRATE; ;LIQUIDAZIONE IVA MESE DI DICEMBRE 2017.;25-01-2018;3760;0;834;1;Spese correnti;10;Altre spese correnti;3;Versamenti IVA a debito;1;Versamenti IVA a debito per le gestioni commerciali;1;Versamenti IVA a debito per le gestioni commerciali;25-01-2018;
142;1;0;"1.907,02";"1.907,02";CASSA DI RISPARMIO DEL VENETO SPA; ;PERMESSI CARICHE PUBBLICHE - STIVAN GIULIANO 09/2017 - COMUNE DI SANDRIGO;25-01-2018;21;0;132;1;Spese correnti;3;Acquisto di beni e servizi;2;Acquisto di servizi;1;Organi e incarichi istituzionali dell'amministrazione;2;Organi istituzionali dell'amministrazione - Rimborsi;25-01-2018;
143;1;0;"335,80";"335,80";MINISTERO DELL'INTERNO; ;COMUNE DI SANDRIGO - N. 20 CIE EMESSE NEL PERIODO 16-31 DICEMBRE;25-01-2018;901;0;718;1;Spese correnti;4;Trasferimenti correnti;1;Trasferimenti correnti a Amministrazioni Pubbliche;1;Trasferimenti correnti a Amministrazioni Centrali;1;Trasferimenti correnti a Ministeri;25-01-2018;
144;1;0;"568,00";"568,00";COMUNE DI VICENZA; ;COMUNE DI SANDRIGO - QUOTA AFFITTO CENTRO PER L'IMPIEGO 2017-2018;25-01-2018;454;0;134;1;Spese correnti;4;Trasferimenti correnti;1;Trasferimenti correnti a Amministrazioni Pubbliche;2;Trasferimenti correnti a Amministrazioni Locali;3;Trasferimenti correnti a Comuni;25-01-2018;
145;1;0;"2.839,90";"2.839,90";COMUNE DI VICENZA; ;COMUNE DI SANDRIGO - QUOTA AFFITTO CENTRO PER L'IMPIEGO 2017-2018 - SALDO;25-01-2018;454;0;65;1;Spese correnti;4;Trasferimenti correnti;1;Trasferimenti correnti a Amministrazioni Pubbliche;2;Trasferimenti correnti a Amministrazioni Locali;3;Trasferimenti correnti a Comuni;25-01-2018;
146;1;0;"500,00";"500,00";PENZO DAVIDE; ;LIQUIDAZIONE SALDO AL DR. PENZO DAVIDE PER COMPENSO NUCLEO DI VALUTAZIONE IN FORMA ASSOCIATA;25-01-2018;67;0;40;1;Spese correnti;3;Acquisto di beni e servizi;2;Acquisto di servizi;1;Organi e incarichi istituzionali dell'amministrazione;8;"Compensi agli organi istituzionali di revisione, di controllo ed altri incarichi istituzionali dell'amministrazione";25-01-2018;
147;1;0;"517,00";"2.100,00";CAGLIA GIUSEPPINA; ;EROGAZIONE CONTRIBUTI ECONOMICI AD INTEGRAZIONE DEL MINIMO VITALE. IMPEGNO DI SPESA E CONTESTUALE LIQUIDAZIONE.;25-01-2018;3220;0;67;1;Spese correnti;4;Trasferimenti correnti;2;Trasferimenti correnti a Famiglie;2;Interventi assistenziali;999;Altri assegni e sussidi assistenziali;25-01-2018;
147;2;0;"1.283,00";"2.100,00";PARISE MAURIZIO; ;EROGAZIONE CONTRIBUTI ECONOMICI AD INTEGRAZIONE DEL MINIMO VITALE. IMPEGNO DI SPESA E CONTESTUALE LIQUIDAZIONE.;25-01-2018;3220;0;67;1;Spese correnti;4;Trasferimenti correnti;2;Trasferimenti correnti a Famiglie;2;Interventi assistenziali;999;Altri assegni e sussidi assistenziali;25-01-2018;
147;3;0;"300,00";"2.100,00";RAVAROTTO STEFANIA; ;EROGAZIONE CONTRIBUTI ECONOMICI AD INTEGRAZIONE DEL MINIMO VITALE. IMPEGNO DI SPESA E CONTESTUALE LIQUIDAZIONE.;25-01-2018;3220;0;67;1;Spese correnti;4;Trasferimenti correnti;2;Trasferimenti correnti a Famiglie;2;Interventi assistenziali;999;Altri assegni e sussidi assistenziali;25-01-2018;
148;1;0;"1.383,80";"1.383,80";TIM SPA;29726146AB;SALDO Fatt.n. 7X05217973  del 15/12/2017 1BIM 2018;25-01-2018;259;3;49;1;Spese correnti;3;Acquisto di beni e servizi;2;Acquisto di servizi;5;Utenze e canoni;2;Telefonia mobile;25-01-2018;
149;1;0;"65,94";"65,94";TIM SPA; ;SALDO Fatt.n. 8E01214892  del 06/12/2017 1BIM 2018;25-01-2018;259;3;283;1;Spese correnti;3;Acquisto di beni e servizi;2;Acquisto di servizi;5;Utenze e canoni;1;Telefonia fissa;25-01-2018;
150;1;0;"334,29";"334,29";TIM SPA; ;SALDO Fatt.n. 8E01219885  del 06/12/2017 1BIM 2018;25-01-2018;259;3;283;1;Spese correnti;3;Acquisto di beni e servizi;2;Acquisto di servizi;5;Utenze e canoni;1;Telefonia fissa;25-01-2018;
151;1;0;"57,45";"57,45";TIM SPA; ;SALDO Fatt.n. 8E01214079  del 06/12/2017 1BIM 2018;25-01-2018;259;3;283;1;Spese correnti;3;Acquisto di beni e servizi;2;Acquisto di servizi;5;Utenze e canoni;1;Telefonia fissa;25-01-2018;
152;1;0;"12,31";"12,31";TIM SPA; ;SALDO Fatt.n. 8A01081593  del 06/12/2017 1BIM 2018;25-01-2018;259;3;283;1;Spese correnti;3;Acquisto di beni e servizi;2;Acquisto di servizi;5;Utenze e canoni;1;Telefonia fissa;25-01-2018;
153;1;0;"158,60";"158,60";TIM SPA; ;SALDO Fatt.n. 8E01217151  del 06/12/2017 1BIM 2018;25-01-2018;259;3;283;1;Spese correnti;3;Acquisto di beni e servizi;2;Acquisto di servizi;5;Utenze e canoni;1;Telefonia fissa;25-01-2018;
154;1;0;"219,35";"219,35";TIM SPA; ;SALDO Fatt.n. 8E01217947  del 06/12/2017 1BIM 2018;25-01-2018;259;3;283;1;Spese correnti;3;Acquisto di beni e servizi;2;Acquisto di servizi;5;Utenze e canoni;1;Telefonia fissa;25-01-2018;
155;1;0;"26,28";"26,28";TIM SPA; ;SALDO Fatt.n. 8E01214252  del 06/12/2017 1BIM 2018;25-01-2018;259;3;283;1;Spese correnti;3;Acquisto di beni e servizi;2;Acquisto di servizi;5;Utenze e canoni;1;Telefonia fissa;25-01-2018;
156;1;0;"265,36";"265,36";TIM SPA; ;SALDO Fatt.n. 8E01215569  del 06/12/2017 1BIM 2018;25-01-2018;1651;0;284;1;Spese correnti;3;Acquisto di beni e servizi;2;Acquisto di servizi;5;Utenze e canoni;1;Telefonia fissa;25-01-2018;
157;1;0;"64,53";"64,53";TIM SPA; ;SALDO Fatt.n. 8E01214702  del 06/12/2017 1BIM 2018;25-01-2018;1651;0;284;1;Spese correnti;3;Acquisto di beni e servizi;2;Acquisto di servizi;5;Utenze e canoni;1;Telefonia fissa;25-01-2018;
158;1;0;"95,94";"95,94";TIM SPA; ;SALDO Fatt.n. 8E01213272  del 06/12/2017 1BIM 2018;25-01-2018;1651;0;284;1;Spese correnti;3;Acquisto di beni e servizi;2;Acquisto di servizi;5;Utenze e canoni;1;Telefonia fissa;25-01-2018;
159;1;0;"119,21";"119,21";TIM SPA; ;SALDO Fatt.n. 8E01215295  del 06/12/2017 1BIM 2018;25-01-2018;1651;0;284;1;Spese correnti;3;Acquisto di beni e servizi;2;Acquisto di servizi;5;Utenze e canoni;1;Telefonia fissa;25-01-2018;
160;1;0;"88,50";"88,50";KUWAIT PETROLEUM ITALIA SPA;ZE3176A2E8;ACCONTO Fatt.n. PJ00109142  del 31/12/2017 FORNITURA CARBURANTE MESE DICEMBRE 2017;25-01-2018;3182;0;566;1;Spese correnti;3;Acquisto di beni e servizi;1;Acquisto di beni;2;Altri beni di consumo;2;"Carburanti, combustibili e lubrificanti";25-01-2018;
161;1;0;"932,11";"932,11";KUWAIT PETROLEUM ITALIA SPA;ZE3176A2E8;SALDO Fatt.n. PJ00109142  del 31/12/2017 FORNITURA CARBURANTE MESE DICEMBRE 2017;25-01-2018;780;0;806;1;Spese correnti;3;Acquisto di beni e servizi;1;Acquisto di beni;2;Altri beni di consumo;2;"Carburanti, combustibili e lubrificanti";25-01-2018;
162;1;0;"427,00";"427,00";ACCATRE S.R.L.;ZD32022803;SALDO Fatt.n. 1/180077  del 11/01/2018 ATTIVAZIONE SERVICE INVII TELEMATICI ALL'AGENZIA DELLE ENTRATE ANNO 2017;25-01-2018;329;2;602;1;Spese correnti;3;Acquisto di beni e servizi;2;Acquisto di servizi;5;Utenze e canoni;3;Accesso a banche dati e a pubblicazioni on line;25-01-2018;
163;1;0;"292,80";"292,80";BIOCONTROL SRL;Z141E27041;SALDO Fatt.n. 2/124  del 30/11/2017 SERVIZIO DI DERATTIZZAZIONE;25-01-2018;2000;0;326;1;Spese correnti;3;Acquisto di beni e servizi;2;Acquisto di servizi;99;Altri servizi;999;Altri servizi diversi n.a.c.;25-01-2018;
164;1;0;"30,18";"30,18";COMUNE DI FARA VICENTINO; ;RIMBORSO AD ALTRO COMUNE PER L'ACQUISTO DI LIBRI DI TESTO DELLA SCUOLA PRIMARIA PER ALUNNO RESIDENTE A SANDRIGO;25-01-2018;3221;0;830;1;Spese correnti;4;Trasferimenti correnti;1;Trasferimenti correnti a Amministrazioni Pubbliche;2;Trasferimenti correnti a Amministrazioni Locali;3;Trasferimenti correnti a Comuni;25-01-2018;
165;1;0;"976,00";"976,00";TRE R SRL;Z86210D210;SALDO Fatt.n. 21/P  del 31/12/2017 TRABATELLO CERVINO;25-01-2018;4016;0;763;2;Spese in conto capitale;2;Investimenti fissi lordi e acquisto di terreni;1;Beni materiali;5;Attrezzature;999;Attrezzature n.a.c.;25-01-2018;
166;1;0;"111,02";"111,02";FERRAMENTA FANTIN RENATO;Z9A210C2DD;SALDO Fatt.n. 22/2017  del 30/12/2017 KIT LAME E FILTRI ARIA PER RASAERBA;25-01-2018;4016;0;764;2;Spese in conto capitale;2;Investimenti fissi lordi e acquisto di terreni;1;Beni materiali;5;Attrezzature;999;Attrezzature n.a.c.;25-01-2018;
167;1;0;"16.506,60";"16.506,60";DR3 S.A.S.;Z8D2052E58;SALDO Fatt.n. FATTPA 7_17  del 29/12/2017 SGOMBRANEVE MODELLO SR3602MX;25-01-2018;4016;0;628;2;Spese in conto capitale;2;Investimenti fissi lordi e acquisto di terreni;1;Beni materiali;5;Attrezzature;999;Attrezzature n.a.c.;25-01-2018;
168;1;0;"879,01";"879,01";FERRAMENTA FANTIN RENATO;Z43217B875;SALDO Fatt.n. 21/2017  del 30/12/2017 MOTOSEGA E POTATORE;25-01-2018;4016;0;824;2;Spese in conto capitale;2;Investimenti fissi lordi e acquisto di terreni;1;Beni materiali;5;Attrezzature;999;Attrezzature n.a.c.;25-01-2018;
169;1;0;"139,50";"139,50";IPAB COMM. A MICHELAZZO; ;SALDO Fatt.n. 130/B  del 30/11/2017 RETTE OSPITI MESE NOVEMBRE 2017;25-01-2018;3201;0;102;1;Spese correnti;3;Acquisto di beni e servizi;2;Acquisto di servizi;15;Contratti di servizio pubblico;8;Contratti di servizio di assistenza sociale residenziale e semiresidenziale;25-01-2018;
170;1;0;"11,24";"11,24";EQUITALIA NORD S.P.A.; ;IMPEGNO DI SPESA PER RISCOSSIONE TRIBUTI A MEZZO CONCESSIONARIO DELLA RISCOSSIONE.;25-01-2018;1115;0;329;1;Spese correnti;3;Acquisto di beni e servizi;2;Acquisto di servizi;3;Aggi di riscossione;999;Altri aggi di riscossione n.a.c.;25-01-2018;
171;1;0;"33,40";"33,40";POSTE ITALIANE SPA; ;IMPEGNO DI SPESA PER LA GESTIONE DEL CONTO CORRENTE POSTALE N. 86387719 PER L'ANNO 2017;25-01-2018;1115;0;383;1;Spese correnti;3;Acquisto di beni e servizi;2;Acquisto di servizi;3;Aggi di riscossione;999;Altri aggi di riscossione n.a.c.;25-01-2018;
172;1;0;"7.612,80";"7.612,80";STUDIO ASSOCIATO ARCHISTUDIO DI M.FANTIN E I.PANGRAZI;Z54127DB57;SALDO Fatt.n. 1/PA  del 05/01/2018 SALDO PI CITTA' STORICA;26-01-2018;4252;0;1209;2;Spese in conto capitale;2;Investimenti fissi lordi e acquisto di terreni;3;Beni immateriali;5;Incarichi professionali per la realizzazione di investimenti;1;Incarichi professionali per la realizzazione di investimenti;26-01-2018;
173;1;0;"1.000,00";"1.000,00";FERRAMENTA FANTIN RENATO;Z171D005FD;ACCONTO Fatt.n. 17/2017  del 30/12/2017 FORNITURA MATERIALE FERRAMENTA;26-01-2018;260;0;79;1;Spese correnti;3;Acquisto di beni e servizi;1;Acquisto di beni;2;Altri beni di consumo;999;Altri beni e materiali di consumo n.a.c.;26-01-2018;
174;1;0;"0,01";"0,01";FERRAMENTA FANTIN RENATO;Z171D005FD;ACCONTO Fatt.n. 17/2017  del 30/12/2017 FORNITURA MATERIALE FERRAMENTA;26-01-2018;960;0;80;1;Spese correnti;3;Acquisto di beni e servizi;1;Acquisto di beni;2;Altri beni di consumo;999;Altri beni e materiali di consumo n.a.c.;26-01-2018;
175;1;0;"728,33";"728,33";FERRAMENTA FANTIN RENATO;Z171D005FD;ACCONTO Fatt.n. 17/2017  del 30/12/2017 FORNITURA MATERIALE FERRAMENTA;26-01-2018;1640;0;81;1;Spese correnti;3;Acquisto di beni e servizi;1;Acquisto di beni;2;Altri beni di consumo;999;Altri beni e materiali di consumo n.a.c.;26-01-2018;
176;1;0;"500,00";"500,00";FERRAMENTA FANTIN RENATO;Z171D005FD;ACCONTO Fatt.n. 17/2017  del 30/12/2017 FORNITURA MATERIALE FERRAMENTA;26-01-2018;763;0;612;1;Spese correnti;3;Acquisto di beni e servizi;1;Acquisto di beni;2;Altri beni di consumo;999;Altri beni e materiali di consumo n.a.c.;26-01-2018;
177;1;0;"377,26";"377,26";FERRAMENTA FANTIN RENATO;Z171D005FD;SALDO Fatt.n. 17/2017  del 30/12/2017 FORNITURA MATERIALE FERRAMENTA;26-01-2018;960;0;80;1;Spese correnti;3;Acquisto di beni e servizi;1;Acquisto di beni;2;Altri beni di consumo;999;Altri beni e materiali di consumo n.a.c.;26-01-2018;
178;1;0;"749,79";"749,79";PARROCCHIA SANDRIGO "S. MARIA E S.S. FILIPPO E GIACOMO"; ;Erogazione del saldo (20%) del contributo di cui alla LR 44/1987 alla PARROCCHIA DI S.MARIA E S.S. FILIPPO E GIACOMO: Esercizi finanziari 1999 e 2001;26-01-2018;4039;0;3839;2;Spese in conto capitale;4;Altri trasferimenti in conto capitale;24;Altri trasferimenti in conto capitale n.a.c. a Istituzioni Sociali Private;1;Altri trasferimenti in conto capitale n.a.c. a Istituzioni Sociali Private;1;Altri trasferimenti in conto capitale n.a.c. a Istituzioni Sociali Private;26-01-2018;
179;1;0;"843,05";"843,05";PARROCCHIA SANDRIGO "S. MARIA E S.S. FILIPPO E GIACOMO"; ;Erogazione del saldo (20%) del contributo di cui alla LR 44/1987 alla PARROCCHIA DI S.MARIA E S.S. FILIPPO E GIACOMO: Esercizi finanziari 1999 e 2001;26-01-2018;4039;0;3725;2;Spese in conto capitale;4;Altri trasferimenti in conto capitale;24;Altri trasferimenti in conto capitale n.a.c. a Istituzioni Sociali Private;1;Altri trasferimenti in conto capitale n.a.c. a Istituzioni Sociali Private;1;Altri trasferimenti in conto capitale n.a.c. a Istituzioni Sociali Private;26-01-2018;
181;1;0;"911,95";"911,95";AZIENDA AGRICOLA PARISE ALBERTO;Z631CE9344;SALDO Fatt.n. 1/PA  del 04/01/2018 SERVIZIO SPARGIMENTO SALE E GHIAINO MESI DICEMBRE - GENNAIO 2017;26-01-2018;3343;0;90;1;Spese correnti;3;Acquisto di beni e servizi;2;Acquisto di servizi;99;Altri servizi;999;Altri servizi diversi n.a.c.;26-01-2018;
182;1;0;"1.411,03";"1.411,03";IDROFERMET SRL;ZE020641AD;SALDO Fatt.n. 990018  del 31/10/2017 FORNITURA MATERIALI VARI;26-01-2018;2797;0;645;1;Spese correnti;3;Acquisto di beni e servizi;1;Acquisto di beni;2;Altri beni di consumo;999;Altri beni e materiali di consumo n.a.c.;26-01-2018;
183;1;0;"2.049,60";"2.049,60";FONZO CARMINE COSTRUZIONI EDILI;Z3F1CDF488;ACCONTO Fatt.n. 0000001  del 08/01/2018 GESTIONE CIMITERI COMUNALI;26-01-2018;2247;0;54;1;Spese correnti;3;Acquisto di beni e servizi;2;Acquisto di servizi;99;Altri servizi;999;Altri servizi diversi n.a.c.;26-01-2018;
184;1;0;"512,40";"512,40";FONZO CARMINE COSTRUZIONI EDILI;Z7E20D278F;SALDO Fatt.n. 0000001  del 08/01/2018 GESTIONE CIMITERI COMUNALI;26-01-2018;2247;0;719;1;Spese correnti;3;Acquisto di beni e servizi;2;Acquisto di servizi;99;Altri servizi;999;Altri servizi diversi n.a.c.;26-01-2018;
186;1;0;"5,42";"5,42";ALFA ANTINCENDIO SRL;ZC31E0E927;SALDO Fatt.n. 176  del 20/12/2017 INTERVENTO TECNICO DEL 13/12/2017 PRESSO SEDE POLIZIA LOCALE;26-01-2018;932;0;784;1;Spese correnti;3;Acquisto di beni e servizi;2;Acquisto di servizi;99;Altri servizi;999;Altri servizi diversi n.a.c.;26-01-2018;
187;1;0;"781,04";"781,04";ALFA ANTINCENDIO SRL;ZC31E0E927;ACCONTO Fatt.n. 175  del 20/12/2017 INTERVENTO TECNICO DEL 14/12/2017;26-01-2018;1573;3;786;1;Spese correnti;3;Acquisto di beni e servizi;2;Acquisto di servizi;9;Manutenzione ordinaria e riparazioni;8;Manutenzione ordinaria e riparazioni di beni immobili;26-01-2018;
188;1;0;"660,52";"660,52";ALFA ANTINCENDIO SRL;ZC31E0E927;ACCONTO Fatt.n. 175  del 20/12/2017 INTERVENTO TECNICO DEL 14/12/2017;26-01-2018;1651;4;785;1;Spese correnti;3;Acquisto di beni e servizi;2;Acquisto di servizi;9;Manutenzione ordinaria e riparazioni;8;Manutenzione ordinaria e riparazioni di beni immobili;26-01-2018;
189;1;0;"207,49";"207,49";ALFA ANTINCENDIO SRL;ZC31E0E927;SALDO Fatt.n. 175  del 20/12/2017 INTERVENTO TECNICO DEL 14/12/2017;26-01-2018;932;0;784;1;Spese correnti;3;Acquisto di beni e servizi;2;Acquisto di servizi;99;Altri servizi;999;Altri servizi diversi n.a.c.;26-01-2018;
190;1;0;"286,70";"286,70";COVER UP SRL;Z0C211EDDF;SALDO Fatt.n. 1174B  del 21/12/2017 STAMPANTE E CARTUCCIA EPSON;26-01-2018;4009;0;767;2;Spese in conto capitale;2;Investimenti fissi lordi e acquisto di terreni;1;Beni materiali;7;Hardware;2;Postazioni di lavoro;26-01-2018;
191;1;0;"2.440,00";"2.440,00";G.N.G. GraphicNord Group srl;ZF320FCA48;SALDO Fatt.n. 0000014/PA  del 31/12/2017 "ECOCALENDARIO 2018";26-01-2018;2701;0;757;1;Spese correnti;3;Acquisto di beni e servizi;2;Acquisto di servizi;15;Contratti di servizio pubblico;5;Contratti di servizio per il conferimento in discarica dei rifiuti;26-01-2018;
192;1;0;"2.433,90";"2.433,90";INNOVA PA SRL;Z53200D07E;SALDO Fatt.n. FATTPA 4_18  del 05/01/2018 SOFTWARE IN ASP PER SERVIZI SOCIO ASSISTENZIALI;26-01-2018;340;0;604;1;Spese correnti;3;Acquisto di beni e servizi;2;Acquisto di servizi;19;Servizi informatici e di telecomunicazioni;5;Servizi per i sistemi e relativa manutenzione;26-01-2018;
193;1;0;"915,00";"915,00";WIFIWEB srl;ZD82172945;SALDO Fatt.n. 19/PA/2017  del 29/12/2017 INSTALLAZIONE APPARATI WIRELESS ACCESS POINT PUBBLICO C/O PALAZZO MOCENIGO - LUPIA;26-01-2018;4009;0;802;2;Spese in conto capitale;2;Investimenti fissi lordi e acquisto di terreni;1;Beni materiali;7;Hardware;2;Postazioni di lavoro;26-01-2018;
194;1;0;"67,10";"67,10";COVER UP SRL;ZEF1962A6B;SALDO Fatt.n. 1147B  del 14/12/2017 NOLEGGO STAMPANTE EPSON MESE NOVEMBRE 2017;26-01-2018;340;0;255;1;Spese correnti;3;Acquisto di beni e servizi;2;Acquisto di servizi;19;Servizi informatici e di telecomunicazioni;5;Servizi per i sistemi e relativa manutenzione;26-01-2018;
195;1;0;"63,01";"63,01";CIVIS SPA;ZB41CD7D13;SALDO Fatt.n. V9/0000153  del 02/01/2018 SERVIZIO VIGILANZA P.ZZA MATTEOTTI 10;26-01-2018;370;0;105;1;Spese correnti;3;Acquisto di beni e servizi;2;Acquisto di servizi;13;Servizi ausiliari per il funzionamento dell'ente;1;"Servizi di sorveglianza, custodia e accoglienza";26-01-2018;
196;1;0;"37,81";"37,81";CIVIS SPA;ZB41CD7D13;SALDO Fatt.n. V9/0000154  del 02/01/2018 SERVIZIO ISPETTIVO VIA VOLTA;26-01-2018;370;0;105;1;Spese correnti;3;Acquisto di beni e servizi;2;Acquisto di servizi;13;Servizi ausiliari per il funzionamento dell'ente;1;"Servizi di sorveglianza, custodia e accoglienza";26-01-2018;
197;1;0;"292,80";"292,80";COVER UP SRL;Z3620640F5;SALDO Fatt.n. 1098B  del 30/11/2017 MULTIFUNZIONE EPSON;26-01-2018;4009;0;665;2;Spese in conto capitale;2;Investimenti fissi lordi e acquisto di terreni;1;Beni materiali;7;Hardware;2;Postazioni di lavoro;26-01-2018;
198;1;0;"67,10";"67,10";COVER UP SRL;ZEF1962A6B;SALDO Fatt.n. 1198B  del 31/12/2017 NOLEGGIO STAMPANTE EPSON MESE DICEMBRE 2017;26-01-2018;340;0;255;1;Spese correnti;3;Acquisto di beni e servizi;2;Acquisto di servizi;19;Servizi informatici e di telecomunicazioni;5;Servizi per i sistemi e relativa manutenzione;26-01-2018;
199;1;0;"-386,13";"915,00";COVER UP SRL;Z9420FCF12;SALDO Fatt.n. 18D  del 31/10/2017 A TOTALE STORNO FATTURA NR. 904/B DEL 20/10/2017;26-01-2018;340;0;738;1;Spese correnti;3;Acquisto di beni e servizi;2;Acquisto di servizi;19;Servizi informatici e di telecomunicazioni;5;Servizi per i sistemi e relativa manutenzione;26-01-2018;
199;2;0;"-241,56";"915,00";COVER UP SRL;Z9420FCF12;SALDO Fatt.n. 19D  del 31/10/2017 A TOTALE STORNO FATTURA NR. 906/B DEL 20/10/2017;26-01-2018;340;0;738;1;Spese correnti;3;Acquisto di beni e servizi;2;Acquisto di servizi;19;Servizi informatici e di telecomunicazioni;5;Servizi per i sistemi e relativa manutenzione;26-01-2018;
199;3;0;"241,56";"915,00";COVER UP SRL;Z5110D5D9C;SALDO Fatt.n. 906B  del 20/10/2017 NOLEGGIO OTTOBRE NOVEMBRE DICEMBRE 2017 - WORKSTATION SHC;26-01-2018;340;0;738;1;Spese correnti;3;Acquisto di beni e servizi;2;Acquisto di servizi;19;Servizi informatici e di telecomunicazioni;5;Servizi per i sistemi e relativa manutenzione;26-01-2018;
199;4;0;"386,13";"915,00";COVER UP SRL;ZA7107DC53;SALDO Fatt.n. 904B  del 20/10/2017 NOLEGGIO OTTOBRE NOVEMBRE DICEMBRE 2017 STAMPANTE WF8590;26-01-2018;340;0;738;1;Spese correnti;3;Acquisto di beni e servizi;2;Acquisto di servizi;19;Servizi informatici e di telecomunicazioni;5;Servizi per i sistemi e relativa manutenzione;26-01-2018;
199;5;0;"915,00";"915,00";COVER UP SRL;Z9420FCF12;SALDO Fatt.n. 1142B  del 13/12/2017 CONTRATTO ASSISTENZA TECNICA;26-01-2018;340;0;738;1;Spese correnti;3;Acquisto di beni e servizi;2;Acquisto di servizi;19;Servizi informatici e di telecomunicazioni;5;Servizi per i sistemi e relativa manutenzione;26-01-2018;
200;1;0;"366,00";"366,00";SPEROTTO PRONTOSPURGHI S.R.L.;ZB71D15B2D;ACCONTO Fatt.n. 27/PA 2017  del 21/12/2017 SERVIZIO DI AUTOSPURGO;29-01-2018;1651;4;114;1;Spese correnti;3;Acquisto di beni e servizi;2;Acquisto di servizi;9;Manutenzione ordinaria e riparazioni;8;Manutenzione ordinaria e riparazioni di beni immobili;29-01-2018;
201;1;0;"91,50";"91,50";SPEROTTO PRONTOSPURGHI S.R.L.;ZB71D15B2D;SALDO Fatt.n. 27/PA 2017  del 21/12/2017 SERVIZIO DI AUTOSPURGO;29-01-2018;259;4;113;1;Spese correnti;3;Acquisto di beni e servizi;2;Acquisto di servizi;9;Manutenzione ordinaria e riparazioni;8;Manutenzione ordinaria e riparazioni di beni immobili;29-01-2018;
202;1;0;"1.000,00";"1.000,00";MATERIALE EDILE DONA' SRL;ZD41CF256B;ACCONTO Fatt.n. 0000014  del 31/12/2017 MATERIALE EDILE VARIO;29-01-2018;2796;0;626;1;Spese correnti;3;Acquisto di beni e servizi;1;Acquisto di beni;2;Altri beni di consumo;999;Altri beni e materiali di consumo n.a.c.;29-01-2018;
203;1;0;"20,70";"20,70";MATERIALE EDILE DONA' SRL;ZD41CF256B;SALDO Fatt.n. 0000014  del 31/12/2017 MATERIALE EDILE VARIO;29-01-2018;3420;0;67;1;Spese correnti;3;Acquisto di beni e servizi;1;Acquisto di beni;2;Altri beni di consumo;999;Altri beni e materiali di consumo n.a.c.;29-01-2018;
204;1;0;"965,50";"965,50";IPAB COMM. A MICHELAZZO; ;SALDO Fatt.n. 141/B  del 31/12/2017 RETTE OSPITI MESE DICEMBRE 2017;29-01-2018;3201;0;102;1;Spese correnti;3;Acquisto di beni e servizi;2;Acquisto di servizi;15;Contratti di servizio pubblico;8;Contratti di servizio di assistenza sociale residenziale e semiresidenziale;29-01-2018;
205;1;0;"728,60";"728,60";IPAB di VICENZA; ;SALDO Fatt.n. 269/E  del 31/12/2017 RETTE OSPITI MESE DICEMBRE 2017;29-01-2018;3201;0;101;1;Spese correnti;3;Acquisto di beni e servizi;2;Acquisto di servizi;15;Contratti di servizio pubblico;8;Contratti di servizio di assistenza sociale residenziale e semiresidenziale;29-01-2018;
206;1;0;"513,38";"513,38";CASA DI RIPOSO DI DUEVILLE; ;SALDO Fatt.n. 117/VH  del 31/12/2017 RETTE OSPITI MESE DICEMBRE 2017;29-01-2018;3201;0;103;1;Spese correnti;3;Acquisto di beni e servizi;2;Acquisto di servizi;15;Contratti di servizio pubblico;8;Contratti di servizio di assistenza sociale residenziale e semiresidenziale;29-01-2018;
207;1;0;"671,00";"671,00";ALFA CONSULENZE SRL;Z13219C5CC;SALDO Fatt.n. 065E/2018  del 15/01/2018 ABBONAMENTO ALFA AGGIORNA TRIBUTI ANNO 2018;29-01-2018;1120;1;68;1;Spese correnti;3;Acquisto di beni e servizi;2;Acquisto di servizi;99;Altri servizi;999;Altri servizi diversi n.a.c.;29-01-2018;
208;1;0;"2.839,67";"2.839,67";SO.RA.RIS. SPA;0000000000;ACCONTO Fatt.n. 000233/PA  del 30/11/2017 GESTIONE STAZIONE DI TRAVASO;29-01-2018;2691;0;398;1;Spese correnti;3;Acquisto di beni e servizi;2;Acquisto di servizi;15;Contratti di servizio pubblico;4;Contratti di servizio per la raccolta rifiuti;29-01-2018;
209;1;0;"7.460,57";"7.460,57";SO.RA.RIS. SPA;0000000000;SALDO Fatt.n. 000233/PA  del 30/11/2017 GESTIONE STAZIONE DI TRAVASO;29-01-2018;2695;0;399;1;Spese correnti;3;Acquisto di beni e servizi;2;Acquisto di servizi;15;Contratti di servizio pubblico;5;Contratti di servizio per il conferimento in discarica dei rifiuti;29-01-2018;
210;1;0;"94,61";"94,61";IBS ITALIA SRL;Z191E3F6D9;SALDO Fatt.n. 51869/C  del 19/12/2017 FORNITURA LIBRI PER BIBLIOTECA;29-01-2018;1795;0;385;1;Spese correnti;3;Acquisto di beni e servizi;1;Acquisto di beni;1;"Giornali, riviste e pubblicazioni";2;Pubblicazioni;29-01-2018;
211;1;0;"7,79";"7,79";IBS ITALIA SRL;Z191E3F6D9;SALDO Fatt.n. 51868/C  del 19/12/2017 FORNITURA LIBRI;29-01-2018;1795;0;385;1;Spese correnti;3;Acquisto di beni e servizi;1;Acquisto di beni;1;"Giornali, riviste e pubblicazioni";2;Pubblicazioni;29-01-2018;
212;1;0;"2.304,00";"2.304,00";LISE SRL;ZAF1CE189A;SALDO Fatt.n. FATTPA 118_17  del 30/12/2017 ORE GESTIONE SOFTWARE BIBLIOTECA - MESE DICEMBRE 2017;29-01-2018;1796;0;42;1;Spese correnti;3;Acquisto di beni e servizi;2;Acquisto di servizi;19;Servizi informatici e di telecomunicazioni;1;Gestione e manutenzione applicazioni;29-01-2018;
213;1;0;"286,20";"286,20";LIBRERIA LEONI SRL;Z041E3F712;SALDO Fatt.n. 90-2P  del 28/12/2017 FORNITURA LIBRI;29-01-2018;1795;0;371;1;Spese correnti;3;Acquisto di beni e servizi;1;Acquisto di beni;1;"Giornali, riviste e pubblicazioni";2;Pubblicazioni;29-01-2018;
214;1;0;"1.648,82";"1.648,82";CENTRO BIBLIOTECHE LOVAT SRL;Z0D1E3F68E;SALDO Fatt.n. 711-17PA  del 28/12/2017 FORNITURA TESTI PER BIBLIOTECA;29-01-2018;1795;0;365;1;Spese correnti;3;Acquisto di beni e servizi;1;Acquisto di beni;1;"Giornali, riviste e pubblicazioni";2;Pubblicazioni;29-01-2018;
215;1;0;"49,59";"49,59";COVER UP SRL;Z381CFF950;SALDO Fatt.n. 1227B  del 31/12/2017 ETICHETTATRICE DYMO;29-01-2018;342;0;82;1;Spese correnti;3;Acquisto di beni e servizi;1;Acquisto di beni;2;Altri beni di consumo;6;Materiale informatico;29-01-2018;
216;1;0;"292,80";"292,80";BIOCONTROL SRL;Z141E27041;SALDO Fatt.n. 2/137  del 31/12/2017 SERVIZIO DI DERATTIZZAZIONE;29-01-2018;2000;0;326;1;Spese correnti;3;Acquisto di beni e servizi;2;Acquisto di servizi;99;Altri servizi;999;Altri servizi diversi n.a.c.;29-01-2018;
217;1;0;"1.145,34";"1.145,34";SO.RA.RIS. SPA;0000000000;SALDO Fatt.n. 000224/PA  del 07/11/2017 SERVIZIO RACCOLTA FESTA DEL BACCALA' 2017 E SERVIZI VARI;29-01-2018;2691;0;398;1;Spese correnti;3;Acquisto di beni e servizi;2;Acquisto di servizi;15;Contratti di servizio pubblico;4;Contratti di servizio per la raccolta rifiuti;29-01-2018;
218;1;0;"32.962,49";"32.962,49";SO.RA.RIS. SPA;0000000000;SALDO Fatt.n. 000262/PA  del 30/12/2017 SERVIZIO NETTEZZA URBANA  -  MESE DICEMBRE 2017;29-01-2018;2691;0;398;1;Spese correnti;3;Acquisto di beni e servizi;2;Acquisto di servizi;15;Contratti di servizio pubblico;4;Contratti di servizio per la raccolta rifiuti;29-01-2018;
219;1;0;"10.015,19";"10.015,19";SO.RA.RIS. SPA;0000000000;SALDO Fatt.n. 000256/PA  del 30/12/2017 GESTIONE GESTIONE DI TRAVASO;29-01-2018;2695;0;399;1;Spese correnti;3;Acquisto di beni e servizi;2;Acquisto di servizi;15;Contratti di servizio pubblico;5;Contratti di servizio per il conferimento in discarica dei rifiuti;29-01-2018;
220;1;0;"2.440,00";"2.440,00";BOXXAPPS SRL;Z8620DC4A1;SALDO Fatt.n. 1/180069  del 15/01/2018 EFFETTUATA ATTIVAZIONE SERVIZIO X-AUDIT ANNO 2017;29-01-2018;340;0;723;1;Spese correnti;3;Acquisto di beni e servizi;2;Acquisto di servizi;19;Servizi informatici e di telecomunicazioni;5;Servizi per i sistemi e relativa manutenzione;29-01-2018;
221;1;0;"354,00";"354,00";KGN SRL;ZAF2145C48;ACCONTO Fatt.n. 36/PA  del 31/12/2017 TESSERE TAG 125 KHZ - FRONTE RETRO;29-01-2018;2682;0;780;1;Spese correnti;3;Acquisto di beni e servizi;1;Acquisto di beni;2;Altri beni di consumo;999;Altri beni e materiali di consumo n.a.c.;29-01-2018;
222;1;0;"178,36";"178,36";GIORNI NUOVI SOCIETA' COOP. SOCIALE DI SOLIDARIETA';ZA71DBB6F4;SALDO Fatt.n. 2/175  del 31/12/2017 SERVIZIO PULIZIE BAGNI CIMITERO;29-01-2018;259;5;269;1;Spese correnti;3;Acquisto di beni e servizi;2;Acquisto di servizi;13;Servizi ausiliari per il funzionamento dell'ente;2;Servizi di pulizia e lavanderia;29-01-2018;
223;1;0;"2.148,20";"2.148,20";GIORNI NUOVI SOCIETA' COOP. SOCIALE DI SOLIDARIETA';67802821B6;ACCONTO Fatt.n. 2/174  del 31/12/2017 SERVIZIO PULIZIE SEDE MUNICIPALE E VARIE;29-01-2018;259;5;547;1;Spese correnti;3;Acquisto di beni e servizi;2;Acquisto di servizi;13;Servizi ausiliari per il funzionamento dell'ente;2;Servizi di pulizia e lavanderia;29-01-2018;
224;1;0;"1.224,07";"1.224,07";GIORNI NUOVI SOCIETA' COOP. SOCIALE DI SOLIDARIETA';67802821B6;ACCONTO Fatt.n. 2/174  del 31/12/2017 SERVIZIO PULIZIE SEDE MUNICIPALE E VARIE;29-01-2018;1810;3;548;1;Spese correnti;3;Acquisto di beni e servizi;2;Acquisto di servizi;13;Servizi ausiliari per il funzionamento dell'ente;2;Servizi di pulizia e lavanderia;29-01-2018;
225;1;0;"207,95";"207,95";GIORNI NUOVI SOCIETA' COOP. SOCIALE DI SOLIDARIETA';67802821B6;ACCONTO Fatt.n. 2/174  del 31/12/2017 SERVIZIO PULIZIE SEDE MUNICIPALE E VARIE;29-01-2018;1285;0;549;1;Spese correnti;3;Acquisto di beni e servizi;2;Acquisto di servizi;13;Servizi ausiliari per il funzionamento dell'ente;2;Servizi di pulizia e lavanderia;29-01-2018;
226;1;0;"499,83";"499,83";GIORNI NUOVI SOCIETA' COOP. SOCIALE DI SOLIDARIETA';67802821B6;ACCONTO Fatt.n. 2/174  del 31/12/2017 SERVIZIO PULIZIE SEDE MUNICIPALE E VARIE;29-01-2018;1565;0;550;1;Spese correnti;3;Acquisto di beni e servizi;2;Acquisto di servizi;13;Servizi ausiliari per il funzionamento dell'ente;2;Servizi di pulizia e lavanderia;29-01-2018;
227;1;0;"414,69";"414,69";GIORNI NUOVI SOCIETA' COOP. SOCIALE DI SOLIDARIETA';67802821B6;SALDO Fatt.n. 2/174  del 31/12/2017 SERVIZIO PULIZIE SEDE MUNICIPALE E VARIE;29-01-2018;3147;1;551;1;Spese correnti;3;Acquisto di beni e servizi;2;Acquisto di servizi;13;Servizi ausiliari per il funzionamento dell'ente;2;Servizi di pulizia e lavanderia;29-01-2018;
228;1;0;"6.100,00";"6.100,00";ARCOBALENO - UNIONE ASSOC. SPORTIVE;ZF61522A1F;SALDO Fatt.n. 44  del 27/12/2017 CONVENZIONE - UTILIZZO E GESTIONE DEL PALAZZETTO DELLO SPORT DI SANDRIGO 6^ BIMESTRE 2017;29-01-2018;2838;0;362;1;Spese correnti;3;Acquisto di beni e servizi;2;Acquisto di servizi;99;Altri servizi;999;Altri servizi diversi n.a.c.;29-01-2018;
230;1;0;"38.329,20";"38.329,20";G.N.G. GraphicNord Group srl;Z3B20BF24D;SALDO Fatt.n. 0000012/PA  del 18/12/2017 STAMPA LIBRO SU SANDRIGO;30-01-2018;1792;0;752;1;Spese correnti;3;Acquisto di beni e servizi;1;Acquisto di beni;1;"Giornali, riviste e pubblicazioni";2;Pubblicazioni;30-01-2018;
231;1;0;"500,00";"500,00";KGN SRL;ZAF2145C48;SALDO Fatt.n. 36/PA  del 31/12/2017 TESSERE TAG 125 KHZ - FRONTE RETRO;30-01-2018;2682;0;780;1;Spese correnti;3;Acquisto di beni e servizi;1;Acquisto di beni;2;Altri beni di consumo;999;Altri beni e materiali di consumo n.a.c.;30-01-2018;
232;1;0;"8.454,60";"8.454,60";MASCOTTO MARIO SRL;ZCC20EA565;SALDO Fatt.n. 1700010/P  del 29/12/2017 REALIZZAZIONE PLATEA IN CEMENTO ARMATO X INSTALLAZIONE BOX BAGNI PRESSO IMPIANTI SPORTIVI SANDRIGO - LUPIA;30-01-2018;4015;0;728;2;Spese in conto capitale;2;Investimenti fissi lordi e acquisto di terreni;1;Beni materiali;5;Attrezzature;999;Attrezzature n.a.c.;30-01-2018;
233;1;0;"2.889,08";"2.889,08";AXIANS SAIV SPA;Z5B20BC8EC;SALDO Fatt.n. V17PA-00175  del 28/12/2017 FORNITURA DI SWITCH INDUSTRIALE;30-01-2018;4075;0;726;2;Spese in conto capitale;2;Investimenti fissi lordi e acquisto di terreni;1;Beni materiali;4;Impianti e macchinari;2;Impianti;30-01-2018;
234;1;0;"5.075,20";"5.075,20";COVER UP SRL;Z732102061;SALDO Fatt.n. 1188B  del 29/12/2017 STAMPANTE - PC - MATERIALE INFORMATICO VARIO;30-01-2018;4009;0;758;2;Spese in conto capitale;2;Investimenti fissi lordi e acquisto di terreni;1;Beni materiali;7;Hardware;2;Postazioni di lavoro;30-01-2018;
235;1;0;"22.838,40";"22.838,40";GONZATO DAVIDE;ZC41FB9372;SALDO Fatt.n. 01-E-2018  del 12/01/2018 ACCONTO COMP. PROFESSIONALI PROGETTO DEFINITIVO REALIZZAZIONE CENTRO POLIFUNZIONALE SPORTIVO RICREATIVO E SCOLASTICO 2 STRALCIO;30-01-2018;4512;0;549;2;Spese in conto capitale;2;Investimenti fissi lordi e acquisto di terreni;1;Beni materiali;9;Beni immobili;16;Impianti sportivi;30-01-2018;
236;1;0;"9.389,12";"9.389,12";GONZATO DAVIDE;675663793B;SALDO Fatt.n. 02-E-2018  del 15/01/2018 COMPETENZE PROFESSIONALI PROGETTO LAVORI SUPPLEMENTARI REALIZZAZIONE CENTRO POLIFUNZIONALE SPORTIVO RICREATIVO E SCOLASTICO 1 STRALCIO;30-01-2018;4512;0;900;2;Spese in conto capitale;2;Investimenti fissi lordi e acquisto di terreni;1;Beni materiali;9;Beni immobili;16;Impianti sportivi;30-01-2018;
237;1;0;"11.400,79";"11.400,79";GONZATO DAVIDE;675663793B;SALDO Fatt.n. 03-E-2018  del 15/01/2018 ACCONTO COMPETENZE PROFESSIONALI DD.LL.  REALIZZAZIONE CENTRO POLIFUNZIONALE SPORTIVO RICREATIVO E SCOLASTICO 1 STRALCIO;30-01-2018;4512;0;900;2;Spese in conto capitale;2;Investimenti fissi lordi e acquisto di terreni;1;Beni materiali;9;Beni immobili;16;Impianti sportivi;30-01-2018;
238;1;0;"65,88";"65,88";SOLUZIONE UFFICIO S.R.L.;Z592025A78;SALDO Fatt.n. 7071/PA/2017  del 02/11/2017 CANONE NOLEGGIO STAMPANTE ANAGRAFE;30-01-2018;340;0;608;1;Spese correnti;3;Acquisto di beni e servizi;2;Acquisto di servizi;19;Servizi informatici e di telecomunicazioni;5;Servizi per i sistemi e relativa manutenzione;30-01-2018;
239;1;0;"2.894,08";"2.894,08";SOLUZIONE UFFICIO S.R.L.;Z6221728D7;SALDO Fatt.n. 9676/PA/2017  del 30/12/2017 MATERIALE INFORMATICO VARIO;30-01-2018;4009;0;801;2;Spese in conto capitale;2;Investimenti fissi lordi e acquisto di terreni;1;Beni materiali;7;Hardware;2;Postazioni di lavoro;30-01-2018;
240;1;0;"274,00";"274,00";AZIENDA ULSS N. 8 BERICA;Z931CD84D9;SALDO Fatt.n. KZ  201800000010  del 18/01/2018 PRESTAZIONI SERVIZI VETERINARI;30-01-2018;1990;0;106;1;Spese correnti;3;Acquisto di beni e servizi;2;Acquisto di servizi;99;Altri servizi;999;Altri servizi diversi n.a.c.;30-01-2018;
241;1;0;"5.053,18";"5.053,18";TECHNE;Z6A21116FE;SALDO Fatt.n. PA/171  del 29/12/2017 FORNITURA SCANNER;30-01-2018;4009;0;759;2;Spese in conto capitale;2;Investimenti fissi lordi e acquisto di terreni;1;Beni materiali;7;Hardware;2;Postazioni di lavoro;30-01-2018;
242;1;0;"11.053,20";"11.053,20";BLUTECNICA SRL;Z8A20D6B81;ACCONTO Fatt.n. 003/02  del 28/12/2017 FORNITURA BOX USO SERVIZI IGENICI;30-01-2018;4015;0;720;2;Spese in conto capitale;2;Investimenti fissi lordi e acquisto di terreni;1;Beni materiali;5;Attrezzature;999;Attrezzature n.a.c.;30-01-2018;
243;1;0;"488,00";"488,00";BLUTECNICA SRL;Z8A20D6B81;SALDO Fatt.n. 003/02  del 28/12/2017 FORNITURA BOX USO SERVIZI IGENICI;30-01-2018;4015;0;720;2;Spese in conto capitale;2;Investimenti fissi lordi e acquisto di terreni;1;Beni materiali;5;Attrezzature;999;Attrezzature n.a.c.;30-01-2018;
244;1;0;"5.313,54";"5.313,54";STUDIO ZANIOL & PARTNERS; ;SALDO Fatt.n. 1/PA  del 18/01/2018 COMPENSO ANNO 2017;30-01-2018;31;0;262;1;Spese correnti;3;Acquisto di beni e servizi;2;Acquisto di servizi;1;Organi e incarichi istituzionali dell'amministrazione;8;"Compensi agli organi istituzionali di revisione, di controllo ed altri incarichi istituzionali dell'amministrazione";30-01-2018;
246;1;0;"654,81";"654,81";MINISTERO DELL'INTERNO; ;COMUNE DI SANDRIGO - CORRISPETTIVO N. 39 CIE emesse 1-15 gennaio 2018;30-01-2018;901;0;147;1;Spese correnti;4;Trasferimenti correnti;1;Trasferimenti correnti a Amministrazioni Pubbliche;1;Trasferimenti correnti a Amministrazioni Centrali;1;Trasferimenti correnti a Ministeri;30-01-2018;
247;1;0;"7.051,14";"7.051,14";S.I.A. Societa' Intercomunale Ambiente SRL;0000000000;SALDO Fatt.n. 221/PA17  del 30/12/2017 CONFERIMENTO RSU SECCO - MESE DICEMBRE 2017;30-01-2018;2695;0;397;1;Spese correnti;3;Acquisto di beni e servizi;2;Acquisto di servizi;15;Contratti di servizio pubblico;5;Contratti di servizio per il conferimento in discarica dei rifiuti;30-01-2018;
248;1;0;"6.105,54";"6.105,54";S.I.A. Societa' Intercomunale Ambiente SRL;0000000000;SALDO Fatt.n. 201/PA17  del 30/11/2017 CONFERIMENTO RSU SECCO IMPIANTO DI GRUMOLO - MESE NOVEMBRE 2017;30-01-2018;2695;0;397;1;Spese correnti;3;Acquisto di beni e servizi;2;Acquisto di servizi;15;Contratti di servizio pubblico;5;Contratti di servizio per il conferimento in discarica dei rifiuti;30-01-2018;
249;1;0;"159,00";"159,00";AIDEM SRL; ;SALDO Fatt.n. 0000007  del 11/01/2018 PARTECIPAZIONE SEMINARIO DIPENDENTE: ELENA DOMENICHINI;30-01-2018;150;0;783;1;Spese correnti;3;Acquisto di beni e servizi;2;Acquisto di servizi;4;Acquisto di servizi per formazione e addestramento del personale dell'ente;999;Acquisto di servizi per altre spese per formazione e addestramento n.a.c.;30-01-2018;
250;1;0;"243,61";"243,61";WOLTERS KLUWER ITALIA S.R.L.;Z241E2882D;SALDO Fatt.n. 0053500298  del 16/01/2018 SISTEMA LEGGI D'ITALIA;30-01-2018;768;1;331;1;Spese correnti;3;Acquisto di beni e servizi;2;Acquisto di servizi;99;Altri servizi;999;Altri servizi diversi n.a.c.;30-01-2018;
251;1;0;"2.519,52";"2.519,52";SO.RA.RIS. SPA;0000000000;ACCONTO Fatt.n. 000210/PA  del 24/10/2017 GESTIONE STAZIONE DI TRAVASO - MESE SETTEMBRE 2017;30-01-2018;2691;0;398;1;Spese correnti;3;Acquisto di beni e servizi;2;Acquisto di servizi;15;Contratti di servizio pubblico;4;Contratti di servizio per la raccolta rifiuti;30-01-2018;
252;1;0;"7.070,82";"7.070,82";SO.RA.RIS. SPA;0000000000;SALDO Fatt.n. 000210/PA  del 24/10/2017 GESTIONE STAZIONE DI TRAVASO - MESE SETTEMBRE 2017;30-01-2018;2695;0;399;1;Spese correnti;3;Acquisto di beni e servizi;2;Acquisto di servizi;15;Contratti di servizio pubblico;5;Contratti di servizio per il conferimento in discarica dei rifiuti;30-01-2018;
254;1;0;"99,54";"99,54";GLOBAL POWER SPA;622385037F;(SOS. 27) - ACCONTO Fatt.n. V0/5246  del 02/01/2018 CONSUMI E.E. MESE DICEMBRE 2017 - ECOCENTRO;31-01-2018;2685;0;947;1;Spese correnti;3;Acquisto di beni e servizi;2;Acquisto di servizi;5;Utenze e canoni;4;Energia elettrica;31-01-2018;
255;1;0;"232,88";"1.197,43";GLOBAL POWER SPA;622385037F;(SOS. 29/P) - ACCONTO Fatt.n. V0/5250  del 02/01/2018 CONSUMI E.E. MESE DICEMBRE 2017 - SCUOLE;31-01-2018;259;0;45;1;Spese correnti;3;Acquisto di beni e servizi;2;Acquisto di servizi;5;Utenze e canoni;4;Energia elettrica;31-01-2018;
255;2;0;"964,55";"1.197,43";GLOBAL POWER SPA;622385037F;(SOS. 28/P) - ACCONTO Fatt.n. V0/5251  del 02/01/2018 CONSUMI E.E. MESE DICEMBRE 2017 - VARIE;31-01-2018;259;0;45;1;Spese correnti;3;Acquisto di beni e servizi;2;Acquisto di servizi;5;Utenze e canoni;4;Energia elettrica;31-01-2018;
256;1;0;"649,26";"1.725,52";GLOBAL POWER SPA;622385037F;(SOS. 28/P) - ACCONTO Fatt.n. V0/5251  del 02/01/2018 CONSUMI E.E. MESE DICEMBRE 2017 - VARIE;31-01-2018;1573;0;48;1;Spese correnti;3;Acquisto di beni e servizi;2;Acquisto di servizi;5;Utenze e canoni;4;Energia elettrica;31-01-2018;
256;2;0;"1.076,26";"1.725,52";GLOBAL POWER SPA;622385037F;(SOS. 29/P) - ACCONTO Fatt.n. V0/5250  del 02/01/2018 CONSUMI E.E. MESE DICEMBRE 2017 - SCUOLE;31-01-2018;1573;0;48;1;Spese correnti;3;Acquisto di beni e servizi;2;Acquisto di servizi;5;Utenze e canoni;4;Energia elettrica;31-01-2018;
257;1;0;"757,70";"1.940,13";GLOBAL POWER SPA;622385037F;(SOS. 28/P) - ACCONTO Fatt.n. V0/5251  del 02/01/2018 CONSUMI E.E. MESE DICEMBRE 2017 - VARIE;31-01-2018;1651;1;49;1;Spese correnti;3;Acquisto di beni e servizi;2;Acquisto di servizi;5;Utenze e canoni;4;Energia elettrica;31-01-2018;
257;2;0;"1.182,43";"1.940,13";GLOBAL POWER SPA;622385037F;(SOS. 29/P) - ACCONTO Fatt.n. V0/5250  del 02/01/2018 CONSUMI E.E. MESE DICEMBRE 2017 - SCUOLE;31-01-2018;1651;1;49;1;Spese correnti;3;Acquisto di beni e servizi;2;Acquisto di servizi;5;Utenze e canoni;4;Energia elettrica;31-01-2018;
258;1;0;"1.149,11";"1.149,11";GLOBAL POWER SPA;622385037F;(SOS. 28/P) - ACCONTO Fatt.n. V0/5251  del 02/01/2018 CONSUMI E.E. MESE DICEMBRE 2017 - VARIE;01-02-2018;1810;0;50;1;Spese correnti;3;Acquisto di beni e servizi;2;Acquisto di servizi;5;Utenze e canoni;4;Energia elettrica;01-02-2018;
259;1;0;"47,48";"293,97";GLOBAL POWER SPA;622385037F;(SOS. 25) - ACCONTO Fatt.n. V0/5248  del 02/01/2018 CONSUMI E.E. MESE DICEMBRE 2017 - CENTRO DIREZIONALE MARCONI;01-02-2018;2240;0;51;1;Spese correnti;3;Acquisto di beni e servizi;2;Acquisto di servizi;5;Utenze e canoni;4;Energia elettrica;01-02-2018;
259;2;0;"76,91";"293,97";GLOBAL POWER SPA;622385037F;(SOS. 24) - ACCONTO Fatt.n. V0/5247  del 02/01/2018 CONSUMI E.E. MESE DICEMBRE 2017 - PALAZZINA TRISSINO;01-02-2018;2240;0;51;1;Spese correnti;3;Acquisto di beni e servizi;2;Acquisto di servizi;5;Utenze e canoni;4;Energia elettrica;01-02-2018;
259;3;0;"169,58";"293,97";GLOBAL POWER SPA;622385037F;(SOS. 26) - ACCONTO Fatt.n. V0/5252  del 02/01/2018 CONSUMI E.E. MESE DICEMBRE 2017 - CIMITERI;01-02-2018;2240;0;51;1;Spese correnti;3;Acquisto di beni e servizi;2;Acquisto di servizi;5;Utenze e canoni;4;Energia elettrica;01-02-2018;
260;1;0;"1.071,94";"9.353,03";GLOBAL POWER SPA;622385037F;(SOS. 28) - ACCONTO Fatt.n. V0/5251  del 02/01/2018 CONSUMI E.E. MESE DICEMBRE 2017 - VARIE;01-02-2018;3303;0;53;1;Spese correnti;3;Acquisto di beni e servizi;2;Acquisto di servizi;5;Utenze e canoni;4;Energia elettrica;01-02-2018;
260;2;0;"8.281,09";"9.353,03";GLOBAL POWER SPA;622385037F;(SOS. 30) - ACCONTO Fatt.n. V0/5249  del 02/01/2018 CONSUMI E.E. MESE DICEMBRE 2017 - ILL.NE PUBBLICA;01-02-2018;3303;0;53;1;Spese correnti;3;Acquisto di beni e servizi;2;Acquisto di servizi;5;Utenze e canoni;4;Energia elettrica;01-02-2018;
261;1;0;"21,90";"21,90";GLOBAL POWER SPA;622385037F;SALDO Fatt.n. V0/5246  del 02/01/2018 CONSUMI E.E. MESE DICEMBRE 2017 - ECOCENTRO;01-02-2018;2685;0;947;1;Spese correnti;3;Acquisto di beni e servizi;2;Acquisto di servizi;5;Utenze e canoni;4;Energia elettrica;01-02-2018;
262;1;0;"51,24";"231,76";GLOBAL POWER SPA;622385037F;ACCONTO Fatt.n. V0/5250  del 02/01/2018 CONSUMI E.E. MESE DICEMBRE 2017 - SCUOLE;01-02-2018;259;0;45;1;Spese correnti;3;Acquisto di beni e servizi;2;Acquisto di servizi;5;Utenze e canoni;4;Energia elettrica;01-02-2018;
262;2;0;"180,52";"231,76";GLOBAL POWER SPA;622385037F;ACCONTO Fatt.n. V0/5251  del 02/01/2018 CONSUMI E.E. MESE DICEMBRE 2017 - VARIE;01-02-2018;259;0;45;1;Spese correnti;3;Acquisto di beni e servizi;2;Acquisto di servizi;5;Utenze e canoni;4;Energia elettrica;01-02-2018;
263;1;0;"107,63";"250,47";GLOBAL POWER SPA;622385037F;ACCONTO Fatt.n. V0/5250  del 02/01/2018 CONSUMI E.E. MESE DICEMBRE 2017 - SCUOLE;01-02-2018;1573;0;48;1;Spese correnti;3;Acquisto di beni e servizi;2;Acquisto di servizi;5;Utenze e canoni;4;Energia elettrica;01-02-2018;
263;2;0;"142,84";"250,47";GLOBAL POWER SPA;622385037F;ACCONTO Fatt.n. V0/5251  del 02/01/2018 CONSUMI E.E. MESE DICEMBRE 2017 - VARIE;01-02-2018;1573;0;48;1;Spese correnti;3;Acquisto di beni e servizi;2;Acquisto di servizi;5;Utenze e canoni;4;Energia elettrica;01-02-2018;
264;1;0;"118,24";"284,93";GLOBAL POWER SPA;622385037F;SALDO Fatt.n. V0/5250  del 02/01/2018 CONSUMI E.E. MESE DICEMBRE 2017 - SCUOLE;01-02-2018;1651;1;49;1;Spese correnti;3;Acquisto di beni e servizi;2;Acquisto di servizi;5;Utenze e canoni;4;Energia elettrica;01-02-2018;
264;2;0;"166,69";"284,93";GLOBAL POWER SPA;622385037F;ACCONTO Fatt.n. V0/5251  del 02/01/2018 CONSUMI E.E. MESE DICEMBRE 2017 - VARIE;01-02-2018;1651;1;49;1;Spese correnti;3;Acquisto di beni e servizi;2;Acquisto di servizi;5;Utenze e canoni;4;Energia elettrica;01-02-2018;
265;1;0;"252,80";"252,80";GLOBAL POWER SPA;622385037F;ACCONTO Fatt.n. V0/5251  del 02/01/2018 CONSUMI E.E. MESE DICEMBRE 2017 - VARIE;01-02-2018;1810;0;50;1;Spese correnti;3;Acquisto di beni e servizi;2;Acquisto di servizi;5;Utenze e canoni;4;Energia elettrica;01-02-2018;
266;1;0;"7,69";"55,45";GLOBAL POWER SPA;622385037F;SALDO Fatt.n. V0/5247  del 02/01/2018 CONSUMI E.E. MESE DICEMBRE 2017 - PALAZZINA TRISSINO;01-02-2018;2240;0;51;1;Spese correnti;3;Acquisto di beni e servizi;2;Acquisto di servizi;5;Utenze e canoni;4;Energia elettrica;01-02-2018;
266;2;0;"10,45";"55,45";GLOBAL POWER SPA;622385037F;SALDO Fatt.n. V0/5248  del 02/01/2018 CONSUMI E.E. MESE DICEMBRE 2017 - CENTRO DIREZIONALE MARCONI;01-02-2018;2240;0;51;1;Spese correnti;3;Acquisto di beni e servizi;2;Acquisto di servizi;5;Utenze e canoni;4;Energia elettrica;01-02-2018;
266;3;0;"37,31";"55,45";GLOBAL POWER SPA;622385037F;SALDO Fatt.n. V0/5252  del 02/01/2018 CONSUMI E.E. MESE DICEMBRE 2017 - CIMITERI;01-02-2018;2240;0;51;1;Spese correnti;3;Acquisto di beni e servizi;2;Acquisto di servizi;5;Utenze e canoni;4;Energia elettrica;01-02-2018;
267;1;0;"235,83";"2.057,67";GLOBAL POWER SPA;622385037F;SALDO Fatt.n. V0/5251  del 02/01/2018 CONSUMI E.E. MESE DICEMBRE 2017 - VARIE;01-02-2018;3303;0;53;1;Spese correnti;3;Acquisto di beni e servizi;2;Acquisto di servizi;5;Utenze e canoni;4;Energia elettrica;01-02-2018;
267;2;0;"1.821,84";"2.057,67";GLOBAL POWER SPA;622385037F;SALDO Fatt.n. V0/5249  del 02/01/2018 CONSUMI E.E. MESE DICEMBRE 2017 - ILL.NE PUBBLICA;01-02-2018;3303;0;53;1;Spese correnti;3;Acquisto di beni e servizi;2;Acquisto di servizi;5;Utenze e canoni;4;Energia elettrica;01-02-2018;
268;1;0;"389,51";"389,51";BANCO POSTA - POSTE ITALIANE SPA; ;SPESE PER LA GESTIONE DEI CONTI CORRENTI POSTALI - PERIODO OTTOBRE/DICEMBRE 2017;01-02-2018;1116;0;96;1;Spese correnti;3;Acquisto di beni e servizi;2;Acquisto di servizi;17;Servizi finanziari;1;Commissioni per servizi finanziari;01-02-2018;
269;1;0;"12.420,00";"12.420,00";INDUSTRIAL CARS SPA;Z8520A047B;"ACCONTO Fatt.n. 66 / 10440  del 28/11/2017 Targa: EL565XB; Telaio: VF7YAAMFA11960027; Marca: CITROEN; Versione: Jumper 30 2.2 HDi/100 PC-TN Furgone";12-02-2018;4036;0;701;2;Spese in conto capitale;2;Investimenti fissi lordi e acquisto di terreni;1;Beni materiali;1;"Mezzi di trasporto ad uso civile, di sicurezza e ordine pubblico";1;Mezzi di trasporto stradali;12-02-2018;
270;1;0;"17,64";"17,64";COMUNE DI BRENZONE SUL GARDA; ;RIMBORSO SPESE DI NOTIFICA ATTI TARES N.267/17 - TARI N.268/17 E N. 266/17 DEL 20/02/17 PER IL COMUNE DI SANDRIGO;12-02-2018;1120;1;150;1;Spese correnti;3;Acquisto di beni e servizi;2;Acquisto di servizi;99;Altri servizi;999;Altri servizi diversi n.a.c.;12-02-2018;
271;1;0;"289,00";"289,00";IMPRESA VERDE VICENZA S.R.L.; ;IMPEGNO DI SPESA PER ADESIONE FEDERAZIONE PROVINCIALE COLDIRETTI DI VICENZA. ANNO 2018;12-02-2018;601;0;161;1;Spese correnti;3;Acquisto di beni e servizi;2;Acquisto di servizi;99;Altri servizi;3;Quote di associazioni;12-02-2018;
272;1;0;"457,50";"457,50";SHARP ELECTRONICS ITALIA SPA;Z470E3E74D;SALDO Fatt.n. 7718001129  del 26/01/2018 CANONE FOTOCOPIATRICE SHARP 4' TRIMESTRE 2017;12-02-2018;329;0;286;1;Spese correnti;3;Acquisto di beni e servizi;2;Acquisto di servizi;7;Utilizzo di beni di terzi;8;Noleggi di impianti e macchinari;12-02-2018;
273;1;0;"338,28";"338,28";EDIT GRAF di ISEPPI STEFANO;ZBF20E9620;SALDO Fatt.n. 2/1042  del 14/12/2017 FORNITURA MATERIALE CANCELLERIA VARIO - UFF. RAGIONERIA;12-02-2018;324;0;724;1;Spese correnti;3;Acquisto di beni e servizi;1;Acquisto di beni;2;Altri beni di consumo;1;"Carta, cancelleria e stampati";12-02-2018;
274;1;0;"24,83";"24,83";EDIT GRAF di ISEPPI STEFANO;ZBF20E9620;SALDO Fatt.n. 2/1118  del 31/12/2017 FORNITURA MATERIALE CANCELLERIA VARIO - UFF. RAGIONERIA;12-02-2018;324;0;724;1;Spese correnti;3;Acquisto di beni e servizi;1;Acquisto di beni;2;Altri beni di consumo;1;"Carta, cancelleria e stampati";12-02-2018;
275;1;0;"321,54";"321,54";CECCHINATO CRISTIAN;Z8B1D3C5C2;SALDO Fatt.n. FATTPA 1_18  del 23/01/2018 VISITE MEDICINA DEL LAVORO;12-02-2018;761;0;137;1;Spese correnti;3;Acquisto di beni e servizi;2;Acquisto di servizi;99;Altri servizi;999;Altri servizi diversi n.a.c.;12-02-2018;
276;1;0;"259,25";"259,25";NEULIFT Service Triveneto srl;ZB51FB9F17;SALDO Fatt.n. 100024  del 19/01/2018 MANUTENZIONE ASCENSORI PALAZZO MOCENIGO;12-02-2018;928;0;550;1;Spese correnti;3;Acquisto di beni e servizi;2;Acquisto di servizi;9;Manutenzione ordinaria e riparazioni;8;Manutenzione ordinaria e riparazioni di beni immobili;12-02-2018;
277;1;0;"129,61";"129,61";NEULIFT Service Triveneto srl;ZB51FB9F17;SALDO Fatt.n. 100032  del 19/01/2018 MANUTENZIONE ASCENSORE PALAZZO MOCENIGO LUPIA;12-02-2018;928;0;550;1;Spese correnti;3;Acquisto di beni e servizi;2;Acquisto di servizi;9;Manutenzione ordinaria e riparazioni;8;Manutenzione ordinaria e riparazioni di beni immobili;12-02-2018;
278;1;0;"1.398,13";"1.398,13";IL CASTORO SNC DI BEDIN GINO E MATTEO;Z361E490C1;SALDO Fatt.n. 21E  del 30/11/2017 LAVORI SFALCIO ERBA CIGLI STRADALI TERRITORIO COMUNALE;12-02-2018;3343;0;335;1;Spese correnti;3;Acquisto di beni e servizi;2;Acquisto di servizi;99;Altri servizi;999;Altri servizi diversi n.a.c.;12-02-2018;
279;1;0;"177,81";"177,81";ASCOTRADE SPA;Z651E20991;SALDO Fatt.n. 73046  del 23/01/2018 15351020002672 - PIAZZA GARIBALDI 10 36066 - FORNITURA GAS;12-02-2018;934;0;318;1;Spese correnti;3;Acquisto di beni e servizi;2;Acquisto di servizi;5;Utenze e canoni;6;Gas;12-02-2018;
280;1;0;"4.182,16";"4.182,16";FONZO CARMINE COSTRUZIONI EDILI;Z7E20D278F;ACCONTO Fatt.n. 0000003  del 19/01/2018 OPERAZIONI CIMITERIALI INVERNO 2017;14-02-2018;2247;0;719;1;Spese correnti;3;Acquisto di beni e servizi;2;Acquisto di servizi;99;Altri servizi;999;Altri servizi diversi n.a.c.;14-02-2018;
281;1;0;"319,64";"319,64";FONZO CARMINE COSTRUZIONI EDILI;Z7121C4BC5;SALDO Fatt.n. 0000003  del 19/01/2018 OPERAZIONI CIMITERIALI INVERNO 2017;14-02-2018;2247;0;123;1;Spese correnti;3;Acquisto di beni e servizi;2;Acquisto di servizi;99;Altri servizi;999;Altri servizi diversi n.a.c.;14-02-2018;
282;1;0;"2.059,36";"2.059,36";FONZO CARMINE COSTRUZIONI EDILI;Z031DFC821;SALDO Fatt.n. 0000002  del 19/01/2018 OPERAZIONE ESUMAZIONE SALME PRESSO CIMITERO DI SANDRIGO;14-02-2018;2242;0;314;1;Spese correnti;3;Acquisto di beni e servizi;2;Acquisto di servizi;9;Manutenzione ordinaria e riparazioni;8;Manutenzione ordinaria e riparazioni di beni immobili;14-02-2018;
283;1;0;"8.100,00";"8.100,00";CIRCOLO ACLI - CENTRO DON MILANI; ;CONTRIBUTO AL CENTRO DON MILANI ANNO SCOLASTICO 2017/18. 2^ LIQUIDAZIONE;14-02-2018;3115;0;607;1;Spese correnti;4;Trasferimenti correnti;4;Trasferimenti correnti a Istituzioni Sociali Private;1;Trasferimenti correnti a Istituzioni Sociali Private;1;Trasferimenti correnti a Istituzioni Sociali Private;14-02-2018;
284;1;0;"839,50";"839,50";MINISTERO DELL'INTERNO; ;COMUNE DI SANDRIGO - CORRISPETTIVO PER N. 50 CIE EMESSE DAL 16.01.2018 AL 31.01.2018;14-02-2018;901;0;147;1;Spese correnti;4;Trasferimenti correnti;1;Trasferimenti correnti a Amministrazioni Pubbliche;1;Trasferimenti correnti a Amministrazioni Centrali;1;Trasferimenti correnti a Ministeri;14-02-2018;
285;1;0;"200,00";"200,00";PUBLIKA SRL;ZB921986B0;SALDO Fatt.n. 116/PA  del 29/01/2018 ABBONAMENTO RIVISTA PERSONALE ANNO 2018;14-02-2018;320;0;63;1;Spese correnti;3;Acquisto di beni e servizi;1;Acquisto di beni;1;"Giornali, riviste e pubblicazioni";2;Pubblicazioni;14-02-2018;
286;1;0;"160,02";"160,02";KUWAIT PETROLEUM ITALIA SPA;ZE3176A2E8;ACCONTO Fatt.n. PJ00113124  del 31/01/2018 CONSUMO CARBURANTE MESE GENNAIO 2018;14-02-2018;3182;0;566;1;Spese correnti;3;Acquisto di beni e servizi;1;Acquisto di beni;2;Altri beni di consumo;2;"Carburanti, combustibili e lubrificanti";14-02-2018;
287;1;0;"592,77";"592,77";KUWAIT PETROLEUM ITALIA SPA;ZE3176A2E8;SALDO Fatt.n. PJ00113124  del 31/01/2018 CONSUMO CARBURANTE MESE GENNAIO 2018;14-02-2018;780;0;806;1;Spese correnti;3;Acquisto di beni e servizi;1;Acquisto di beni;2;Altri beni di consumo;2;"Carburanti, combustibili e lubrificanti";14-02-2018;
288;1;0;"1.006,50";"1.006,50";ACLI SERVICE VICENZA S.R.L.;Z662155155;SALDO Fatt.n. FATTPA 7_18  del 18/01/2018 ASSEGNI ANNO 2017 - BONUS GAS - BONUS ENERGIA;14-02-2018;3146;0;791;1;Spese correnti;3;Acquisto di beni e servizi;2;Acquisto di servizi;99;Altri servizi;999;Altri servizi diversi n.a.c.;14-02-2018;
289;1;0;"196,14";"196,14";COMMERCIALE '98 SRL;ZF721B7BC0;SALDO Fatt.n. 1/E  del 23/01/2018 MATERIALE IDRAULICO VARIO;14-02-2018;960;0;115;1;Spese correnti;3;Acquisto di beni e servizi;1;Acquisto di beni;2;Altri beni di consumo;999;Altri beni e materiali di consumo n.a.c.;14-02-2018;
290;1;0;"85,40";"85,40";CISL VENETO SERVIZI SRL;Z5A215444B;SALDO Fatt.n. VIP/5  del 23/01/2018 GESTIONE PRATICHE ISE - BO NUS GAS - BONUS ENERGIA;14-02-2018;3146;0;790;1;Spese correnti;3;Acquisto di beni e servizi;2;Acquisto di servizi;99;Altri servizi;999;Altri servizi diversi n.a.c.;14-02-2018;
291;1;0;"500,00";"500,00";DUAL SET S.R.L.;ZF021B85A1;"ACCONTO Fatt.n. 6/E  del 30/01/2018 Contratto di Manutenzione dal 01/01/2018 al 31/12/2018- Municipio, Magazzini Comunali e Biblioteca";14-02-2018;259;4;143;1;Spese correnti;3;Acquisto di beni e servizi;2;Acquisto di servizi;9;Manutenzione ordinaria e riparazioni;8;Manutenzione ordinaria e riparazioni di beni immobili;14-02-2018;
292;1;0;"122,20";"122,20";DUAL SET S.R.L.;ZF021B85A1;"SALDO Fatt.n. 6/E  del 30/01/2018 Contratto di Manutenzione dal 01/01/2018 al 31/12/2018- Municipio, Magazzini Comunali e Biblioteca";14-02-2018;1810;4;144;1;Spese correnti;3;Acquisto di beni e servizi;2;Acquisto di servizi;9;Manutenzione ordinaria e riparazioni;4;Manutenzione ordinaria e riparazioni di impianti e macchinari;14-02-2018;
293;1;0;"921,10";"921,10";GLOBAL POWER SERVICE SPA;6239603B46;SALDO Fatt.n. 2018-V5-12  del 05/01/2018 CANONE MENSILE MANUTENZIONE ORDINARIA CONVENZIONE IP;14-02-2018;3302;0;128;1;Spese correnti;3;Acquisto di beni e servizi;2;Acquisto di servizi;9;Manutenzione ordinaria e riparazioni;4;Manutenzione ordinaria e riparazioni di impianti e macchinari;14-02-2018;
294;1;0;"7.683,02";"7.683,02";GLOBAL POWER SERVICE SPA;6239603B46;SALDO Fatt.n. 2018-V5-11  del 05/01/2018 CANONE RISPARMIO ENERGETICO CONVENZIONE IP - GENNAIO 2018;14-02-2018;3320;0;127;1;Spese correnti;3;Acquisto di beni e servizi;2;Acquisto di servizi;9;Manutenzione ordinaria e riparazioni;4;Manutenzione ordinaria e riparazioni di impianti e macchinari;14-02-2018;
295;1;0;"359,90";"359,90";VETRERIA QUIROLPE DI QUIROLPE U. & C. S.N.C.;ZF621D2501;SALDO Fatt.n. 2  del 30/01/2018 SISTEMAZIONE PORTE PRESSO SEDE COMUNALE;14-02-2018;763;0;157;1;Spese correnti;3;Acquisto di beni e servizi;1;Acquisto di beni;2;Altri beni di consumo;999;Altri beni e materiali di consumo n.a.c.;14-02-2018;
296;1;0;"80,15";"80,15";EDIT GRAF di ISEPPI STEFANO;ZBF20E9620;SALDO Fatt.n. 2/84  del 02/02/2018 FORNITURA CANCELLERIA UFF. RAGIONERIA;14-02-2018;324;0;724;1;Spese correnti;3;Acquisto di beni e servizi;1;Acquisto di beni;2;Altri beni di consumo;1;"Carta, cancelleria e stampati";14-02-2018;
297;1;0;"3.726,80";"3.726,80";ROSTICCERIA GASTRONOMIA CUNICO INES DI POLTRONIERI S.;Z572081C8E;SALDO Fatt.n. FATTPA 21_17  del 30/11/2017 PASTI CONSEGNATI NEL MESE DI NOVEMBRE 2017;14-02-2018;3139;0;673;1;Spese correnti;3;Acquisto di beni e servizi;1;Acquisto di beni;2;Altri beni di consumo;11;Generi alimentari;14-02-2018;
298;1;0;"3.454,55";"3.454,55";ROSTICCERIA GASTRONOMIA CUNICO INES DI POLTRONIERI S.;Z572081C8E;SALDO Fatt.n. FATTPA 23_17  del 31/12/2017 PASTI CONSEGNATI NEL MESE DI DICEMBRE 2017;14-02-2018;3139;0;673;1;Spese correnti;3;Acquisto di beni e servizi;1;Acquisto di beni;2;Altri beni di consumo;11;Generi alimentari;14-02-2018;
299;1;0;"778,00";"778,00";I.P.A.B. SUOR DIODATA BERTOLO; ;SALDO Fatt.n. 6/E  del 19/01/2018 RETTE OSPITI - MESE GENNAIO 2017;14-02-2018;3201;0;151;1;Spese correnti;3;Acquisto di beni e servizi;2;Acquisto di servizi;15;Contratti di servizio pubblico;8;Contratti di servizio di assistenza sociale residenziale e semiresidenziale;14-02-2018;
300;1;0;"513,53";"513,53";I.P.A.B. SUOR DIODATA BERTOLO; ;SALDO Fatt.n. 189/E  del 29/12/2017 RETTE OSPITI - MESE DICEMBRE 2017;14-02-2018;3201;0;605;1;Spese correnti;3;Acquisto di beni e servizi;2;Acquisto di servizi;15;Contratti di servizio pubblico;8;Contratti di servizio di assistenza sociale residenziale e semiresidenziale;14-02-2018;
301;1;0;"2.340,00";"2.340,00";SERENISSIMA RISTORAZIONE S.P.A.;6996960A0B;SALDO Fatt.n. 07495/4  del 31/12/2017 Mensa: SCUOLA INFANZIA CAPOLUGO - MESE DICEMBRE 2017;14-02-2018;1425;0;603;1;Spese correnti;3;Acquisto di beni e servizi;2;Acquisto di servizi;14;Servizi di ristorazione;999;Altri servizi di ristorazione;14-02-2018;
302;1;0;"513,19";"513,19";MARGHERITA SOC. COOP. SOCIALE ONLUS;Z5B1CE7B8A;SALDO Fatt.n. 341/E  del 31/12/2017 SOSTEGNO SOCIO EDUCATIVO MESE DICEMBRE 2017;14-02-2018;2741;0;38;1;Spese correnti;3;Acquisto di beni e servizi;2;Acquisto di servizi;99;Altri servizi;999;Altri servizi diversi n.a.c.;14-02-2018;
303;1;0;"2.089,24";"2.089,24";MARGHERITA SOC. COOP. SOCIALE ONLUS;5342930550;SALDO Fatt.n. 339/E  del 31/12/2017 SERVIZIO DI ASSISTENZA DOMICILIARE MESE DICEMBRE 2017;14-02-2018;3140;0;611;1;Spese correnti;3;Acquisto di beni e servizi;2;Acquisto di servizi;99;Altri servizi;999;Altri servizi diversi n.a.c.;14-02-2018;
304;1;0;"7.393,20";"7.393,20";AZETA IMPIANTI SRL;ZCF217E8FA;SALDO Fatt.n. 51/B  del 29/12/2017 SOSTITUZIONE CORPI ILLUMINANTI UFFICI COMUNALI;14-02-2018;4053;0;825;2;Spese in conto capitale;2;Investimenti fissi lordi e acquisto di terreni;1;Beni materiali;9;Beni immobili;2;Fabbricati ad uso commerciale;14-02-2018;
305;1;0;"184,22";"184,22";BIBLIO SRL;Z9A215A205;SALDO Fatt.n. 341  del 27/12/2017 FORNITURA ATTREZZATURA PER BIBLIOTECA;14-02-2018;4102;0;796;2;Spese in conto capitale;2;Investimenti fissi lordi e acquisto di terreni;1;Beni materiali;3;Mobili e arredi;1;Mobili e arredi per ufficio;14-02-2018;
306;1;0;"340,14";"340,14";BIBLIO SRL;Z60206F3F0;SALDO Fatt.n. 339  del 27/12/2017 FORNITURA ATTREZZATURA BIBLIOTECA;14-02-2018;4102;0;669;2;Spese in conto capitale;2;Investimenti fissi lordi e acquisto di terreni;1;Beni materiali;3;Mobili e arredi;1;Mobili e arredi per ufficio;14-02-2018;
307;1;0;"951,60";"951,60";BIBLIO SRL;Z83208FE28;SALDO Fatt.n. 340  del 27/12/2017 ARMADIO IN FAGGIO;14-02-2018;4102;0;683;2;Spese in conto capitale;2;Investimenti fissi lordi e acquisto di terreni;1;Beni materiali;3;Mobili e arredi;1;Mobili e arredi per ufficio;14-02-2018;
308;1;0;"1.496,56";"1.496,56";CONSORZIO DI POLIZIA LOCALE NORDEST VICENTINO; ;LIQUIDAZIONE QUOTA FINANZIARIA CONSORZIO POLIZIA LOCALE NORDEST VICENTINO. QUARTO TRIMESTRE.;14-02-2018;1306;0;108;1;Spese correnti;4;Trasferimenti correnti;1;Trasferimenti correnti a Amministrazioni Pubbliche;2;Trasferimenti correnti a Amministrazioni Locali;18;Trasferimenti correnti a Consorzi di enti locali;14-02-2018;
309;1;0;"4.662,17";"4.662,17";AZIENDA ULSS N. 8 BERICA;Z5B1CE7B8A;ACCONTO Fatt.n. K   201800000111  del 02/02/2018 INSERIM.RESID. E IN COMUNITA' EDUC.DIURNA MIN. OTT-DIC 17 INSERIMENTO RESIDENZIALE E IN COMUNITA' EDUCATIVA DIURNA MINORI - OTT-DIC 17;14-02-2018;2741;0;37;1;Spese correnti;3;Acquisto di beni e servizi;2;Acquisto di servizi;99;Altri servizi;999;Altri servizi diversi n.a.c.;14-02-2018;
310;1;0;"223,82";"223,82";AZIENDA ULSS N. 8 BERICA; ;SALDO Fatt.n. K   201800000111  del 02/02/2018 INSERIM.RESID. E IN COMUNITA' EDUC.DIURNA MIN. OTT-DIC 17 INSERIMENTO RESIDENZIALE E IN COMUNITA' EDUCATIVA DIURNA MINORI - OTT-DIC 17;14-02-2018;2741;0;418;1;Spese correnti;3;Acquisto di beni e servizi;2;Acquisto di servizi;99;Altri servizi;999;Altri servizi diversi n.a.c.;14-02-2018;
311;1;0;"5.000,00";"5.000,00";ARCOBALENO - UNIONE ASSOC. SPORTIVE; ;LIQUIDAZIONE CONTRIBUTO ALL'ASSOCIAZIONE SPORTIVA DILETTANTISTICA "ARCOBALENO" AL FINE DELLA REALIZZAZIONE DEL PROGETTO "ALLEANZA PER LA FAMIGLIA";14-02-2018;3212;0;832;1;Spese correnti;4;Trasferimenti correnti;4;Trasferimenti correnti a Istituzioni Sociali Private;1;Trasferimenti correnti a Istituzioni Sociali Private;1;Trasferimenti correnti a Istituzioni Sociali Private;14-02-2018;
312;1;0;"162,34";"162,34";AZIENDA ULSS N. 8 BERICA; ;SALDO Fatt.n. K   201800000096  del 02/02/2018 PROGETTO ACCOMUNA 2017 PROGETTO ACCOMUNA 2017;14-02-2018;3256;0;769;1;Spese correnti;4;Trasferimenti correnti;1;Trasferimenti correnti a Amministrazioni Pubbliche;2;Trasferimenti correnti a Amministrazioni Locali;21;Trasferimenti correnti a Aziende sanitarie locali  a titolo di finanziamento di livelli di assistenza superiori ai livelli essenziali di assistenza (LEA);14-02-2018;
313;1;0;"135,43";"574,93";CENTRO BIBLIOTECHE LOVAT SRL;Z0D1E3F68E;SALDO Fatt.n. 768-17PA  del 30/12/2017 FORNITURA LIBRI PER BIBLIOTECA;14-02-2018;1795;0;365;1;Spese correnti;3;Acquisto di beni e servizi;1;Acquisto di beni;1;"Giornali, riviste e pubblicazioni";2;Pubblicazioni;14-02-2018;
313;2;0;"210,00";"574,93";CENTRO BIBLIOTECHE LOVAT SRL;Z0D1E3F68E;SALDO Fatt.n. 769-17PA  del 30/12/2017 ACQUISTO VOLUMI VARI PER BIBLIOTECA;14-02-2018;1795;0;365;1;Spese correnti;3;Acquisto di beni e servizi;1;Acquisto di beni;1;"Giornali, riviste e pubblicazioni";2;Pubblicazioni;14-02-2018;
313;3;0;"229,50";"574,93";CENTRO BIBLIOTECHE LOVAT SRL;Z0D1E3F68E;SALDO Fatt.n. 770-17PA  del 30/12/2017 ACQUISTO VOLUMI PER BIBLIOTECA COMUNALE;14-02-2018;1795;0;365;1;Spese correnti;3;Acquisto di beni e servizi;1;Acquisto di beni;1;"Giornali, riviste e pubblicazioni";2;Pubblicazioni;14-02-2018;
314;1;0;"1.238,98";"1.238,98";ASCOTRADE SPA;1514046647;SALDO Fatt.n. 73047  del 23/01/2018 15351020002625 - PIAZZA GARIBALDI 0 36066 SANDRIGO VI - FORNITURA GAS;14-02-2018;3133;0;176;1;Spese correnti;3;Acquisto di beni e servizi;2;Acquisto di servizi;5;Utenze e canoni;6;Gas;14-02-2018;
315;1;0;"368,39";"368,39";ASCOTRADE SPA;1514046647;SALDO Fatt.n. 103873  del 23/01/2018 15351020010455 - PIAZZA MARCONI 4 36066 SANDRIGO VI - FORNITURA GAS;14-02-2018;934;0;175;1;Spese correnti;3;Acquisto di beni e servizi;2;Acquisto di servizi;5;Utenze e canoni;6;Gas;14-02-2018;
316;1;0;"1.732,40";"1.732,40";FONZO CARMINE COSTRUZIONI EDILI;Z7121C4BC5;SALDO Fatt.n. 0000004  del 07/02/2018 GESTIONE CIMITERI COMUNALI;14-02-2018;2247;0;123;1;Spese correnti;3;Acquisto di beni e servizi;2;Acquisto di servizi;99;Altri servizi;999;Altri servizi diversi n.a.c.;14-02-2018;
317;1;0;"921,10";"921,10";GLOBAL POWER SERVICE SPA;6239603B46;SALDO Fatt.n. 2018-V5-32  del 01/02/2018 CANONE MENSILE CONVENZIONE IMPIANTO IP;14-02-2018;3302;0;128;1;Spese correnti;3;Acquisto di beni e servizi;2;Acquisto di servizi;9;Manutenzione ordinaria e riparazioni;4;Manutenzione ordinaria e riparazioni di impianti e macchinari;14-02-2018;
318;1;0;"7.683,02";"7.683,02";GLOBAL POWER SERVICE SPA;6239603B46;SALDO Fatt.n. 2018-V5-31  del 01/02/2018 CANONE RISPARMIO ENERGETICO IMP. IP;14-02-2018;3320;0;127;1;Spese correnti;3;Acquisto di beni e servizi;2;Acquisto di servizi;9;Manutenzione ordinaria e riparazioni;4;Manutenzione ordinaria e riparazioni di impianti e macchinari;14-02-2018;
319;1;0;"995,46";"995,46";I.C.A. IMPOSTE COMUNALI AFFINI SRL;6009529436;IMPEGNO DI SPESA PER LA GESTIONE DEL SERVIZIO DI RISCOSSIONE IMPOSTA DI PUBBLICITA' E DIRITTO SULLE PUBBLICHE AFFISSIONI ANNO 2017;15-02-2018;1113;0;345;1;Spese correnti;3;Acquisto di beni e servizi;2;Acquisto di servizi;3;Aggi di riscossione;999;Altri aggi di riscossione n.a.c.;15-02-2018;
320;1;0;"1.058,91";"1.058,91";I.C.A. IMPOSTE COMUNALI AFFINI SRL;6009529436;IMPEGNO DI SPESA PER LA GESTIONE DEL SERVIZIO DI RISCOSSIONE IMPOSTA DI PUBBLICITA' E DIRITTO SULLE PUBBLICHE AFFISSIONI ANNO 2017;15-02-2018;1114;0;346;1;Spese correnti;3;Acquisto di beni e servizi;2;Acquisto di servizi;3;Aggi di riscossione;999;Altri aggi di riscossione n.a.c.;15-02-2018;
321;1;0;"5.333,70";"5.333,70";AMMINISTRATORI COMUNALI E CONSIGLIERI; ;STIPENDI MESE DI: FEBBRAIO 18;16-02-2018;20;0;8;1;Spese correnti;3;Acquisto di beni e servizi;2;Acquisto di servizi;1;Organi e incarichi istituzionali dell'amministrazione;1;Organi istituzionali dell'amministrazione - Indennità;16-02-2018;
324;1;0;"58,34";"58,34";I.C.A. IMPOSTE COMUNALI AFFINI SRL;Z281E597AB;AFFIDAMENTO SERVIZIO DI RISCOSSIONE COATTIVA ENTRATE COMUNALI PERIODO APRILE-DICEMBRE 2017;16-02-2018;1115;0;342;1;Spese correnti;3;Acquisto di beni e servizi;2;Acquisto di servizi;3;Aggi di riscossione;999;Altri aggi di riscossione n.a.c.;16-02-2018;
325;1;0;"867,54";"867,54";I.C.A. IMPOSTE COMUNALI AFFINI SRL;Z281E597AB;AFFIDAMENTO SERVIZIO DI RISCOSSIONE COATTIVA ENTRATE COMUNALI PERIODO APRILE-DICEMBRE 2017;16-02-2018;1115;0;342;1;Spese correnti;3;Acquisto di beni e servizi;2;Acquisto di servizi;3;Aggi di riscossione;999;Altri aggi di riscossione n.a.c.;16-02-2018;
326;1;0;"83,27";"83,27";I.C.A. IMPOSTE COMUNALI AFFINI SRL;Z281E597AB;AFFIDAMENTO SERVIZIO DI RISCOSSIONE COATTIVA ENTRATE COMUNALI PERIODO APRILE-DICEMBRE 2017;16-02-2018;1115;0;342;1;Spese correnti;3;Acquisto di beni e servizi;2;Acquisto di servizi;3;Aggi di riscossione;999;Altri aggi di riscossione n.a.c.;16-02-2018;
327;1;0;"77,37";"77,37";I.C.A. IMPOSTE COMUNALI AFFINI SRL;Z281E597AB;AFFIDAMENTO SERVIZIO DI RISCOSSIONE COATTIVA ENTRATE COMUNALI PERIODO APRILE-DICEMBRE 2017;16-02-2018;1115;0;342;1;Spese correnti;3;Acquisto di beni e servizi;2;Acquisto di servizi;3;Aggi di riscossione;999;Altri aggi di riscossione n.a.c.;16-02-2018;
328;1;0;"92,20";"92,20";I.C.A. IMPOSTE COMUNALI AFFINI SRL;Z281E597AB;AFFIDAMENTO SERVIZIO DI RISCOSSIONE COATTIVA ENTRATE COMUNALI PERIODO APRILE-DICEMBRE 2017;16-02-2018;1115;0;342;1;Spese correnti;3;Acquisto di beni e servizi;2;Acquisto di servizi;3;Aggi di riscossione;999;Altri aggi di riscossione n.a.c.;16-02-2018;
329;1;0;"1.506,11";"1.506,11";I.C.A. IMPOSTE COMUNALI AFFINI SRL;Z281E597AB;AFFIDAMENTO SERVIZIO DI RISCOSSIONE COATTIVA ENTRATE COMUNALI PERIODO APRILE-DICEMBRE 2017;16-02-2018;1115;0;342;1;Spese correnti;3;Acquisto di beni e servizi;2;Acquisto di servizi;3;Aggi di riscossione;999;Altri aggi di riscossione n.a.c.;16-02-2018;
330;1;0;"130,14";"130,14";I.C.A. IMPOSTE COMUNALI AFFINI SRL;Z281E597AB;AFFIDAMENTO SERVIZIO DI RISCOSSIONE COATTIVA ENTRATE COMUNALI PERIODO APRILE-DICEMBRE 2017;16-02-2018;1115;0;342;1;Spese correnti;3;Acquisto di beni e servizi;2;Acquisto di servizi;3;Aggi di riscossione;999;Altri aggi di riscossione n.a.c.;16-02-2018;
331;1;0;"1.320,74";"1.320,74";I.C.A. IMPOSTE COMUNALI AFFINI SRL;Z281E597AB;AFFIDAMENTO SERVIZIO DI RISCOSSIONE COATTIVA ENTRATE COMUNALI PERIODO APRILE-DICEMBRE 2017;16-02-2018;1115;0;342;1;Spese correnti;3;Acquisto di beni e servizi;2;Acquisto di servizi;3;Aggi di riscossione;999;Altri aggi di riscossione n.a.c.;16-02-2018;
342;1;0;"6,00";"6,00";PERSONALE DIPENDENTE; ;STIPENDI MESE DI: FEBBRAIO 18;16-02-2018;113;0;40;1;Spese correnti;3;Acquisto di beni e servizi;2;Acquisto di servizi;2;"Organizzazione eventi, pubblicita` e servizi per trasferta";1;Rimborso per viaggio e trasloco;16-02-2018;
385;1;0;"12,50";"12,50";PERSONALE DIPENDENTE; ;STIPENDI MESE DI: FEBBRAIO 18;16-02-2018;2653;0;46;1;Spese correnti;3;Acquisto di beni e servizi;2;Acquisto di servizi;2;"Organizzazione eventi, pubblicita` e servizi per trasferta";1;Rimborso per viaggio e trasloco;16-02-2018;
390;1;0;"1,20";"1,20";PERSONALE DIPENDENTE; ;STIPENDI MESE DI: FEBBRAIO 18;16-02-2018;3103;0;47;1;Spese correnti;3;Acquisto di beni e servizi;2;Acquisto di servizi;2;"Organizzazione eventi, pubblicita` e servizi per trasferta";1;Rimborso per viaggio e trasloco;16-02-2018;
413;1;0;"1.222,16";"1.222,16";AGENZIA DELLE ENTRATE; ;LIQUIDAZIONE IVA DEL MESE DI GENNAIO 2018.-;19-02-2018;3760;0;197;1;Spese correnti;10;Altre spese correnti;3;Versamenti IVA a debito;1;Versamenti IVA a debito per le gestioni commerciali;1;Versamenti IVA a debito per le gestioni commerciali;19-02-2018;
416;1;0;"149,43";"149,43";I.C.A. IMPOSTE COMUNALI AFFINI SRL;Z281E597AB;AFFIDAMENTO SERVIZIO DI RISCOSSIONE COATTIVA ENTRATE COMUNALI PERIODO APRILE-DICEMBRE 2017;20-02-2018;1115;0;342;1;Spese correnti;3;Acquisto di beni e servizi;2;Acquisto di servizi;3;Aggi di riscossione;999;Altri aggi di riscossione n.a.c.;20-02-2018;
417;1;0;"80,72";"80,72";I.C.A. IMPOSTE COMUNALI AFFINI SRL;Z281E597AB;AFFIDAMENTO SERVIZIO DI RISCOSSIONE COATTIVA ENTRATE COMUNALI PERIODO APRILE-DICEMBRE 2017;20-02-2018;1115;0;342;1;Spese correnti;3;Acquisto di beni e servizi;2;Acquisto di servizi;3;Aggi di riscossione;999;Altri aggi di riscossione n.a.c.;20-02-2018;
418;1;0;"323,40";"323,40";I.C.A. IMPOSTE COMUNALI AFFINI SRL;Z281E597AB;AFFIDAMENTO SERVIZIO DI RISCOSSIONE COATTIVA ENTRATE COMUNALI PERIODO APRILE-DICEMBRE 2017;20-02-2018;1115;0;342;1;Spese correnti;3;Acquisto di beni e servizi;2;Acquisto di servizi;3;Aggi di riscossione;999;Altri aggi di riscossione n.a.c.;20-02-2018;
419;1;0;"945,00";"4.426,70";OMESSO NOMINATIVO NEL RISPETTO DELLA NORMATIVA SULLA PROTEZIONE DATI PERSONALI; ;EROGAZIONE CONTRIBUTI ECONOMICI AD INTEGRAZIONE DEL MINIMO VITALE. IMPEGNO DI SPESA E CONTESTUALE LIQUIDAZIONE;20-02-2018;3220;0;202;1;Spese correnti;4;Trasferimenti correnti;2;Trasferimenti correnti a Famiglie;2;Interventi assistenziali;999;Altri assegni e sussidi assistenziali;20-02-2018;
419;2;0;"998,00";"4.426,70";OMESSO NOMINATIVO NEL RISPETTO DELLA NORMATIVA SULLA PROTEZIONE DATI PERSONALI; ;EROGAZIONE CONTRIBUTI ECONOMICI AD INTEGRAZIONE DEL MINIMO VITALE. IMPEGNO DI SPESA E CONTESTUALE LIQUIDAZIONE;20-02-2018;3220;0;202;1;Spese correnti;4;Trasferimenti correnti;2;Trasferimenti correnti a Famiglie;2;Interventi assistenziali;999;Altri assegni e sussidi assistenziali;20-02-2018;
419;3;0;"720,00";"4.426,70";OMESSO NOMINATIVO NEL RISPETTO DELLA NORMATIVA SULLA PROTEZIONE DATI PERSONALI; ;EROGAZIONE CONTRIBUTI ECONOMICI AD INTEGRAZIONE DEL MINIMO VITALE. IMPEGNO DI SPESA E CONTESTUALE LIQUIDAZIONE;20-02-2018;3220;0;202;1;Spese correnti;4;Trasferimenti correnti;2;Trasferimenti correnti a Famiglie;2;Interventi assistenziali;999;Altri assegni e sussidi assistenziali;20-02-2018;
419;4;0;"528,00";"4.426,70";OMESSO NOMINATIVO NEL RISPETTO DELLA NORMATIVA SULLA PROTEZIONE DATI PERSONALI; ;EROGAZIONE CONTRIBUTI ECONOMICI AD INTEGRAZIONE DEL MINIMO VITALE. IMPEGNO DI SPESA E CONTESTUALE LIQUIDAZIONE;20-02-2018;3220;0;202;1;Spese correnti;4;Trasferimenti correnti;2;Trasferimenti correnti a Famiglie;2;Interventi assistenziali;999;Altri assegni e sussidi assistenziali;20-02-2018;
419;5;0;"350,00";"4.426,70";OMESSO NOMINATIVO NEL RISPETTO DELLA NORMATIVA SULLA PROTEZIONE DATI PERSONALI; ;EROGAZIONE CONTRIBUTI ECONOMICI AD INTEGRAZIONE DEL MINIMO VITALE. IMPEGNO DI SPESA E CONTESTUALE LIQUIDAZIONE;20-02-2018;3220;0;202;1;Spese correnti;4;Trasferimenti correnti;2;Trasferimenti correnti a Famiglie;2;Interventi assistenziali;999;Altri assegni e sussidi assistenziali;20-02-2018;
419;6;0;"660,00";"4.426,70";OMESSO NOMINATIVO NEL RISPETTO DELLA NORMATIVA SULLA PROTEZIONE DATI PERSONALI; ;EROGAZIONE CONTRIBUTI ECONOMICI AD INTEGRAZIONE DEL MINIMO VITALE. IMPEGNO DI SPESA E CONTESTUALE LIQUIDAZIONE;20-02-2018;3220;0;202;1;Spese correnti;4;Trasferimenti correnti;2;Trasferimenti correnti a Famiglie;2;Interventi assistenziali;999;Altri assegni e sussidi assistenziali;20-02-2018;
419;7;0;"225,70";"4.426,70";OMESSO NOMINATIVO NEL RISPETTO DELLA NORMATIVA SULLA PROTEZIONE DATI PERSONALI; ;EROGAZIONE CONTRIBUTI ECONOMICI AD INTEGRAZIONE DEL MINIMO VITALE. IMPEGNO DI SPESA E CONTESTUALE LIQUIDAZIONE;20-02-2018;3220;0;202;1;Spese correnti;4;Trasferimenti correnti;2;Trasferimenti correnti a Famiglie;2;Interventi assistenziali;999;Altri assegni e sussidi assistenziali;20-02-2018;
420;1;0;"759,00";"2.140,00";OMESSO NOMINATIVO NEL RISPETTO DELLA NORMATIVA SULLA PROTEZIONE DATI PERSONALI; ;EROGAZIONE CONTRIBUTI ECONOMICI AD INTEGRAZIONE DEL MINIMO VITALE. IMPEGNO DI SPESA E CONTESTUALE LIQUIDAZIONE;20-02-2018;3220;0;202;1;Spese correnti;4;Trasferimenti correnti;2;Trasferimenti correnti a Famiglie;2;Interventi assistenziali;999;Altri assegni e sussidi assistenziali;20-02-2018;
420;2;0;"300,00";"2.140,00";OMESSO NOMINATIVO NEL RISPETTO DELLA NORMATIVA SULLA PROTEZIONE DATI PERSONALI; ;EROGAZIONE CONTRIBUTI ECONOMICI AD INTEGRAZIONE DEL MINIMO VITALE. IMPEGNO DI SPESA E CONTESTUALE LIQUIDAZIONE;20-02-2018;3220;0;202;1;Spese correnti;4;Trasferimenti correnti;2;Trasferimenti correnti a Famiglie;2;Interventi assistenziali;999;Altri assegni e sussidi assistenziali;20-02-2018;
420;3;0;"300,00";"2.140,00";OMESSO NOMINATIVO NEL RISPETTO DELLA NORMATIVA SULLA PROTEZIONE DATI PERSONALI; ;EROGAZIONE CONTRIBUTI ECONOMICI AD INTEGRAZIONE DEL MINIMO VITALE. IMPEGNO DI SPESA E CONTESTUALE LIQUIDAZIONE;20-02-2018;3220;0;202;1;Spese correnti;4;Trasferimenti correnti;2;Trasferimenti correnti a Famiglie;2;Interventi assistenziali;999;Altri assegni e sussidi assistenziali;20-02-2018;
420;4;0;"70,00";"2.140,00";OMESSO NOMINATIVO NEL RISPETTO DELLA NORMATIVA SULLA PROTEZIONE DATI PERSONALI; ;EROGAZIONE CONTRIBUTI ECONOMICI AD INTEGRAZIONE DEL MINIMO VITALE. IMPEGNO DI SPESA E CONTESTUALE LIQUIDAZIONE;20-02-2018;3220;0;202;1;Spese correnti;4;Trasferimenti correnti;2;Trasferimenti correnti a Famiglie;2;Interventi assistenziali;999;Altri assegni e sussidi assistenziali;20-02-2018;
420;5;0;"126,00";"2.140,00";OMESSO NOMINATIVO NEL RISPETTO DELLA NORMATIVA SULLA PROTEZIONE DATI PERSONALI; ;EROGAZIONE CONTRIBUTI ECONOMICI AD INTEGRAZIONE DEL MINIMO VITALE. IMPEGNO DI SPESA E CONTESTUALE LIQUIDAZIONE;20-02-2018;3220;0;202;1;Spese correnti;4;Trasferimenti correnti;2;Trasferimenti correnti a Famiglie;2;Interventi assistenziali;999;Altri assegni e sussidi assistenziali;20-02-2018;
420;6;0;"185,00";"2.140,00";OMESSO NOMINATIVO NEL RISPETTO DELLA NORMATIVA SULLA PROTEZIONE DATI PERSONALI; ;EROGAZIONE CONTRIBUTI ECONOMICI AD INTEGRAZIONE DEL MINIMO VITALE. IMPEGNO DI SPESA E CONTESTUALE LIQUIDAZIONE;20-02-2018;3220;0;202;1;Spese correnti;4;Trasferimenti correnti;2;Trasferimenti correnti a Famiglie;2;Interventi assistenziali;999;Altri assegni e sussidi assistenziali;20-02-2018;
420;7;0;"400,00";"2.140,00";OMESSO NOMINATIVO NEL RISPETTO DELLA NORMATIVA SULLA PROTEZIONE DATI PERSONALI; ;EROGAZIONE CONTRIBUTI ECONOMICI AD INTEGRAZIONE DEL MINIMO VITALE. IMPEGNO DI SPESA E CONTESTUALE LIQUIDAZIONE;20-02-2018;3220;0;202;1;Spese correnti;4;Trasferimenti correnti;2;Trasferimenti correnti a Famiglie;2;Interventi assistenziali;999;Altri assegni e sussidi assistenziali;20-02-2018;
422;1;0;"75,17";"75,17";BANCO POSTA - POSTE ITALIANE SPA;ZF421B5C8C;IMPEGNO DI SPESA PER LA GESTIONE DEI CONTI CORRENTI POSTALI PER L'ANNO 2018.;21-02-2018;1115;0;71;1;Spese correnti;3;Acquisto di beni e servizi;2;Acquisto di servizi;3;Aggi di riscossione;999;Altri aggi di riscossione n.a.c.;21-02-2018;
423;1;0;"100,43";"100,43";GLOBAL POWER SPA;622385037F;(SOS. 258) - ACCONTO Fatt.n. V0/17845  del 01/02/2018 CONSUMI E.E. MESE GENNAIO 2018 - ECOCENTRO;22-02-2018;2685;0;60;1;Spese correnti;3;Acquisto di beni e servizi;2;Acquisto di servizi;5;Utenze e canoni;4;Energia elettrica;22-02-2018;
424;1;0;"154,24";"1.346,13";GLOBAL POWER SPA;622385037F;(SOS. 257/P) - ACCONTO Fatt.n. V0/17849  del 01/02/2018 COSUMI E.E. MESE GENNAIO 2018 - SCUOLE;22-02-2018;259;0;51;1;Spese correnti;3;Acquisto di beni e servizi;2;Acquisto di servizi;5;Utenze e canoni;4;Energia elettrica;22-02-2018;
424;2;0;"1.191,89";"1.346,13";GLOBAL POWER SPA;622385037F;(SOS. 255/P) - ACCONTO Fatt.n. V0/17850  del 01/02/2018 CONSUMI E.E. MESE GENNAIO 2018 - VARIE;22-02-2018;259;0;51;1;Spese correnti;3;Acquisto di beni e servizi;2;Acquisto di servizi;5;Utenze e canoni;4;Energia elettrica;22-02-2018;
425;1;0;"77,63";"1.300,44";GLOBAL POWER SPA;622385037F;(SOS. 254) - ACCONTO Fatt.n. V0/17846  del 01/02/2018 CONSUMI E.E. MESE GENNAIO 2018 - PALAZZINA TRISSINO;22-02-2018;938;0;52;1;Spese correnti;3;Acquisto di beni e servizi;2;Acquisto di servizi;5;Utenze e canoni;4;Energia elettrica;22-02-2018;
425;2;0;"84,71";"1.300,44";GLOBAL POWER SPA;622385037F;(SOS. 259) - ACCONTO Fatt.n. V0/17847  del 01/02/2018 CONSUMI E.E. MESE GENNAIO 2018 - CENTRO DIREZIONALE MARCONI;22-02-2018;938;0;52;1;Spese correnti;3;Acquisto di beni e servizi;2;Acquisto di servizi;5;Utenze e canoni;4;Energia elettrica;22-02-2018;
425;3;0;"1.138,10";"1.300,44";GLOBAL POWER SPA;622385037F;(SOS. 255/P) - ACCONTO Fatt.n. V0/17850  del 01/02/2018 CONSUMI E.E. MESE GENNAIO 2018 - VARIE;22-02-2018;938;0;52;1;Spese correnti;3;Acquisto di beni e servizi;2;Acquisto di servizi;5;Utenze e canoni;4;Energia elettrica;22-02-2018;
426;1;0;"232,12";"511,76";GLOBAL POWER SPA;622385037F;(SOS. 255/P) - ACCONTO Fatt.n. V0/17850  del 01/02/2018 CONSUMI E.E. MESE GENNAIO 2018 - VARIE;22-02-2018;1432;0;53;1;Spese correnti;3;Acquisto di beni e servizi;2;Acquisto di servizi;5;Utenze e canoni;4;Energia elettrica;22-02-2018;
426;2;0;"279,64";"511,76";GLOBAL POWER SPA;622385037F;(SOS. 257/P) - ACCONTO Fatt.n. V0/17849  del 01/02/2018 COSUMI E.E. MESE GENNAIO 2018 - SCUOLE;22-02-2018;1432;0;53;1;Spese correnti;3;Acquisto di beni e servizi;2;Acquisto di servizi;5;Utenze e canoni;4;Energia elettrica;22-02-2018;
427;1;0;"985,07";"985,07";GLOBAL POWER SPA;622385037F;(SOS. 257/P) - ACCONTO Fatt.n. V0/17849  del 01/02/2018 COSUMI E.E. MESE GENNAIO 2018 - SCUOLE;22-02-2018;1573;0;54;1;Spese correnti;3;Acquisto di beni e servizi;2;Acquisto di servizi;5;Utenze e canoni;4;Energia elettrica;22-02-2018;
428;1;0;"456,48";"1.303,90";GLOBAL POWER SPA;622385037F;(SOS. 255/P) - ACCONTO Fatt.n. V0/17850  del 01/02/2018 CONSUMI E.E. MESE GENNAIO 2018 - VARIE;23-02-2018;1651;1;55;1;Spese correnti;3;Acquisto di beni e servizi;2;Acquisto di servizi;5;Utenze e canoni;4;Energia elettrica;23-02-2018;
428;2;0;"847,42";"1.303,90";GLOBAL POWER SPA;622385037F;(SOS. 257/P) - ACCONTO Fatt.n. V0/17849  del 01/02/2018 COSUMI E.E. MESE GENNAIO 2018 - SCUOLE;23-02-2018;1651;1;55;1;Spese correnti;3;Acquisto di beni e servizi;2;Acquisto di servizi;5;Utenze e canoni;4;Energia elettrica;23-02-2018;
429;1;0;"608,48";"608,48";GLOBAL POWER SPA;622385037F;(SOS. 255/P) - ACCONTO Fatt.n. V0/17850  del 01/02/2018 CONSUMI E.E. MESE GENNAIO 2018 - VARIE;23-02-2018;1810;0;56;1;Spese correnti;3;Acquisto di beni e servizi;2;Acquisto di servizi;5;Utenze e canoni;4;Energia elettrica;23-02-2018;
430;1;0;"69,21";"69,21";GLOBAL POWER SPA;622385037F;(SOS. 256/P) - ACCONTO Fatt.n. V0/17851  del 01/02/2018 CONSUMI E.E. MESE GENNAIO 2018 - CIMITERI;23-02-2018;2240;0;51;1;Spese correnti;3;Acquisto di beni e servizi;2;Acquisto di servizi;5;Utenze e canoni;4;Energia elettrica;23-02-2018;
431;1;0;"83,51";"83,51";GLOBAL POWER SPA;622385037F;(SOS. 256/P) - ACCONTO Fatt.n. V0/17851  del 01/02/2018 CONSUMI E.E. MESE GENNAIO 2018 - CIMITERI;23-02-2018;2240;0;57;1;Spese correnti;3;Acquisto di beni e servizi;2;Acquisto di servizi;5;Utenze e canoni;4;Energia elettrica;23-02-2018;
432;1;0;"196,45";"196,45";GLOBAL POWER SPA;622385037F;(SOS. 255/P) - ACCONTO Fatt.n. V0/17850  del 01/02/2018 CONSUMI E.E. MESE GENNAIO 2018 - VARIE;23-02-2018;3147;0;58;1;Spese correnti;3;Acquisto di beni e servizi;2;Acquisto di servizi;5;Utenze e canoni;4;Energia elettrica;23-02-2018;
433;1;0;"1.737,88";"1.737,88";GLOBAL POWER SPA;622385037F;(SOS. 260/P) - ACCONTO Fatt.n. V0/17848  del 01/02/2018 CONSUMI E.E. MESE GENNAIO 2018 - ILL.NE PUBBLICA;23-02-2018;3303;0;53;1;Spese correnti;3;Acquisto di beni e servizi;2;Acquisto di servizi;5;Utenze e canoni;4;Energia elettrica;23-02-2018;
434;1;0;"84,53";"4.003,05";GLOBAL POWER SPA;622385037F;(SOS. 255/P) - ACCONTO Fatt.n. V0/17850  del 01/02/2018 CONSUMI E.E. MESE GENNAIO 2018 - VARIE;23-02-2018;3303;0;59;1;Spese correnti;3;Acquisto di beni e servizi;2;Acquisto di servizi;5;Utenze e canoni;4;Energia elettrica;23-02-2018;
434;2;0;"3.918,52";"4.003,05";GLOBAL POWER SPA;622385037F;(SOS. 260/P) - ACCONTO Fatt.n. V0/17848  del 01/02/2018 CONSUMI E.E. MESE GENNAIO 2018 - ILL.NE PUBBLICA;23-02-2018;3303;0;59;1;Spese correnti;3;Acquisto di beni e servizi;2;Acquisto di servizi;5;Utenze e canoni;4;Energia elettrica;23-02-2018;
435;1;0;"22,09";"22,09";GLOBAL POWER SPA;622385037F;SALDO Fatt.n. V0/17845  del 01/02/2018 CONSUMI E.E. MESE GENNAIO 2018 - ECOCENTRO;23-02-2018;2685;0;60;1;Spese correnti;3;Acquisto di beni e servizi;2;Acquisto di servizi;5;Utenze e canoni;4;Energia elettrica;23-02-2018;
436;1;0;"33,93";"296,15";GLOBAL POWER SPA;622385037F;ACCONTO Fatt.n. V0/17849  del 01/02/2018 COSUMI E.E. MESE GENNAIO 2018 - SCUOLE;23-02-2018;259;0;51;1;Spese correnti;3;Acquisto di beni e servizi;2;Acquisto di servizi;5;Utenze e canoni;4;Energia elettrica;23-02-2018;
436;2;0;"262,22";"296,15";GLOBAL POWER SPA;622385037F;ACCONTO Fatt.n. V0/17850  del 01/02/2018 CONSUMI E.E. MESE GENNAIO 2018 - VARIE;23-02-2018;259;0;51;1;Spese correnti;3;Acquisto di beni e servizi;2;Acquisto di servizi;5;Utenze e canoni;4;Energia elettrica;23-02-2018;
437;1;0;"7,76";"276,78";GLOBAL POWER SPA;622385037F;SALDO Fatt.n. V0/17846  del 01/02/2018 CONSUMI E.E. MESE GENNAIO 2018 - PALAZZINA TRISSINO;23-02-2018;938;0;52;1;Spese correnti;3;Acquisto di beni e servizi;2;Acquisto di servizi;5;Utenze e canoni;4;Energia elettrica;23-02-2018;
437;2;0;"18,64";"276,78";GLOBAL POWER SPA;622385037F;SALDO Fatt.n. V0/17847  del 01/02/2018 CONSUMI E.E. MESE GENNAIO 2018 - CENTRO DIREZIONALE MARCONI;23-02-2018;938;0;52;1;Spese correnti;3;Acquisto di beni e servizi;2;Acquisto di servizi;5;Utenze e canoni;4;Energia elettrica;23-02-2018;
437;3;0;"250,38";"276,78";GLOBAL POWER SPA;622385037F;ACCONTO Fatt.n. V0/17850  del 01/02/2018 CONSUMI E.E. MESE GENNAIO 2018 - VARIE;23-02-2018;938;0;52;1;Spese correnti;3;Acquisto di beni e servizi;2;Acquisto di servizi;5;Utenze e canoni;4;Energia elettrica;23-02-2018;
438;1;0;"23,21";"51,17";GLOBAL POWER SPA;622385037F;ACCONTO Fatt.n. V0/17850  del 01/02/2018 CONSUMI E.E. MESE GENNAIO 2018 - VARIE;23-02-2018;1432;0;53;1;Spese correnti;3;Acquisto di beni e servizi;2;Acquisto di servizi;5;Utenze e canoni;4;Energia elettrica;23-02-2018;
438;2;0;"27,96";"51,17";GLOBAL POWER SPA;622385037F;ACCONTO Fatt.n. V0/17849  del 01/02/2018 COSUMI E.E. MESE GENNAIO 2018 - SCUOLE;23-02-2018;1432;0;53;1;Spese correnti;3;Acquisto di beni e servizi;2;Acquisto di servizi;5;Utenze e canoni;4;Energia elettrica;23-02-2018;
439;1;0;"98,51";"98,51";GLOBAL POWER SPA;622385037F;ACCONTO Fatt.n. V0/17849  del 01/02/2018 COSUMI E.E. MESE GENNAIO 2018 - SCUOLE;23-02-2018;1573;0;54;1;Spese correnti;3;Acquisto di beni e servizi;2;Acquisto di servizi;5;Utenze e canoni;4;Energia elettrica;23-02-2018;
440;1;0;"84,74";"185,17";GLOBAL POWER SPA;622385037F;SALDO Fatt.n. V0/17849  del 01/02/2018 COSUMI E.E. MESE GENNAIO 2018 - SCUOLE;23-02-2018;1651;1;55;1;Spese correnti;3;Acquisto di beni e servizi;2;Acquisto di servizi;5;Utenze e canoni;4;Energia elettrica;23-02-2018;
440;2;0;"100,43";"185,17";GLOBAL POWER SPA;622385037F;ACCONTO Fatt.n. V0/17850  del 01/02/2018 CONSUMI E.E. MESE GENNAIO 2018 - VARIE;23-02-2018;1651;1;55;1;Spese correnti;3;Acquisto di beni e servizi;2;Acquisto di servizi;5;Utenze e canoni;4;Energia elettrica;23-02-2018;
441;1;0;"133,86";"133,86";GLOBAL POWER SPA;622385037F;ACCONTO Fatt.n. V0/17850  del 01/02/2018 CONSUMI E.E. MESE GENNAIO 2018 - VARIE;23-02-2018;1810;0;56;1;Spese correnti;3;Acquisto di beni e servizi;2;Acquisto di servizi;5;Utenze e canoni;4;Energia elettrica;23-02-2018;
442;1;0;"15,23";"15,23";GLOBAL POWER SPA;622385037F;ACCONTO Fatt.n. V0/17851  del 01/02/2018 CONSUMI E.E. MESE GENNAIO 2018 - CIMITERI;23-02-2018;2240;0;51;1;Spese correnti;3;Acquisto di beni e servizi;2;Acquisto di servizi;5;Utenze e canoni;4;Energia elettrica;23-02-2018;
443;1;0;"18,37";"18,37";GLOBAL POWER SPA;622385037F;SALDO Fatt.n. V0/17851  del 01/02/2018 CONSUMI E.E. MESE GENNAIO 2018 - CIMITERI;23-02-2018;2240;0;57;1;Spese correnti;3;Acquisto di beni e servizi;2;Acquisto di servizi;5;Utenze e canoni;4;Energia elettrica;23-02-2018;
444;1;0;"43,22";"43,22";GLOBAL POWER SPA;622385037F;ACCONTO Fatt.n. V0/17850  del 01/02/2018 CONSUMI E.E. MESE GENNAIO 2018 - VARIE;23-02-2018;3147;0;58;1;Spese correnti;3;Acquisto di beni e servizi;2;Acquisto di servizi;5;Utenze e canoni;4;Energia elettrica;23-02-2018;
445;1;0;"382,33";"382,33";GLOBAL POWER SPA;622385037F;ACCONTO Fatt.n. V0/17848  del 01/02/2018 CONSUMI E.E. MESE GENNAIO 2018 - ILL.NE PUBBLICA;23-02-2018;3303;0;53;1;Spese correnti;3;Acquisto di beni e servizi;2;Acquisto di servizi;5;Utenze e canoni;4;Energia elettrica;23-02-2018;
446;1;0;"18,59";"880,67";GLOBAL POWER SPA;622385037F;SALDO Fatt.n. V0/17850  del 01/02/2018 CONSUMI E.E. MESE GENNAIO 2018 - VARIE;23-02-2018;3303;0;59;1;Spese correnti;3;Acquisto di beni e servizi;2;Acquisto di servizi;5;Utenze e canoni;4;Energia elettrica;23-02-2018;
446;2;0;"862,08";"880,67";GLOBAL POWER SPA;622385037F;SALDO Fatt.n. V0/17848  del 01/02/2018 CONSUMI E.E. MESE GENNAIO 2018 - ILL.NE PUBBLICA;23-02-2018;3303;0;59;1;Spese correnti;3;Acquisto di beni e servizi;2;Acquisto di servizi;5;Utenze e canoni;4;Energia elettrica;23-02-2018;
447;1;0;"22.495,94";"22.495,94";CONSORZIO DI POLIZIA LOCALE NORDEST VICENTINO; ;LIQUIDAZIONE QUOTA FINANZIARIA DI PERTECIPAZIONE CONSORZIO POLIZIA LOCALE NORDEST VICENTINO. ANNO  2018.;26-02-2018;1306;0;72;1;Spese correnti;4;Trasferimenti correnti;1;Trasferimenti correnti a Amministrazioni Pubbliche;2;Trasferimenti correnti a Amministrazioni Locali;18;Trasferimenti correnti a Consorzi di enti locali;26-02-2018;
448;1;0;"632,23";"632,23";UNI IT SRL - GRUPPO UNICREDIT;ZD61D18DB1;SALDO Fatt.n. FATTPA 61_18  del 31/01/2018 CONSERVAZIONE PER NR. 11516 DOCUMENTI ANNO 2017;26-02-2018;401;0;97;1;Spese correnti;3;Acquisto di beni e servizi;2;Acquisto di servizi;5;Utenze e canoni;999;Utenze e canoni per altri servizi n.a.c.;26-02-2018;
450;1;0;"789,13";"789,13";MINISTERO DELL'INTERNO; ;COMUNE DI SANDRIGO - CORRISPETTIVO PER IL RILASCIO DI N. 47 CIE EMESSE DAL 01/02/2018 AL 15/02/2018 - LIQUIDAZIONE;26-02-2018;901;0;147;1;Spese correnti;4;Trasferimenti correnti;1;Trasferimenti correnti a Amministrazioni Pubbliche;1;Trasferimenti correnti a Amministrazioni Centrali;1;Trasferimenti correnti a Ministeri;26-02-2018;
451;1;0;"430,00";"430,00";SOLUZIONE SRL;Z522196DDE;ACCONTO Fatt.n. 0002100263  del 31/01/2018 AGGIORNAMENTO SERVIZI: RAGIONERIA-PERSONALE-TRIBUTI-AFFARI GENERALI-DEMOGRAFICI-CONTRATTI-APPALTI DAL 1/1/2018 AL 31/12/2018;26-02-2018;320;0;4;1;Spese correnti;3;Acquisto di beni e servizi;1;Acquisto di beni;1;"Giornali, riviste e pubblicazioni";2;Pubblicazioni;26-02-2018;
452;1;0;"150,00";"150,00";SOLUZIONE SRL;Z522196DDE;ACCONTO Fatt.n. 0002100263  del 31/01/2018 AGGIORNAMENTO SERVIZI: RAGIONERIA-PERSONALE-TRIBUTI-AFFARI GENERALI-DEMOGRAFICI-CONTRATTI-APPALTI DAL 1/1/2018 AL 31/12/2018;26-02-2018;903;0;5;1;Spese correnti;3;Acquisto di beni e servizi;2;Acquisto di servizi;5;Utenze e canoni;3;Accesso a banche dati e a pubblicazioni on line;26-02-2018;
453;1;0;"150,00";"150,00";SOLUZIONE SRL;Z522196DDE;ACCONTO Fatt.n. 0002100263  del 31/01/2018 AGGIORNAMENTO SERVIZI: RAGIONERIA-PERSONALE-TRIBUTI-AFFARI GENERALI-DEMOGRAFICI-CONTRATTI-APPALTI DAL 1/1/2018 AL 31/12/2018;26-02-2018;327;0;6;1;Spese correnti;3;Acquisto di beni e servizi;1;Acquisto di beni;1;"Giornali, riviste e pubblicazioni";2;Pubblicazioni;26-02-2018;
454;1;0;"233,80";"233,80";SOLUZIONE SRL;Z522196DDE;SALDO Fatt.n. 0002100263  del 31/01/2018 AGGIORNAMENTO SERVIZI: RAGIONERIA-PERSONALE-TRIBUTI-AFFARI GENERALI-DEMOGRAFICI-CONTRATTI-APPALTI DAL 1/1/2018 AL 31/12/2018;26-02-2018;329;2;7;1;Spese correnti;3;Acquisto di beni e servizi;2;Acquisto di servizi;5;Utenze e canoni;3;Accesso a banche dati e a pubblicazioni on line;26-02-2018;
455;1;0;"440,00";"440,00";COMUNIONE IRRIGUA DEL TUGURIO C/O SECCO STEFANO; ;SPESE RELATIVE ALLA COMUNIONE IRRIGUA POZZO TUGURIO E POZZO PASTORERIA - A. 2017. IMPEGNO DI SPESA E LIQUIDAZIONE.;27-02-2018;1020;0;816;1;Spese correnti;3;Acquisto di beni e servizi;2;Acquisto di servizi;99;Altri servizi;999;Altri servizi diversi n.a.c.;27-02-2018;
456;1;0;"203,50";"203,50";COMUNIONE POZZO PASTORERIA; ;SPESE RELATIVE ALLA COMUNIONE IRRIGUA POZZO TUGURIO E POZZO PASTORERIA - A. 2017. IMPEGNO DI SPESA E LIQUIDAZIONE.;27-02-2018;1020;0;817;1;Spese correnti;3;Acquisto di beni e servizi;2;Acquisto di servizi;99;Altri servizi;999;Altri servizi diversi n.a.c.;27-02-2018;
457;1;0;"34,35";"34,35";RESIDENCE BRIANI C/ STUDIO STEFANI; ;RESIDENCE BRIANI - LIQUIDAZIONE SPESE CONDOMINIALI.;27-02-2018;932;0;818;1;Spese correnti;3;Acquisto di beni e servizi;2;Acquisto di servizi;99;Altri servizi;999;Altri servizi diversi n.a.c.;27-02-2018;
458;1;0;"3.765,75";"3.765,75";DE NARDIS GIACOMO; ;Impegno di spesa per restituzione quota parte del contributo di costruzione versato ai sensi dell'art. 16 del dpr 380/2001 da parte del sig. DE NARDIS GIACOMO C.F. DNRGCM88L08L840G;27-02-2018;4679;0;235;2;Spese in conto capitale;5;Altre spese in conto capitale;4;Altri rimborsi in conto capitale di somme non dovute o incassate in eccesso;4;Rimborsi in conto capitale a Famiglie di somme non dovute o incassate in eccesso;1;Rimborsi in conto capitale a Famiglie di somme non dovute o incassate in eccesso;27-02-2018;
459;1;0;"1.837,40";"1.837,40";POSTE ITALIANE SPA;Z2C1E0C55B;INTEGRAZIONE CONTO CREDITO POSTALE MACCHINA AFFRANCATRICE;27-02-2018;322;0;313;1;Spese correnti;3;Acquisto di beni e servizi;2;Acquisto di servizi;16;Servizi amministrativi;2;Spese postali;27-02-2018;
460;1;0;"2.125,25";"2.125,25";CASSA DI RISPARMIO DEL VENETO SPA; ;PERMESSI CARICHE PUBBLICHE - STIVAN GIULIANO 10/2017 - COMUNE DI SANDRIGO;27-02-2018;21;0;132;1;Spese correnti;3;Acquisto di beni e servizi;2;Acquisto di servizi;1;Organi e incarichi istituzionali dell'amministrazione;2;Organi istituzionali dell'amministrazione - Rimborsi;27-02-2018;
461;1;0;"720,00";"2.880,00";OMESSO NOMINATIVO NEL RISPETTO DELLA NORMATIVA SULLA PROTEZIONE DATI PERSONALI; ;"IMPEGNATIVA DI CURA DOMICILIARE. ACCERTAMENTO ENTRATA, IMPEGNO DI SPESA E CONTESTUALE LIQUIDAZIONE CONTRIBUTO.";27-02-2018;3234;0;236;1;Spese correnti;4;Trasferimenti correnti;2;Trasferimenti correnti a Famiglie;2;Interventi assistenziali;999;Altri assegni e sussidi assistenziali;27-02-2018;
461;2;0;"720,00";"2.880,00";OMESSO NOMINATIVO NEL RISPETTO DELLA NORMATIVA SULLA PROTEZIONE DATI PERSONALI; ;"IMPEGNATIVA DI CURA DOMICILIARE. ACCERTAMENTO ENTRATA, IMPEGNO DI SPESA E CONTESTUALE LIQUIDAZIONE CONTRIBUTO.";27-02-2018;3234;0;236;1;Spese correnti;4;Trasferimenti correnti;2;Trasferimenti correnti a Famiglie;2;Interventi assistenziali;999;Altri assegni e sussidi assistenziali;27-02-2018;
461;3;0;"720,00";"2.880,00";OMESSO NOMINATIVO NEL RISPETTO DELLA NORMATIVA SULLA PROTEZIONE DATI PERSONALI; ;"IMPEGNATIVA DI CURA DOMICILIARE. ACCERTAMENTO ENTRATA, IMPEGNO DI SPESA E CONTESTUALE LIQUIDAZIONE CONTRIBUTO.";27-02-2018;3234;0;236;1;Spese correnti;4;Trasferimenti correnti;2;Trasferimenti correnti a Famiglie;2;Interventi assistenziali;999;Altri assegni e sussidi assistenziali;27-02-2018;
461;4;0;"720,00";"2.880,00";OMESSO NOMINATIVO NEL RISPETTO DELLA NORMATIVA SULLA PROTEZIONE DATI PERSONALI; ;"IMPEGNATIVA DI CURA DOMICILIARE. ACCERTAMENTO ENTRATA, IMPEGNO DI SPESA E CONTESTUALE LIQUIDAZIONE CONTRIBUTO.";27-02-2018;3234;0;236;1;Spese correnti;4;Trasferimenti correnti;2;Trasferimenti correnti a Famiglie;2;Interventi assistenziali;999;Altri assegni e sussidi assistenziali;27-02-2018;
462;1;0;"120,00";"1.440,00";OMESSO NOMINATIVO NEL RISPETTO DELLA NORMATIVA SULLA PROTEZIONE DATI PERSONALI; ;"IMPEGNATIVA DI CURA DOMICILIARE. ACCERTAMENTO ENTRATA, IMPEGNO DI SPESA E CONTESTUALE LIQUIDAZIONE CONTRIBUTO.";27-02-2018;3234;0;236;1;Spese correnti;4;Trasferimenti correnti;2;Trasferimenti correnti a Famiglie;2;Interventi assistenziali;999;Altri assegni e sussidi assistenziali;27-02-2018;
462;2;0;"480,00";"1.440,00";OMESSO NOMINATIVO NEL RISPETTO DELLA NORMATIVA SULLA PROTEZIONE DATI PERSONALI; ;"IMPEGNATIVA DI CURA DOMICILIARE. ACCERTAMENTO ENTRATA, IMPEGNO DI SPESA E CONTESTUALE LIQUIDAZIONE CONTRIBUTO.";27-02-2018;3234;0;236;1;Spese correnti;4;Trasferimenti correnti;2;Trasferimenti correnti a Famiglie;2;Interventi assistenziali;999;Altri assegni e sussidi assistenziali;27-02-2018;
462;3;0;"120,00";"1.440,00";OMESSO NOMINATIVO NEL RISPETTO DELLA NORMATIVA SULLA PROTEZIONE DATI PERSONALI; ;"IMPEGNATIVA DI CURA DOMICILIARE. ACCERTAMENTO ENTRATA, IMPEGNO DI SPESA E CONTESTUALE LIQUIDAZIONE CONTRIBUTO.";27-02-2018;3234;0;236;1;Spese correnti;4;Trasferimenti correnti;2;Trasferimenti correnti a Famiglie;2;Interventi assistenziali;999;Altri assegni e sussidi assistenziali;27-02-2018;
462;4;0;"720,00";"1.440,00";OMESSO NOMINATIVO NEL RISPETTO DELLA NORMATIVA SULLA PROTEZIONE DATI PERSONALI; ;"IMPEGNATIVA DI CURA DOMICILIARE. ACCERTAMENTO ENTRATA, IMPEGNO DI SPESA E CONTESTUALE LIQUIDAZIONE CONTRIBUTO.";27-02-2018;3234;0;236;1;Spese correnti;4;Trasferimenti correnti;2;Trasferimenti correnti a Famiglie;2;Interventi assistenziali;999;Altri assegni e sussidi assistenziali;27-02-2018;
463;1;0;"240,00";"2.280,00";OMESSO NOMINATIVO NEL RISPETTO DELLA NORMATIVA SULLA PROTEZIONE DATI PERSONALI; ;"IMPEGNATIVA DI CURA DOMICILIARE. ACCERTAMENTO ENTRATA, IMPEGNO DI SPESA E CONTESTUALE LIQUIDAZIONE CONTRIBUTO.";27-02-2018;3234;0;236;1;Spese correnti;4;Trasferimenti correnti;2;Trasferimenti correnti a Famiglie;2;Interventi assistenziali;999;Altri assegni e sussidi assistenziali;27-02-2018;
463;2;0;"720,00";"2.280,00";OMESSO NOMINATIVO NEL RISPETTO DELLA NORMATIVA SULLA PROTEZIONE DATI PERSONALI; ;"IMPEGNATIVA DI CURA DOMICILIARE. ACCERTAMENTO ENTRATA, IMPEGNO DI SPESA E CONTESTUALE LIQUIDAZIONE CONTRIBUTO.";27-02-2018;3234;0;236;1;Spese correnti;4;Trasferimenti correnti;2;Trasferimenti correnti a Famiglie;2;Interventi assistenziali;999;Altri assegni e sussidi assistenziali;27-02-2018;
463;3;0;"600,00";"2.280,00";OMESSO NOMINATIVO NEL RISPETTO DELLA NORMATIVA SULLA PROTEZIONE DATI PERSONALI; ;"IMPEGNATIVA DI CURA DOMICILIARE. ACCERTAMENTO ENTRATA, IMPEGNO DI SPESA E CONTESTUALE LIQUIDAZIONE CONTRIBUTO.";27-02-2018;3234;0;236;1;Spese correnti;4;Trasferimenti correnti;2;Trasferimenti correnti a Famiglie;2;Interventi assistenziali;999;Altri assegni e sussidi assistenziali;27-02-2018;
463;4;0;"720,00";"2.280,00";OMESSO NOMINATIVO NEL RISPETTO DELLA NORMATIVA SULLA PROTEZIONE DATI PERSONALI; ;"IMPEGNATIVA DI CURA DOMICILIARE. ACCERTAMENTO ENTRATA, IMPEGNO DI SPESA E CONTESTUALE LIQUIDAZIONE CONTRIBUTO.";27-02-2018;3234;0;236;1;Spese correnti;4;Trasferimenti correnti;2;Trasferimenti correnti a Famiglie;2;Interventi assistenziali;999;Altri assegni e sussidi assistenziali;27-02-2018;
464;1;0;"800,00";"4.800,00";OMESSO NOMINATIVO NEL RISPETTO DELLA NORMATIVA SULLA PROTEZIONE DATI PERSONALI; ;"IMPEGNATIVA DI CURA DOMICILIARE. ACCERTAMENTO ENTRATA, IMPEGNO DI SPESA E CONTESTUALE LIQUIDAZIONE CONTRIBUTO.";27-02-2018;3234;0;236;1;Spese correnti;4;Trasferimenti correnti;2;Trasferimenti correnti a Famiglie;2;Interventi assistenziali;999;Altri assegni e sussidi assistenziali;27-02-2018;
464;2;0;"1.200,00";"4.800,00";OMESSO NOMINATIVO NEL RISPETTO DELLA NORMATIVA SULLA PROTEZIONE DATI PERSONALI; ;"IMPEGNATIVA DI CURA DOMICILIARE. ACCERTAMENTO ENTRATA, IMPEGNO DI SPESA E CONTESTUALE LIQUIDAZIONE CONTRIBUTO.";27-02-2018;3234;0;236;1;Spese correnti;4;Trasferimenti correnti;2;Trasferimenti correnti a Famiglie;2;Interventi assistenziali;999;Altri assegni e sussidi assistenziali;27-02-2018;
464;3;0;"2.000,00";"4.800,00";OMESSO NOMINATIVO NEL RISPETTO DELLA NORMATIVA SULLA PROTEZIONE DATI PERSONALI; ;"IMPEGNATIVA DI CURA DOMICILIARE. ACCERTAMENTO ENTRATA, IMPEGNO DI SPESA E CONTESTUALE LIQUIDAZIONE CONTRIBUTO.";27-02-2018;3234;0;236;1;Spese correnti;4;Trasferimenti correnti;2;Trasferimenti correnti a Famiglie;2;Interventi assistenziali;999;Altri assegni e sussidi assistenziali;27-02-2018;
464;4;0;"800,00";"4.800,00";OMESSO NOMINATIVO NEL RISPETTO DELLA NORMATIVA SULLA PROTEZIONE DATI PERSONALI; ;"IMPEGNATIVA DI CURA DOMICILIARE. ACCERTAMENTO ENTRATA, IMPEGNO DI SPESA E CONTESTUALE LIQUIDAZIONE CONTRIBUTO.";27-02-2018;3234;0;236;1;Spese correnti;4;Trasferimenti correnti;2;Trasferimenti correnti a Famiglie;2;Interventi assistenziali;999;Altri assegni e sussidi assistenziali;27-02-2018;
465;1;0;"2.000,00";"5.200,00";OMESSO NOMINATIVO NEL RISPETTO DELLA NORMATIVA SULLA PROTEZIONE DATI PERSONALI; ;"IMPEGNATIVA DI CURA DOMICILIARE. ACCERTAMENTO ENTRATA, IMPEGNO DI SPESA E CONTESTUALE LIQUIDAZIONE CONTRIBUTO.";27-02-2018;3234;0;236;1;Spese correnti;4;Trasferimenti correnti;2;Trasferimenti correnti a Famiglie;2;Interventi assistenziali;999;Altri assegni e sussidi assistenziali;27-02-2018;
465;2;0;"2.000,00";"5.200,00";OMESSO NOMINATIVO NEL RISPETTO DELLA NORMATIVA SULLA PROTEZIONE DATI PERSONALI; ;"IMPEGNATIVA DI CURA DOMICILIARE. ACCERTAMENTO ENTRATA, IMPEGNO DI SPESA E CONTESTUALE LIQUIDAZIONE CONTRIBUTO.";27-02-2018;3234;0;236;1;Spese correnti;4;Trasferimenti correnti;2;Trasferimenti correnti a Famiglie;2;Interventi assistenziali;999;Altri assegni e sussidi assistenziali;27-02-2018;
465;3;0;"1.200,00";"5.200,00";OMESSO NOMINATIVO NEL RISPETTO DELLA NORMATIVA SULLA PROTEZIONE DATI PERSONALI; ;"IMPEGNATIVA DI CURA DOMICILIARE. ACCERTAMENTO ENTRATA, IMPEGNO DI SPESA E CONTESTUALE LIQUIDAZIONE CONTRIBUTO.";27-02-2018;3234;0;236;1;Spese correnti;4;Trasferimenti correnti;2;Trasferimenti correnti a Famiglie;2;Interventi assistenziali;999;Altri assegni e sussidi assistenziali;27-02-2018;
467;1;0;"1.000,00";"1.000,00";ERCOLE GIAN PIETRO & C. SAS;Z72218A2B6;SALDO Fatt.n. 13  del 29/12/2017 GAZEBO  DA GIARDINO;28-02-2018;4100;0;831;2;Spese in conto capitale;2;Investimenti fissi lordi e acquisto di terreni;1;Beni materiali;3;Mobili e arredi;999;Mobili e arredi n.a.c.;28-02-2018;
468;1;0;"9.736,69";"9.736,69";MASCOTTO MARIO SRL;ZDD217EACA;SALDO Fatt.n. 1700011/P  del 29/12/2017 RISTRUTTURAZIONE E MANUTENZIONE VIALETTO SCALE ACCESSO SCUOLE MEDIE SANDRIGO;28-02-2018;4086;0;826;2;Spese in conto capitale;2;Investimenti fissi lordi e acquisto di terreni;1;Beni materiali;9;Beni immobili;3;Fabbricati ad uso scolastico;28-02-2018;
469;1;0;"63,01";"63,01";CIVIS SPA;Z5D21A9503;SALDO Fatt.n. V9/0000401  del 02/02/2018 SERVIZIO VIGILANZA P.ZZA MATTEOTTI 10;28-02-2018;370;0;73;1;Spese correnti;3;Acquisto di beni e servizi;2;Acquisto di servizi;13;Servizi ausiliari per il funzionamento dell'ente;1;"Servizi di sorveglianza, custodia e accoglienza";28-02-2018;
470;1;0;"37,81";"37,81";CIVIS SPA;Z5D21A9503;SALDO Fatt.n. V9/0000402  del 02/02/2018 SERVIZIO ISPETTIVO VIA VOLTA;28-02-2018;370;0;73;1;Spese correnti;3;Acquisto di beni e servizi;2;Acquisto di servizi;13;Servizi ausiliari per il funzionamento dell'ente;1;"Servizi di sorveglianza, custodia e accoglienza";28-02-2018;
471;1;0;"3.454,55";"3.454,55";ROSTICCERIA GASTRONOMIA CUNICO INES DI POLTRONIERI S.;Z2321D9C9E;SALDO Fatt.n. FATTPA 1_18  del 31/01/2018 CONSEGNA PASTI MESE GENNAIO 2018;28-02-2018;3139;0;159;1;Spese correnti;3;Acquisto di beni e servizi;1;Acquisto di beni;2;Altri beni di consumo;11;Generi alimentari;28-02-2018;
472;1;0;"1.999,99";"1.999,99";ASSOCIAZIONE DILETTANTISTICA CALCIO LUPIA;XA51613DF7;SALDO Fatt.n. 1/PA  del 01/02/2018 CONTRIBUTO PRIMO SEMESTRE 2018 COME DA CONVENZIONE IN ESSERE PER GESTIONE IMPIANTI SPORTIVI COMUNALI A LUPIA DI SANDRIGO;28-02-2018;2839;0;194;1;Spese correnti;3;Acquisto di beni e servizi;2;Acquisto di servizi;99;Altri servizi;999;Altri servizi diversi n.a.c.;28-02-2018;
473;1;0;"6.445,40";"6.445,40";SAPA SRL;6401791D0B;SALDO Fatt.n. 233/2017  del 23/12/2017 TRASPORTO SCOLASTICO SCUOLE PRIMARIA E SECONDARIA - MESE DICEMBRE 2017;28-02-2018;1740;0;858;1;Spese correnti;3;Acquisto di beni e servizi;2;Acquisto di servizi;15;Contratti di servizio pubblico;2;Contratti di servizio di trasporto scolastico;28-02-2018;
474;1;0;"7.734,47";"7.734,47";SAPA SRL;6401791D0B;SALDO Fatt.n. 008/2018  del 31/01/2018 SERVIZIO TRASPORTO SCOLASTICO  - MESE GENNAIO 2018;28-02-2018;1740;0;858;1;Spese correnti;3;Acquisto di beni e servizi;2;Acquisto di servizi;15;Contratti di servizio pubblico;2;Contratti di servizio di trasporto scolastico;28-02-2018;
475;1;0;"218,75";"218,75";AGENZIA DELLE ENTRATE; ;PAGAMENTO AVVISO DI LIQUIDAZIONE N. VI0114979 AGENZIA DELLE ENTRATE  UFFICIO PROVINCIALE DEL TERRITORIO.;01-03-2018;761;0;241;1;Spese correnti;3;Acquisto di beni e servizi;2;Acquisto di servizi;99;Altri servizi;999;Altri servizi diversi n.a.c.;01-03-2018;
476;1;0;"30,00";"30,00";ANAC;731033681A;GARE D'APPALTO PER LAVORI PUBBLICI. LIQUIDAZIONE CONTRIBUTI DI GARA A FAVORE DELL'A.N.A.C..;01-03-2018;4512;0;770;2;Spese in conto capitale;2;Investimenti fissi lordi e acquisto di terreni;1;Beni materiali;9;Beni immobili;16;Impianti sportivi;01-03-2018;
477;1;0;"30,00";"30,00";ANAC;725131459C;GARE D'APPALTO PER LAVORI PUBBLICI. LIQUIDAZIONE CONTRIBUTI DI GARA A FAVORE DELL'A.N.A.C..;01-03-2018;4584;0;658;2;Spese in conto capitale;2;Investimenti fissi lordi e acquisto di terreni;1;Beni materiali;9;Beni immobili;12;Infrastrutture stradali;01-03-2018;
479;1;0;"1.400,00";"1.400,00";LISE SRL;ZAF1CE189A;SALDO Fatt.n. FATTPA 93_17  del 02/12/2017 GESTIONE SERVIZIO E MANUTENZIONE SOFTWARE BIBLIOTECA MESE NOVEMBRE 2017;02-03-2018;1796;0;42;1;Spese correnti;3;Acquisto di beni e servizi;2;Acquisto di servizi;19;Servizi informatici e di telecomunicazioni;1;Gestione e manutenzione applicazioni;02-03-2018;
480;1;0;"2.148,20";"2.148,20";GIORNI NUOVI SOCIETA' COOP. SOCIALE DI SOLIDARIETA';67802821B6;ACCONTO Fatt.n. 2/12  del 31/01/2018 SERVIZIO PULIZIE SEDE MUNICIPALE E VARIE;02-03-2018;259;5;547;1;Spese correnti;3;Acquisto di beni e servizi;2;Acquisto di servizi;13;Servizi ausiliari per il funzionamento dell'ente;2;Servizi di pulizia e lavanderia;02-03-2018;
481;1;0;"1.224,07";"1.224,07";GIORNI NUOVI SOCIETA' COOP. SOCIALE DI SOLIDARIETA';67802821B6;ACCONTO Fatt.n. 2/12  del 31/01/2018 SERVIZIO PULIZIE SEDE MUNICIPALE E VARIE;02-03-2018;1810;3;548;1;Spese correnti;3;Acquisto di beni e servizi;2;Acquisto di servizi;13;Servizi ausiliari per il funzionamento dell'ente;2;Servizi di pulizia e lavanderia;02-03-2018;
482;1;0;"207,95";"207,95";GIORNI NUOVI SOCIETA' COOP. SOCIALE DI SOLIDARIETA';67802821B6;ACCONTO Fatt.n. 2/12  del 31/01/2018 SERVIZIO PULIZIE SEDE MUNICIPALE E VARIE;02-03-2018;1285;0;549;1;Spese correnti;3;Acquisto di beni e servizi;2;Acquisto di servizi;13;Servizi ausiliari per il funzionamento dell'ente;2;Servizi di pulizia e lavanderia;02-03-2018;
483;1;0;"499,83";"499,83";GIORNI NUOVI SOCIETA' COOP. SOCIALE DI SOLIDARIETA';67802821B6;ACCONTO Fatt.n. 2/12  del 31/01/2018 SERVIZIO PULIZIE SEDE MUNICIPALE E VARIE;02-03-2018;1565;0;550;1;Spese correnti;3;Acquisto di beni e servizi;2;Acquisto di servizi;13;Servizi ausiliari per il funzionamento dell'ente;2;Servizi di pulizia e lavanderia;02-03-2018;
484;1;0;"414,69";"414,69";GIORNI NUOVI SOCIETA' COOP. SOCIALE DI SOLIDARIETA';67802821B6;SALDO Fatt.n. 2/12  del 31/01/2018 SERVIZIO PULIZIE SEDE MUNICIPALE E VARIE;02-03-2018;3147;1;551;1;Spese correnti;3;Acquisto di beni e servizi;2;Acquisto di servizi;13;Servizi ausiliari per il funzionamento dell'ente;2;Servizi di pulizia e lavanderia;02-03-2018;
485;1;0;"178,36";"178,36";GIORNI NUOVI SOCIETA' COOP. SOCIALE DI SOLIDARIETA';ZA71DBB6F4;SALDO Fatt.n. 2/13  del 31/01/2018 SERVIZIO PULIZIE BAGNI CIMITERO;02-03-2018;259;5;269;1;Spese correnti;3;Acquisto di beni e servizi;2;Acquisto di servizi;13;Servizi ausiliari per il funzionamento dell'ente;2;Servizi di pulizia e lavanderia;02-03-2018;
486;1;0;"3.245,00";"3.245,00";TERMOIDRAULICA PIGNOLO S.R.L.;Z7821509B5;SALDO Fatt.n. 1  del 25/01/2018 DEMOLIZIONE E SMALTIMENTO CENTRALE TERMICA PRESSO PALAZZO MARCONI;02-03-2018;4031;0;798;2;Spese in conto capitale;2;Investimenti fissi lordi e acquisto di terreni;1;Beni materiali;10;"Beni immobili di valore culturale, storico ed artistico";999;"Beni immobili di valore culturale, storico ed artistico n.a.c.";02-03-2018;
487;1;0;"102,00";"102,00";KAIROS SRL; ;SALDO Fatt.n. 2/61  del 08/02/2018 SEMINARIO DEL 2 FEBBRAIO 2018;02-03-2018;150;0;120;1;Spese correnti;3;Acquisto di beni e servizi;2;Acquisto di servizi;4;Acquisto di servizi per formazione e addestramento del personale dell'ente;999;Acquisto di servizi per altre spese per formazione e addestramento n.a.c.;02-03-2018;
488;1;0;"68,00";"68,00";MAGGIOLI SPA;ZF0213499F;SALDO Fatt.n. 0005950636  del 31/01/2018 TESTO: LA GIUSTIFICAZIONE DELLE ASSENZE NEGLI ENTI LOCALI;02-03-2018;320;0;787;1;Spese correnti;3;Acquisto di beni e servizi;1;Acquisto di beni;1;"Giornali, riviste e pubblicazioni";2;Pubblicazioni;02-03-2018;
489;1;0;"821,60";"821,60";IPAB di VICENZA; ;SALDO Fatt.n. 14/E  del 31/01/2018 RETTE OSPITI MESE GENNAIO 2018;02-03-2018;3201;0;152;1;Spese correnti;3;Acquisto di beni e servizi;2;Acquisto di servizi;15;Contratti di servizio pubblico;8;Contratti di servizio di assistenza sociale residenziale e semiresidenziale;02-03-2018;
490;1;0;"616,00";"616,00";I.P.A.B. SUOR DIODATA BERTOLO; ;SALDO Fatt.n. 17/E  del 09/02/2018 RETTE CASA RIPOSO OSPITI;02-03-2018;3201;0;151;1;Spese correnti;3;Acquisto di beni e servizi;2;Acquisto di servizi;15;Contratti di servizio pubblico;8;Contratti di servizio di assistenza sociale residenziale e semiresidenziale;02-03-2018;
491;1;0;"40,00";"40,00";BRPNEUMATICI S.P.A.;Z902147C20;SALDO Fatt.n. 18/52/00001  del 31/01/2018 MANUTENZIONE SU VEICOLO DOBLO' TARGATO DF228TX;02-03-2018;781;0;779;1;Spese correnti;3;Acquisto di beni e servizi;2;Acquisto di servizi;9;Manutenzione ordinaria e riparazioni;1;"Manutenzione ordinaria e riparazioni di mezzi di trasporto ad uso civile, di sicurezza e ordine pubblico";02-03-2018;
492;1;0;"71,59";"71,59";COSTRUZIONI GENERALI GIRARDINI SPA;Z9E21B7F37;SALDO Fatt.n. 0000007/E  del 31/01/2018 FORNITURA PIETRISCHETTO;02-03-2018;3420;0;114;1;Spese correnti;3;Acquisto di beni e servizi;1;Acquisto di beni;2;Altri beni di consumo;999;Altri beni e materiali di consumo n.a.c.;02-03-2018;
493;1;0;"217,00";"217,00";TIM SPA;ZD510A4D84;SALDO Fatt.n. 6820180205001010  del 08/02/2018 RIFATTURAZIONE FATTURA N0 8E00648084  BIM 4/2015  TEL 044413040824;02-03-2018;259;3;283;1;Spese correnti;3;Acquisto di beni e servizi;2;Acquisto di servizi;5;Utenze e canoni;1;Telefonia fissa;02-03-2018;
494;1;0;"378,00";"378,00";MARGHERITA SOC. COOP. SOCIALE ONLUS;5342930550;SALDO Fatt.n. 340/E  del 31/12/2017 PROGETTO OASI MESE DICEMBRE 2017;02-03-2018;3140;0;611;1;Spese correnti;3;Acquisto di beni e servizi;2;Acquisto di servizi;99;Altri servizi;999;Altri servizi diversi n.a.c.;02-03-2018;
495;1;0;"2.734,20";"2.734,20";MARGHERITA SOC. COOP. SOCIALE ONLUS;5342930550;SALDO Fatt.n. 1/E  del 31/01/2018 SERVIZIO DI ASSISTENZA DOMICILIARE MESE GENNAIO 2018;02-03-2018;3140;0;611;1;Spese correnti;3;Acquisto di beni e servizi;2;Acquisto di servizi;99;Altri servizi;999;Altri servizi diversi n.a.c.;02-03-2018;
496;1;0;"308,37";"308,37";MAGGIOLI SPA;Z50219DE15;SALDO Fatt.n. 0002104131  del 31/01/2018 MODULISTICA NECESSARIA ALLO SVOLGIMENTO DELLE ELEZIONI POLITICHE DEL 4 MARZO 2018;02-03-2018;909;0;138;1;Spese correnti;3;Acquisto di beni e servizi;1;Acquisto di beni;2;Altri beni di consumo;10;Beni per consultazioni elettorali;02-03-2018;
497;1;0;"378,00";"378,00";MARGHERITA SOC. COOP. SOCIALE ONLUS;5342930550;SALDO Fatt.n. 2/E  del 31/01/2018 PROGETTO OASI MESE GENNAIO 2018;02-03-2018;3140;0;611;1;Spese correnti;3;Acquisto di beni e servizi;2;Acquisto di servizi;99;Altri servizi;999;Altri servizi diversi n.a.c.;02-03-2018;
498;1;0;"1.104,86";"1.104,86";MARGHERITA SOC. COOP. SOCIALE ONLUS;Z2421EC016;SALDO Fatt.n. 3/E  del 31/01/2018 SERVIZIO SOSTEGNO SOCIO EDUCATIVO MESE GENNAIO 2018;02-03-2018;2741;0;172;1;Spese correnti;3;Acquisto di beni e servizi;2;Acquisto di servizi;99;Altri servizi;999;Altri servizi diversi n.a.c.;02-03-2018;
499;1;0;"937,57";"937,57";MATERIALE EDILE DONA' SRL;Z6321CBEA2;SALDO Fatt.n. 0000002  del 31/01/2018 FORNITURA MATERIALE EDILE VARIO;02-03-2018;2242;0;156;1;Spese correnti;3;Acquisto di beni e servizi;2;Acquisto di servizi;9;Manutenzione ordinaria e riparazioni;8;Manutenzione ordinaria e riparazioni di beni immobili;02-03-2018;
500;1;0;"463,60";"463,60";SOVECO SRL;Z9D1D59091;SALDO Fatt.n. 9/E  del 27/12/2017 PERCOLATO;02-03-2018;2798;0;174;1;Spese correnti;3;Acquisto di beni e servizi;2;Acquisto di servizi;99;Altri servizi;999;Altri servizi diversi n.a.c.;02-03-2018;
501;1;0;"2.340,00";"2.340,00";SERENISSIMA RISTORAZIONE S.P.A.;6996960A0B;SALDO Fatt.n. 00051/4  del 31/01/2018 Mensa: SCUOLA INFANZIA CAPOLUGO;02-03-2018;1425;0;603;1;Spese correnti;3;Acquisto di beni e servizi;2;Acquisto di servizi;14;Servizi di ristorazione;999;Altri servizi di ristorazione;02-03-2018;
502;1;0;"118,00";"118,00";AZIENDA ULSS N. 8 BERICA;Z931CD84D9;SALDO Fatt.n. KZ  201800000052  del 14/02/2018 PRESTAZIONE SERVIZI VETERINARI;02-03-2018;1990;0;106;1;Spese correnti;3;Acquisto di beni e servizi;2;Acquisto di servizi;99;Altri servizi;999;Altri servizi diversi n.a.c.;02-03-2018;
503;1;0;"67,10";"67,10";COVER UP SRL;ZEF1962A6B;SALDO Fatt.n. 96B  del 31/01/2018 NOLEGGIO STAMPANTE EPSON - MESE GENNAIO 2018;02-03-2018;340;0;255;1;Spese correnti;3;Acquisto di beni e servizi;2;Acquisto di servizi;19;Servizi informatici e di telecomunicazioni;5;Servizi per i sistemi e relativa manutenzione;02-03-2018;
504;1;0;"292,80";"292,80";BIOCONTROL SRL;Z79219890C;SALDO Fatt.n. 2/6  del 31/01/2018 SERVIZIO DI DERATTIZZAZIONE;02-03-2018;2000;0;61;1;Spese correnti;3;Acquisto di beni e servizi;2;Acquisto di servizi;99;Altri servizi;999;Altri servizi diversi n.a.c.;02-03-2018;
505;1;0;"98,82";"98,82";SOLUZIONE UFFICIO S.R.L.;ZB31F9A697;SALDO Fatt.n. 255/PA/2018  del 31/01/2018 CANONE NOLEGGIO DAL 1/01/2018 AL 31/03/2018;02-03-2018;340;0;521;1;Spese correnti;3;Acquisto di beni e servizi;2;Acquisto di servizi;19;Servizi informatici e di telecomunicazioni;5;Servizi per i sistemi e relativa manutenzione;02-03-2018;
506;1;0;"482,54";"482,54";I.P.A.B. SUOR DIODATA BERTOLO; ;SALDO Fatt.n. 20/E  del 19/02/2018 SERVIZI VARI OSPITI CASA DI RIPOSO;02-03-2018;3201;0;151;1;Spese correnti;3;Acquisto di beni e servizi;2;Acquisto di servizi;15;Contratti di servizio pubblico;8;Contratti di servizio di assistenza sociale residenziale e semiresidenziale;02-03-2018;
507;1;0;"98,82";"98,82";SOLUZIONE UFFICIO S.R.L.;Z592025A78;SALDO Fatt.n. 253/PA/2018  del 31/01/2018 CANONE NOLEGGIO DAL  01/01/2018 AL 31/03/2018;02-03-2018;340;0;608;1;Spese correnti;3;Acquisto di beni e servizi;2;Acquisto di servizi;19;Servizi informatici e di telecomunicazioni;5;Servizi per i sistemi e relativa manutenzione;02-03-2018;
508;1;0;"610,00";"610,00";ACCATRE S.R.L.;ZC020D0758;SALDO Fatt.n. 1/180267  del 07/02/2018 ATTIVITA' SERVICE E ANALISI LISTAPOSTA 2018;02-03-2018;343;0;721;1;Spese correnti;3;Acquisto di beni e servizi;2;Acquisto di servizi;19;Servizi informatici e di telecomunicazioni;9;Servizi per le postazioni di lavoro e relativa manutenzione;02-03-2018;
509;1;0;"2.287,50";"2.287,50";COVER UP SRL;ZEC2147A73;SALDO Fatt.n. 73B  del 31/01/2018 ANTIVIRUS;02-03-2018;340;0;788;1;Spese correnti;3;Acquisto di beni e servizi;2;Acquisto di servizi;19;Servizi informatici e di telecomunicazioni;5;Servizi per i sistemi e relativa manutenzione;02-03-2018;
510;1;0;"2.030,08";"2.030,08";BARICCA ALESSANDRO;ZB01D589EC;SALDO Fatt.n. 000003-2018-FatEl18  del 15/01/2018 Incarico di RSPP per l'anno 2017;02-03-2018;740;0;228;1;Spese correnti;3;Acquisto di beni e servizi;2;Acquisto di servizi;10;Consulenze;1;"Incarichi libero professionali di studi, ricerca e consulenza";02-03-2018;
511;1;0;"305,00";"305,00";ACCATRE S.R.L.;ZD32022803;SALDO Fatt.n. 1/180352  del 23/02/2018 CONVENZIONE PER INVII TELEMATICI AGENZIA DELLE ENTRATE PER ANNO 2018;02-03-2018;329;2;602;1;Spese correnti;3;Acquisto di beni e servizi;2;Acquisto di servizi;5;Utenze e canoni;3;Accesso a banche dati e a pubblicazioni on line;02-03-2018;
512;1;0;"3.000,00";"3.000,00";UNICREDIT  SPA;641413252B;SALDO Fatt.n. 1000000259  del 21/02/2018 COMPENSO SERVIZIO TESORERIA ANNO 2017;02-03-2018;400;0;617;1;Spese correnti;3;Acquisto di beni e servizi;2;Acquisto di servizi;17;Servizi finanziari;2;Oneri per servizio di tesoreria;02-03-2018;
513;1;0;"145,00";"912,00";BORAGINE FRANCESCO; ;ELEZIONI POLITICHE 2018 - LIQUIDAZIONE COMPENSI SEGGIO 1 - SCRUTATORE;06-03-2018;906;0;229;1;Spese correnti;3;Acquisto di beni e servizi;2;Acquisto di servizi;99;Altri servizi;4;Altre spese per consultazioni elettorali dell'ente;06-03-2018;
513;2;0;"145,00";"912,00";FARESIN FEDERICA; ;ELEZIONI POLITICHE 2018 - LIQUIDAZIONE COMPENSI SEGGIO 1 - SEGRETARIO;06-03-2018;906;0;229;1;Spese correnti;3;Acquisto di beni e servizi;2;Acquisto di servizi;99;Altri servizi;4;Altre spese per consultazioni elettorali dell'ente;06-03-2018;
513;3;0;"187,00";"912,00";FARESIN FRANCESCA; ;ELEZIONI POLITICHE 2018 - LIQUIDAZIONE COMPENSI SEGGIO 1 - PRESIDENTE;06-03-2018;906;0;229;1;Spese correnti;3;Acquisto di beni e servizi;2;Acquisto di servizi;99;Altri servizi;4;Altre spese per consultazioni elettorali dell'ente;06-03-2018;
513;4;0;"145,00";"912,00";FARESIN GRETA; ;ELEZIONI POLITICHE 2018 - LIQUIDAZIONE COMPENSI SEGGIO 1 - SCRUTATORE;06-03-2018;906;0;229;1;Spese correnti;3;Acquisto di beni e servizi;2;Acquisto di servizi;99;Altri servizi;4;Altre spese per consultazioni elettorali dell'ente;06-03-2018;
513;5;0;"145,00";"912,00";FRANCO ROSALBA; ;ELEZIONI POLITICHE 2018 - LIQUIDAZIONE COMPENSI SEGGIO 1 - SCRUTATORE;06-03-2018;906;0;229;1;Spese correnti;3;Acquisto di beni e servizi;2;Acquisto di servizi;99;Altri servizi;4;Altre spese per consultazioni elettorali dell'ente;06-03-2018;
513;6;0;"145,00";"912,00";VIGILI DE KREUTZENBERG RANIERI COSTANTINO; ;ELEZIONI POLITICHE 2018 - LIQUIDAZIONE COMPENSI SEGGIO 1 - SCRUTATORE;06-03-2018;906;0;229;1;Spese correnti;3;Acquisto di beni e servizi;2;Acquisto di servizi;99;Altri servizi;4;Altre spese per consultazioni elettorali dell'ente;06-03-2018;
514;1;0;"145,00";"912,00";ANDRETTA ALBERTO; ;ELEZIONI POLITICHE 2018 - LIQUIDAZIONE COMPENSI SEGGIO 2 - SEGRETARIO;06-03-2018;906;0;229;1;Spese correnti;3;Acquisto di beni e servizi;2;Acquisto di servizi;99;Altri servizi;4;Altre spese per consultazioni elettorali dell'ente;06-03-2018;
514;2;0;"187,00";"912,00";ANDRETTA SINDIA; ;ELEZIONI POLITICHE 2018 - LIQUIDAZIONE COMPENSI SEGGIO 2 - PRESIDENTE;06-03-2018;906;0;229;1;Spese correnti;3;Acquisto di beni e servizi;2;Acquisto di servizi;99;Altri servizi;4;Altre spese per consultazioni elettorali dell'ente;06-03-2018;
514;3;0;"145,00";"912,00";CARPENTER CORINNA; ;ELEZIONI POLITICHE 2018 - LIQUIDAZIONE COMPENSI SEGGIO N. 2 - SCRUTATORE;06-03-2018;906;0;229;1;Spese correnti;3;Acquisto di beni e servizi;2;Acquisto di servizi;99;Altri servizi;4;Altre spese per consultazioni elettorali dell'ente;06-03-2018;
514;4;0;"145,00";"912,00";CLAVELLO SILVIA; ;ELEZIONI POLITICHE 2018 - LIQUIDAZIONE COMPENSI SEGGIO 2 - SCRUTATORE;06-03-2018;906;0;229;1;Spese correnti;3;Acquisto di beni e servizi;2;Acquisto di servizi;99;Altri servizi;4;Altre spese per consultazioni elettorali dell'ente;06-03-2018;
514;5;0;"145,00";"912,00";GARZOTTO ERNESTO; ;ELEZIONI POLITICHE 2018 - LIQUIDAZIONE COMPENSI SEGGIO 2 - SCRUTATORE;06-03-2018;906;0;229;1;Spese correnti;3;Acquisto di beni e servizi;2;Acquisto di servizi;99;Altri servizi;4;Altre spese per consultazioni elettorali dell'ente;06-03-2018;
514;6;0;"145,00";"912,00";MANZITTO ANTONELLA; ;ELEZIONI POLITICHE 2018 - LIQUIDAZIONE COMPENSI SEGGIO 2 - SCRUTATORE;06-03-2018;906;0;229;1;Spese correnti;3;Acquisto di beni e servizi;2;Acquisto di servizi;99;Altri servizi;4;Altre spese per consultazioni elettorali dell'ente;06-03-2018;
515;1;0;"145,00";"912,00";BATTAGLIA ANNA MARIA; ;ELEZIONI POLITICHE 2018 - LIQUIDAZIONE COMPENSI SEGGIO 3 - SCRUTATORE;06-03-2018;906;0;229;1;Spese correnti;3;Acquisto di beni e servizi;2;Acquisto di servizi;99;Altri servizi;4;Altre spese per consultazioni elettorali dell'ente;06-03-2018;
515;2;0;"145,00";"912,00";FARESIN ALESSANDRA; ;ELEZIONI POLITICHE 2018 - LIQUIDAZIONE COMPENSI SEGGIO 3 - SCRUTATORE;06-03-2018;906;0;229;1;Spese correnti;3;Acquisto di beni e servizi;2;Acquisto di servizi;99;Altri servizi;4;Altre spese per consultazioni elettorali dell'ente;06-03-2018;
515;3;0;"145,00";"912,00";GARZIERA GIULIA; ;ELEZIONI POLITICHE 2018 - LIQUIDAZIONE COMPENSI SEGGIO 3 - SCRUTATORE;06-03-2018;906;0;229;1;Spese correnti;3;Acquisto di beni e servizi;2;Acquisto di servizi;99;Altri servizi;4;Altre spese per consultazioni elettorali dell'ente;06-03-2018;
515;4;0;"145,00";"912,00";GARZIERA MARTINA; ;ELEZIONI POLITICHE 2018 - LIQUIDAZIONE COMPENSI SEGGIO 3 - SCRUTATORE;06-03-2018;906;0;229;1;Spese correnti;3;Acquisto di beni e servizi;2;Acquisto di servizi;99;Altri servizi;4;Altre spese per consultazioni elettorali dell'ente;06-03-2018;
515;5;0;"187,00";"912,00";GUERRA CARLO; ;ELEZIONI POLITICHE 2018 - LIQUIDAZIONE COMPENSI SEGGIO 3 - PRESIDENTE;06-03-2018;906;0;229;1;Spese correnti;3;Acquisto di beni e servizi;2;Acquisto di servizi;99;Altri servizi;4;Altre spese per consultazioni elettorali dell'ente;06-03-2018;
515;6;0;"145,00";"912,00";SCALCO ELENA; ;ELEZIONI POLITICHE 2018 - LIQUIDAZIONE COMPENSI SEGGIO 3 - SEGRETARIO;06-03-2018;906;0;229;1;Spese correnti;3;Acquisto di beni e servizi;2;Acquisto di servizi;99;Altri servizi;4;Altre spese per consultazioni elettorali dell'ente;06-03-2018;
516;1;0;"145,00";"912,00";BATTAGLIA ELEONORA; ;ELEZIONI POLITICHE 2018 - LIQUIDAZIONE COMPENSI SEGGIO 4 - SCRUTATORE;06-03-2018;906;0;229;1;Spese correnti;3;Acquisto di beni e servizi;2;Acquisto di servizi;99;Altri servizi;4;Altre spese per consultazioni elettorali dell'ente;06-03-2018;
516;2;0;"145,00";"912,00";BELLUZZO ELISA; ;ELEZIONI POLITICHE 2018 - LIQUIDAZIONE COMPENSI SEGGIO 4 - SEGRETARIO;06-03-2018;906;0;229;1;Spese correnti;3;Acquisto di beni e servizi;2;Acquisto di servizi;99;Altri servizi;4;Altre spese per consultazioni elettorali dell'ente;06-03-2018;
516;3;0;"187,00";"912,00";BELLUZZO MARTA; ;ELEZIONI POLITICHE 2018 - LIQUIDAZIONE COMPENSI SEGGIO 4 - PRESIDENTE;06-03-2018;906;0;229;1;Spese correnti;3;Acquisto di beni e servizi;2;Acquisto di servizi;99;Altri servizi;4;Altre spese per consultazioni elettorali dell'ente;06-03-2018;
516;4;0;"145,00";"912,00";CASON GIORGIO; ;ELEZIONI POLITICHE 2018 - LIQUIDAZIONE COMPENSI SEGGIO 4 - SCRUTATORE;06-03-2018;906;0;229;1;Spese correnti;3;Acquisto di beni e servizi;2;Acquisto di servizi;99;Altri servizi;4;Altre spese per consultazioni elettorali dell'ente;06-03-2018;
516;5;0;"145,00";"912,00";FRANCESCHIN SARAH; ;ELEZIONI POLITICHE 2018 - LIQUIDAZIONE COMPENSI SEGGIO 4 - SCRUTATORE;06-03-2018;906;0;229;1;Spese correnti;3;Acquisto di beni e servizi;2;Acquisto di servizi;99;Altri servizi;4;Altre spese per consultazioni elettorali dell'ente;06-03-2018;
516;6;0;"145,00";"912,00";VACCARO CLARA; ;ELEZIONI POLITICHE 2018 - LIQUIDAZIONE COMPENSI SEGGIO 4 - SCRUTATORE;06-03-2018;906;0;229;1;Spese correnti;3;Acquisto di beni e servizi;2;Acquisto di servizi;99;Altri servizi;4;Altre spese per consultazioni elettorali dell'ente;06-03-2018;
517;1;0;"187,00";"912,00";CARLOTTO MICHELE; ;ELEZIONI POLITICHE 2018 - LIQUIDAZIONE COMPENSI SEGGIO 5 - PRESIDENTE;06-03-2018;906;0;229;1;Spese correnti;3;Acquisto di beni e servizi;2;Acquisto di servizi;99;Altri servizi;4;Altre spese per consultazioni elettorali dell'ente;06-03-2018;
517;2;0;"145,00";"912,00";DELLAI PAOLO; ;ELEZIONI POLITICHE 2018 - LIQUIDAZIONE COMPENSI SEGGIO 5 - SCRUTATORE;06-03-2018;906;0;229;1;Spese correnti;3;Acquisto di beni e servizi;2;Acquisto di servizi;99;Altri servizi;4;Altre spese per consultazioni elettorali dell'ente;06-03-2018;
517;3;0;"145,00";"912,00";STEFANI ILENIA; ;ELEZIONI POLITICHE 2018 - LIQUIDAZIONE COMPENSI SEGGIO 5 - SCRUTATORE;06-03-2018;906;0;229;1;Spese correnti;3;Acquisto di beni e servizi;2;Acquisto di servizi;99;Altri servizi;4;Altre spese per consultazioni elettorali dell'ente;06-03-2018;
517;4;0;"145,00";"912,00";SULAS MARCO; ;ELEZIONI POLITICHE 2018 - LIQUIDAZIONE COMPENSI SEGGIO 5 - SEGRETARIO;06-03-2018;906;0;229;1;Spese correnti;3;Acquisto di beni e servizi;2;Acquisto di servizi;99;Altri servizi;4;Altre spese per consultazioni elettorali dell'ente;06-03-2018;
517;5;0;"145,00";"912,00";ZACCARIA ELISA; ;ELEZIONI POLITICHE 2018 - LIQUIDAZIONE COMPENSI SEGGIO 5 - SCRUTATORE;06-03-2018;906;0;229;1;Spese correnti;3;Acquisto di beni e servizi;2;Acquisto di servizi;99;Altri servizi;4;Altre spese per consultazioni elettorali dell'ente;06-03-2018;
517;6;0;"145,00";"912,00";ZORZAN GIULIA; ;ELEZIONI POLITICHE 2018 - LIQUIDAZIONE COMPENSI SEGGIO 5 - SCRUTATORE;06-03-2018;906;0;229;1;Spese correnti;3;Acquisto di beni e servizi;2;Acquisto di servizi;99;Altri servizi;4;Altre spese per consultazioni elettorali dell'ente;06-03-2018;
518;1;0;"145,00";"912,00";CARPENTER CAMILLA; ;ELEZIONI POLITICHE 2018 - LIQUIDAZIONE COMPENSI SEGGIO 6 - SCRUTATORE;06-03-2018;906;0;229;1;Spese correnti;3;Acquisto di beni e servizi;2;Acquisto di servizi;99;Altri servizi;4;Altre spese per consultazioni elettorali dell'ente;06-03-2018;
518;2;0;"145,00";"912,00";FIORAVANZO SARA; ;ELEZIONI POLITICHE 2018 - LIQUIDAZIONE COMPENSI SEGGIO 6 - SCRUTATORE;06-03-2018;906;0;229;1;Spese correnti;3;Acquisto di beni e servizi;2;Acquisto di servizi;99;Altri servizi;4;Altre spese per consultazioni elettorali dell'ente;06-03-2018;
518;3;0;"145,00";"912,00";PICCOLI PAOLA; ;ELEZIONI POLITICHE 2018 - LIQUIDAZIONE COMPENSI SEGGIO 6 - SEGRETARIO;06-03-2018;906;0;229;1;Spese correnti;3;Acquisto di beni e servizi;2;Acquisto di servizi;99;Altri servizi;4;Altre spese per consultazioni elettorali dell'ente;06-03-2018;
518;4;0;"145,00";"912,00";ROSSETTO GIULIA; ;ELEZIONI POLITICHE 2018 - LIQUIDAZIONE COMPENSI SEGGIO 6 - SCRUTATORE;06-03-2018;906;0;229;1;Spese correnti;3;Acquisto di beni e servizi;2;Acquisto di servizi;99;Altri servizi;4;Altre spese per consultazioni elettorali dell'ente;06-03-2018;
518;5;0;"187,00";"912,00";SCALCO FABIO; ;ELEZIONI POLITICHE 2018 - LIQUIDAZIONE COMPENSI SEGGIO 6 - PRESIDENTE;06-03-2018;906;0;229;1;Spese correnti;3;Acquisto di beni e servizi;2;Acquisto di servizi;99;Altri servizi;4;Altre spese per consultazioni elettorali dell'ente;06-03-2018;
518;6;0;"145,00";"912,00";ZANOTTI FRAGONARA MARCO; ;ELEZIONI POLITICHE 2018 - LIQUIDAZIONE COMPENSI SEGGIO 6 -SCRUTATORE;06-03-2018;906;0;229;1;Spese correnti;3;Acquisto di beni e servizi;2;Acquisto di servizi;99;Altri servizi;4;Altre spese per consultazioni elettorali dell'ente;06-03-2018;
519;1;0;"145,00";"912,00";CASAGRANDE ILARIA; ;ELEZIONI POLITICHE 2018 - LIQUIDAZIONE COMPENSI SEGGIO 7 - SCRUTATORE;06-03-2018;906;0;229;1;Spese correnti;3;Acquisto di beni e servizi;2;Acquisto di servizi;99;Altri servizi;4;Altre spese per consultazioni elettorali dell'ente;06-03-2018;
519;2;0;"145,00";"912,00";CASAGRANDE MARTA; ;ELEZIONI POLITICHE 2018 - LIQUIDAZIONE COMPENSI SEGGIO 7 - SCRUTATORE;06-03-2018;906;0;229;1;Spese correnti;3;Acquisto di beni e servizi;2;Acquisto di servizi;99;Altri servizi;4;Altre spese per consultazioni elettorali dell'ente;06-03-2018;
519;3;0;"145,00";"912,00";MARANGON LINDA; ;ELEZIONI POLITICHE 2018 - LIQUIDAZIONE COMPENSI SEGGIO 7 - SEGRETARIO;06-03-2018;906;0;229;1;Spese correnti;3;Acquisto di beni e servizi;2;Acquisto di servizi;99;Altri servizi;4;Altre spese per consultazioni elettorali dell'ente;06-03-2018;
519;4;0;"145,00";"912,00";SECURO GIADA; ;ELEZIONI POLITICHE 2018 - LIQUIDAZIONE COMPENSI SEGGIO 7 - SCRUTATORE;06-03-2018;906;0;229;1;Spese correnti;3;Acquisto di beni e servizi;2;Acquisto di servizi;99;Altri servizi;4;Altre spese per consultazioni elettorali dell'ente;06-03-2018;
519;5;0;"187,00";"912,00";TERRICOLA GAETANO; ;ELEZIONI POLITICHE 2018 - LIQUIDAZIONE COMPENSI SEGGIO 7 - PRESIDENTE;06-03-2018;906;0;229;1;Spese correnti;3;Acquisto di beni e servizi;2;Acquisto di servizi;99;Altri servizi;4;Altre spese per consultazioni elettorali dell'ente;06-03-2018;
519;6;0;"145,00";"912,00";TOGNETTO GABRIELLA; ;ELEZIONI POLITICHE 2018 - LIQUIDAZIONE COMPENSI SEGGIO 7 - SCRUTATORE;06-03-2018;906;0;229;1;Spese correnti;3;Acquisto di beni e servizi;2;Acquisto di servizi;99;Altri servizi;4;Altre spese per consultazioni elettorali dell'ente;06-03-2018;
522;1;0;"710,05";"710,05";F.LLI URBANI SRL;ZB521BB575;SALDO Fatt.n. 03/PA  del 31/01/2018 TRASPORTO E SMALTIMENTO RIFIUTI;12-03-2018;2798;0;121;1;Spese correnti;3;Acquisto di beni e servizi;2;Acquisto di servizi;99;Altri servizi;999;Altri servizi diversi n.a.c.;12-03-2018;
523;1;0;"2.842,40";"2.842,40";COOP.SOCIALE DI SOLIDARIETA' S.MARCO a r.l. O.N.L.U.S.;ZE021A05E0;SALDO Fatt.n. 8/01  del 31/01/2018 SERVIZIO CONDUZIONE ECOCENTRO MESE GENNAIO 2018;12-03-2018;2689;0;164;1;Spese correnti;3;Acquisto di beni e servizi;2;Acquisto di servizi;13;Servizi ausiliari per il funzionamento dell'ente;999;Altri servizi ausiliari n.a.c.;12-03-2018;
524;1;0;"121,00";"121,00";CAVALIERE SRL;Z5620DBD93;"ACCONTO Fatt.n. 65 / 210105  del 21/02/2018 Veicolo - Targa: FM060HM , Telaio: ZFA31200003270082 , KM: 47588 , Descr Veicolo: FIAT - 319 1.2 69CV BZ";13-03-2018;4036;0;717;2;Spese in conto capitale;2;Investimenti fissi lordi e acquisto di terreni;1;Beni materiali;1;"Mezzi di trasporto ad uso civile, di sicurezza e ordine pubblico";1;Mezzi di trasporto stradali;13-03-2018;
525;1;0;"10,20";"10,20";CAVALIERE SRL;Z5620DBD93;"SALDO Fatt.n. 65 / 210105  del 21/02/2018 Veicolo - Targa: FM060HM , Telaio: ZFA31200003270082 , KM: 47588 , Descr Veicolo: FIAT - 319 1.2 69CV BZ";13-03-2018;4036;0;717;2;Spese in conto capitale;2;Investimenti fissi lordi e acquisto di terreni;1;Beni materiali;1;"Mezzi di trasporto ad uso civile, di sicurezza e ordine pubblico";1;Mezzi di trasporto stradali;13-03-2018;
526;1;0;"48,80";"48,80";CAVALIERE SRL;Z5620DBD93;"SALDO Fatt.n. 51 / 210105  del 09/02/2018 Veicolo - Targa: FM060HM , Telaio: ZFA31200003270082 , KM: 47587 , Descr Veicolo: FIAT - 319 1.2 69CV BZ";13-03-2018;4036;0;717;2;Spese in conto capitale;2;Investimenti fissi lordi e acquisto di terreni;1;Beni materiali;1;"Mezzi di trasporto ad uso civile, di sicurezza e ordine pubblico";1;Mezzi di trasporto stradali;13-03-2018;
527;1;0;"53,90";"53,90";FARMACIA AL DUOMO DI CORAIN FRANCESCO & COMPANY SAS;ZF021FF5FE;SALDO Fatt.n. 8 / PA  del 09/02/2018 MISURATORE DI PRESSIONE;13-03-2018;763;0;170;1;Spese correnti;3;Acquisto di beni e servizi;1;Acquisto di beni;2;Altri beni di consumo;999;Altri beni e materiali di consumo n.a.c.;13-03-2018;
528;1;0;"854,00";"854,00";ACCATRE S.R.L.;Z911CC8A4A;SALDO Fatt.n. 1/180353  del 23/02/2018 CONVENZIONE PER PORTALE DIPENDENTE;13-03-2018;340;0;93;1;Spese correnti;3;Acquisto di beni e servizi;2;Acquisto di servizi;19;Servizi informatici e di telecomunicazioni;5;Servizi per i sistemi e relativa manutenzione;13-03-2018;
529;1;0;"98,82";"98,82";SOLUZIONE UFFICIO S.R.L.;ZC71E9FEEC;SALDO Fatt.n. 254/PA/2018  del 31/01/2018 CANONE NOLEGGIO GENNAIO - MARZO 2018;13-03-2018;340;0;387;1;Spese correnti;3;Acquisto di beni e servizi;2;Acquisto di servizi;19;Servizi informatici e di telecomunicazioni;5;Servizi per i sistemi e relativa manutenzione;13-03-2018;
530;1;0;"73,20";"73,20";SOLUZIONE UFFICIO S.R.L.;ZDC13F8609;SALDO Fatt.n. 252/PA/2018  del 31/01/2018 quota fissa pagina nera;13-03-2018;768;0;631;1;Spese correnti;3;Acquisto di beni e servizi;2;Acquisto di servizi;7;Utilizzo di beni di terzi;8;Noleggi di impianti e macchinari;13-03-2018;
531;1;0;"217,00";"217,00";MAGGIOLI SPA;ZB921D9AE3;SALDO Fatt.n. 0005952236  del 28/02/2018 FORNITURA DI LIBRI X UFFICIO RAGIONERIA;13-03-2018;324;1;167;1;Spese correnti;3;Acquisto di beni e servizi;1;Acquisto di beni;1;"Giornali, riviste e pubblicazioni";1;Giornali e riviste;13-03-2018;
532;1;0;"705,18";"705,18";MINISTERO DELL'INTERNO; ;COMUNE DI SANDRIGO - CORRISPETTIVO PER IL RILASCIO DI N. 42 CIE EMESSE DAL 16/02/2018 AL 28/02/2018;13-03-2018;901;0;147;1;Spese correnti;4;Trasferimenti correnti;1;Trasferimenti correnti a Amministrazioni Pubbliche;1;Trasferimenti correnti a Amministrazioni Centrali;1;Trasferimenti correnti a Ministeri;13-03-2018;
533;1;0;"502,00";"502,00";C.S.A. CENTRO STUDI AMMINISTRATIVI ALTA PADOVANA SAS; ;SALDO Fatt.n. 00044  del 28/02/2018 CORSO AGGIORNAMENTO DEL 23 FEBBARIO 2018;13-03-2018;150;0;142;1;Spese correnti;3;Acquisto di beni e servizi;2;Acquisto di servizi;4;Acquisto di servizi per formazione e addestramento del personale dell'ente;999;Acquisto di servizi per altre spese per formazione e addestramento n.a.c.;13-03-2018;
535;1;0;"150,00";"150,00";ALCOLISTI ANONIMI; ;LIQUIDAZIONE SALDO CONTRIBUTO ASSOCIAZIONI SPORTIVE E ASSOCIAZIONI DIVERSE.;13-03-2018;451;0;421;1;Spese correnti;4;Trasferimenti correnti;4;Trasferimenti correnti a Istituzioni Sociali Private;1;Trasferimenti correnti a Istituzioni Sociali Private;1;Trasferimenti correnti a Istituzioni Sociali Private;13-03-2018;
536;1;0;"100,00";"100,00";ASSOCIAZ. NAZ.LE FANTI SANDRIGO C/O DE MARCHI ROBERTO; ;LIQUIDAZIONE SALDO CONTRIBUTO ASSOCIAZIONI SPORTIVE E ASSOCIAZIONI DIVERSE.;13-03-2018;451;0;655;1;Spese correnti;4;Trasferimenti correnti;4;Trasferimenti correnti a Istituzioni Sociali Private;1;Trasferimenti correnti a Istituzioni Sociali Private;1;Trasferimenti correnti a Istituzioni Sociali Private;13-03-2018;
537;1;0;"250,00";"250,00";CORO LA VOSE DEL TESENA; ;LIQUIDAZIONE SALDO CONTRIBUTO ASSOCIAZIONI SPORTIVE E ASSOCIAZIONI DIVERSE.;13-03-2018;451;0;561;1;Spese correnti;4;Trasferimenti correnti;4;Trasferimenti correnti a Istituzioni Sociali Private;1;Trasferimenti correnti a Istituzioni Sociali Private;1;Trasferimenti correnti a Istituzioni Sociali Private;13-03-2018;
538;1;0;"250,00";"250,00";CORO LA VOSE DEL TESENA; ;LIQUIDAZIONE SALDO CONTRIBUTO ASSOCIAZIONI SPORTIVE E ASSOCIAZIONI DIVERSE.;13-03-2018;451;0;653;1;Spese correnti;4;Trasferimenti correnti;4;Trasferimenti correnti a Istituzioni Sociali Private;1;Trasferimenti correnti a Istituzioni Sociali Private;1;Trasferimenti correnti a Istituzioni Sociali Private;13-03-2018;
539;1;0;"250,00";"250,00";ASSOCIAZIONE MUSICALE SANDRIGO; ;LIQUIDAZIONE SALDO CONTRIBUTO ASSOCIAZIONI SPORTIVE E ASSOCIAZIONI DIVERSE.;13-03-2018;451;0;474;1;Spese correnti;4;Trasferimenti correnti;4;Trasferimenti correnti a Istituzioni Sociali Private;1;Trasferimenti correnti a Istituzioni Sociali Private;1;Trasferimenti correnti a Istituzioni Sociali Private;13-03-2018;
540;1;0;"400,00";"400,00";ASSOCIAZIONE NAZIONALE ALPINI SEZ. SANDRIGO; ;LIQUIDAZIONE SALDO CONTRIBUTO ASSOCIAZIONI SPORTIVE E ASSOCIAZIONI DIVERSE.;13-03-2018;451;0;559;1;Spese correnti;4;Trasferimenti correnti;4;Trasferimenti correnti a Istituzioni Sociali Private;1;Trasferimenti correnti a Istituzioni Sociali Private;1;Trasferimenti correnti a Istituzioni Sociali Private;13-03-2018;
541;1;0;"750,00";"750,00";ASSOCIAZIONE FIERA DEL VERDE; ;LIQUIDAZIONE SALDO CONTRIBUTO ASSOCIAZIONI SPORTIVE E ASSOCIAZIONI DIVERSE.;13-03-2018;458;0;435;1;Spese correnti;4;Trasferimenti correnti;4;Trasferimenti correnti a Istituzioni Sociali Private;1;Trasferimenti correnti a Istituzioni Sociali Private;1;Trasferimenti correnti a Istituzioni Sociali Private;13-03-2018;
542;1;0;"425,00";"425,00";PATTINAGGIO ARTISTICO ARENA;0000000000;GESTIONE SERVIZIO RIFIUTI. ANNO 2017. LIQUIDAZIONE FATTURE ALLA DITTA SORARIS S.p.A. DI SANDRIGO. SECONDO ACCONTO CANONE GENNAIO 2017.-;13-03-2018;450;0;799;1;Spese correnti;4;Trasferimenti correnti;4;Trasferimenti correnti a Istituzioni Sociali Private;1;Trasferimenti correnti a Istituzioni Sociali Private;1;Trasferimenti correnti a Istituzioni Sociali Private;13-03-2018;
543;1;0;"450,00";"450,00";PATTINAGGIO ARTISTICO ARENA; ;LIQUIDAZIONE SALDO CONTRIBUTO ASSOCIAZIONI SPORTIVE E ASSOCIAZIONI DIVERSE.;13-03-2018;450;0;435;1;Spese correnti;4;Trasferimenti correnti;4;Trasferimenti correnti a Istituzioni Sociali Private;1;Trasferimenti correnti a Istituzioni Sociali Private;1;Trasferimenti correnti a Istituzioni Sociali Private;13-03-2018;
544;1;0;"450,00";"450,00";PATTINAGGIO ARTISTICO ARENA; ;LIQUIDAZIONE SALDO CONTRIBUTO ASSOCIAZIONI SPORTIVE E ASSOCIAZIONI DIVERSE.;13-03-2018;450;0;567;1;Spese correnti;4;Trasferimenti correnti;4;Trasferimenti correnti a Istituzioni Sociali Private;1;Trasferimenti correnti a Istituzioni Sociali Private;1;Trasferimenti correnti a Istituzioni Sociali Private;13-03-2018;
545;1;0;"750,00";"750,00";GRUPPO SPORTIVO ANCIGNANO A.S.D.; ;LIQUIDAZIONE SALDO CONTRIBUTO ASSOCIAZIONI SPORTIVE E ASSOCIAZIONI DIVERSE.;13-03-2018;450;0;432;1;Spese correnti;4;Trasferimenti correnti;4;Trasferimenti correnti a Istituzioni Sociali Private;1;Trasferimenti correnti a Istituzioni Sociali Private;1;Trasferimenti correnti a Istituzioni Sociali Private;13-03-2018;
546;1;0;"224,42";"224,42";COPISTERIA OSMAR DI PASINI OSVALDO;Z621EB5C33;SALDO Fatt.n. 000034-2017-01  del 06/12/2017 TRASCRIZIONE CONSIGLIO COMUNALE DEL 23/10/2017;13-03-2018;257;0;395;1;Spese correnti;3;Acquisto di beni e servizi;2;Acquisto di servizi;16;Servizi amministrativi;999;Altre spese per servizi amministrativi;13-03-2018;
547;1;0;"1.000,00";"1.000,00";ASS. OZANAM VOLONTARIATO OSPEDALIERO; ;LIQUIDAZIONE SALDO CONTRIBUTO ASSOCIAZIONI SPORTIVE E ASSOCIAZIONI DIVERSE.;13-03-2018;3235;0;434;1;Spese correnti;4;Trasferimenti correnti;4;Trasferimenti correnti a Istituzioni Sociali Private;1;Trasferimenti correnti a Istituzioni Sociali Private;1;Trasferimenti correnti a Istituzioni Sociali Private;13-03-2018;
548;1;0;"79,30";"79,30";COVER UP SRL;Z381CFF950;SALDO Fatt.n. 119/2B  del 31/01/2018 ADATTATORE + CONTO D'USO STAMPANTE;13-03-2018;342;0;82;1;Spese correnti;3;Acquisto di beni e servizi;1;Acquisto di beni;2;Altri beni di consumo;6;Materiale informatico;13-03-2018;
549;1;0;"708,03";"708,03";EDIT GRAF di ISEPPI STEFANO;Z492277FA5;SALDO Fatt.n. 2/162  del 27/02/2018 FORNITURA CARTA PER FOTOCOPIATRICI E STAMPANTI;13-03-2018;324;0;244;1;Spese correnti;3;Acquisto di beni e servizi;1;Acquisto di beni;2;Altri beni di consumo;1;"Carta, cancelleria e stampati";13-03-2018;
550;1;0;"153,90";"153,90";EDIT GRAF di ISEPPI STEFANO;Z492277FA5;SALDO Fatt.n. 2/166  del 28/02/2018 FORNITURA CARTA PER FOTOCOPIATRICI E STAMPANTI;13-03-2018;324;0;244;1;Spese correnti;3;Acquisto di beni e servizi;1;Acquisto di beni;2;Altri beni di consumo;1;"Carta, cancelleria e stampati";13-03-2018;
552;1;0;"15,86";"15,86";COMUNE DI FERRARA; ;RIMBORSO SPESE DI NOTIFICA ACCERTAMENTI IMU N. 87 E N. 88 DEL 27/7/2016 REGISTRO ATTI N. 14433/2017 E 14432/2017 PER COMUNE DI SANDRIGO;13-03-2018;1120;1;234;1;Spese correnti;3;Acquisto di beni e servizi;2;Acquisto di servizi;99;Altri servizi;999;Altri servizi diversi n.a.c.;13-03-2018;
553;1;0;"267,55";"267,55";STUDIOENTE SRL;ZC52086653;SALDO Fatt.n. 46  del 02/03/2018 Lampade votive 2017: Rendicontazione;13-03-2018;1120;1;680;1;Spese correnti;3;Acquisto di beni e servizi;2;Acquisto di servizi;99;Altri servizi;999;Altri servizi diversi n.a.c.;13-03-2018;
554;1;0;"200,00";"2.800,00";OMESSO NOMINATIVO NEL RISPETTO DELLA NORMATIVA SULLA PROTEZIONE DATI PERSONALI; ;EROGAZIONE CONTRIBUTI ECONOMICI AD INTEGRAZIONE DEL MINIMO VITALE. IMPEGNO DI SPESA E CONTESTUALE LIQUIDAZIONE.;13-03-2018;3220;0;255;1;Spese correnti;4;Trasferimenti correnti;2;Trasferimenti correnti a Famiglie;2;Interventi assistenziali;999;Altri assegni e sussidi assistenziali;13-03-2018;
554;2;0;"600,00";"2.800,00";OMESSO NOMINATIVO NEL RISPETTO DELLA NORMATIVA SULLA PROTEZIONE DATI PERSONALI; ;EROGAZIONE CONTRIBUTI ECONOMICI AD INTEGRAZIONE DEL MINIMO VITALE. IMPEGNO DI SPESA E CONTESTUALE LIQUIDAZIONE.;13-03-2018;3220;0;255;1;Spese correnti;4;Trasferimenti correnti;2;Trasferimenti correnti a Famiglie;2;Interventi assistenziali;999;Altri assegni e sussidi assistenziali;13-03-2018;
554;3;0;"200,00";"2.800,00";OMESSO NOMINATIVO NEL RISPETTO DELLA NORMATIVA SULLA PROTEZIONE DATI PERSONALI; ;EROGAZIONE CONTRIBUTI ECONOMICI AD INTEGRAZIONE DEL MINIMO VITALE. IMPEGNO DI SPESA E CONTESTUALE LIQUIDAZIONE.;13-03-2018;3220;0;255;1;Spese correnti;4;Trasferimenti correnti;2;Trasferimenti correnti a Famiglie;2;Interventi assistenziali;999;Altri assegni e sussidi assistenziali;13-03-2018;
554;4;0;"300,00";"2.800,00";OMESSO NOMINATIVO NEL RISPETTO DELLA NORMATIVA SULLA PROTEZIONE DATI PERSONALI; ;EROGAZIONE CONTRIBUTI ECONOMICI AD INTEGRAZIONE DEL MINIMO VITALE. IMPEGNO DI SPESA E CONTESTUALE LIQUIDAZIONE.;13-03-2018;3220;0;255;1;Spese correnti;4;Trasferimenti correnti;2;Trasferimenti correnti a Famiglie;2;Interventi assistenziali;999;Altri assegni e sussidi assistenziali;13-03-2018;
554;5;0;"600,00";"2.800,00";OMESSO NOMINATIVO NEL RISPETTO DELLA NORMATIVA SULLA PROTEZIONE DATI PERSONALI; ;EROGAZIONE CONTRIBUTI ECONOMICI AD INTEGRAZIONE DEL MINIMO VITALE. IMPEGNO DI SPESA E CONTESTUALE LIQUIDAZIONE.;13-03-2018;3220;0;255;1;Spese correnti;4;Trasferimenti correnti;2;Trasferimenti correnti a Famiglie;2;Interventi assistenziali;999;Altri assegni e sussidi assistenziali;13-03-2018;
554;6;0;"900,00";"2.800,00";OMESSO NOMINATIVO NEL RISPETTO DELLA NORMATIVA SULLA PROTEZIONE DATI PERSONALI; ;EROGAZIONE CONTRIBUTI ECONOMICI AD INTEGRAZIONE DEL MINIMO VITALE. IMPEGNO DI SPESA E CONTESTUALE LIQUIDAZIONE.;13-03-2018;3220;0;255;1;Spese correnti;4;Trasferimenti correnti;2;Trasferimenti correnti a Famiglie;2;Interventi assistenziali;999;Altri assegni e sussidi assistenziali;13-03-2018;
555;1;0;"31.853,42";"31.853,42";SO.RA.RIS. SPA; ;SALDO Fatt.n. 000010/PA  del 31/01/2018 SERVIZIO NETTEZZA URBANA MESE GENNAIO 2018;13-03-2018;2691;0;117;1;Spese correnti;3;Acquisto di beni e servizi;2;Acquisto di servizi;15;Contratti di servizio pubblico;4;Contratti di servizio per la raccolta rifiuti;13-03-2018;
556;1;0;"6.860,47";"6.860,47";S.I.A. Societa' Intercomunale Ambiente SRL; ;SALDO Fatt.n. 14/PA18  del 31/01/2018 CONFERIMENTO RSU SECCO - MESE GENNAIO 2018;13-03-2018;2695;0;163;1;Spese correnti;3;Acquisto di beni e servizi;2;Acquisto di servizi;15;Contratti di servizio pubblico;5;Contratti di servizio per il conferimento in discarica dei rifiuti;13-03-2018;
557;1;0;"4.187,04";"4.187,04";STUDIO ASSOCIATO ARCHISTUDIO DI M.FANTIN E I.PANGRAZI;ZD41F8D1E6;SALDO Fatt.n. 9/PA  del 26/02/2018 SALDO VARIANTE N.2 AL PI;13-03-2018;4250;0;513;2;Spese in conto capitale;2;Investimenti fissi lordi e acquisto di terreni;3;Beni immateriali;5;Incarichi professionali per la realizzazione di investimenti;1;Incarichi professionali per la realizzazione di investimenti;13-03-2018;
559;1;0;"513,38";"513,38";CASA DI RIPOSO DI DUEVILLE; ;SALDO Fatt.n. 5/VH  del 31/01/2018 RETTE OSPITI MESE GENNAIO 2018;14-03-2018;3201;0;154;1;Spese correnti;3;Acquisto di beni e servizi;2;Acquisto di servizi;15;Contratti di servizio pubblico;8;Contratti di servizio di assistenza sociale residenziale e semiresidenziale;14-03-2018;
560;1;0;"4.366,84";"4.366,84";SCREMIN SRL;Z4C1C9FC59;SALDO Fatt.n. 3FPA  del 23/02/2018 LAVORI PER INSTALLAZIONE FARI PALAZZETTO DELLO SPORT;14-03-2018;4511;0;897;2;Spese in conto capitale;2;Investimenti fissi lordi e acquisto di terreni;1;Beni materiali;9;Beni immobili;16;Impianti sportivi;14-03-2018;
561;1;0;"3.066,80";"3.066,80";COOP.SOCIALE DI SOLIDARIETA' S.MARCO a r.l. O.N.L.U.S.;Z941CC1B53;SALDO Fatt.n. 202/01  del 31/12/2017 SERVIZIO CONDUZIONE ECOCENTRO VIA GALVANI - MESE DICEMBRE 2017;14-03-2018;2689;0;948;1;Spese correnti;3;Acquisto di beni e servizi;2;Acquisto di servizi;13;Servizi ausiliari per il funzionamento dell'ente;999;Altri servizi ausiliari n.a.c.;14-03-2018;
576;1;0;"2,00";"2,00";PERSONALE DIPENDENTE; ;STIPENDI MESE DI: MARZO 18;19-03-2018;113;0;40;1;Spese correnti;3;Acquisto di beni e servizi;2;Acquisto di servizi;2;"Organizzazione eventi, pubblicita` e servizi per trasferta";1;Rimborso per viaggio e trasloco;19-03-2018;
585;1;0;"10,00";"10,00";PERSONALE DIPENDENTE; ;STIPENDI MESE DI: MARZO 18;19-03-2018;633;0;41;1;Spese correnti;3;Acquisto di beni e servizi;2;Acquisto di servizi;2;"Organizzazione eventi, pubblicita` e servizi per trasferta";1;Rimborso per viaggio e trasloco;19-03-2018;
597;1;0;"43,30";"43,30";PERSONALE DIPENDENTE; ;STIPENDI MESE DI: MARZO 18;19-03-2018;703;0;42;1;Spese correnti;3;Acquisto di beni e servizi;2;Acquisto di servizi;2;"Organizzazione eventi, pubblicita` e servizi per trasferta";1;Rimborso per viaggio e trasloco;19-03-2018;
663;1;0;"5.333,70";"5.333,70";AMMINISTRATORI COMUNALI E CONSIGLIERI; ;STIPENDI MESE DI: MARZO 18;19-03-2018;20;0;8;1;Spese correnti;3;Acquisto di beni e servizi;2;Acquisto di servizi;1;Organi e incarichi istituzionali dell'amministrazione;1;Organi istituzionali dell'amministrazione - Indennità;19-03-2018;
674;1;0;"1.775,19";"1.775,19";AGENZIA DELLE ENTRATE; ;VERSAMENTO IVA COMMERCIALE FEBBRAIO 2018;20-03-2018;3760;0;0;1;Spese correnti;10;Altre spese correnti;3;Versamenti IVA a debito;1;Versamenti IVA a debito per le gestioni commerciali;1;Versamenti IVA a debito per le gestioni commerciali;20-03-2018;
675;1;0;"2.992,00";"2.992,00";COOP.SOCIALE DI SOLIDARIETA' S.MARCO a r.l. O.N.L.U.S.;ZE021A05E0;SALDO Fatt.n. 23/01  del 28/02/2018 CONDUZIONE ECOCENTRO VIA GALVANI;21-03-2018;2689;0;164;1;Spese correnti;3;Acquisto di beni e servizi;2;Acquisto di servizi;13;Servizi ausiliari per il funzionamento dell'ente;999;Altri servizi ausiliari n.a.c.;21-03-2018;
676;1;0;"31.853,42";"31.853,42";SO.RA.RIS. SPA; ;SALDO Fatt.n. 000022/PA  del 28/02/2018 SERVIZIO NETTEZZA URBANA MESE FEBBRAIO 2018;21-03-2018;2691;0;117;1;Spese correnti;3;Acquisto di beni e servizi;2;Acquisto di servizi;15;Contratti di servizio pubblico;4;Contratti di servizio per la raccolta rifiuti;21-03-2018;
677;1;0;"2.156,17";"2.156,17";F.LLI URBANI SRL;ZB521BB575;SALDO Fatt.n. 05/PA  del 28/02/2018 SMALTIMENTO RIFIUTI;21-03-2018;2798;0;121;1;Spese correnti;3;Acquisto di beni e servizi;2;Acquisto di servizi;99;Altri servizi;999;Altri servizi diversi n.a.c.;21-03-2018;
678;1;0;"753,03";"753,03";MAGGIOLI SPA;Z50219DE15;SALDO Fatt.n. 0002109101  del 28/02/2018 RACCOLTA MODULISTICA PER ELEZIONI POLITICHE DEL 4 MARZO 2018;21-03-2018;909;0;138;1;Spese correnti;3;Acquisto di beni e servizi;1;Acquisto di beni;2;Altri beni di consumo;10;Beni per consultazioni elettorali;21-03-2018;
679;1;0;"63,01";"63,01";CIVIS SPA;Z5D21A9503;SALDO Fatt.n. V9/0000709  del 02/03/2018 SERVIZIO DI VIGILANZA PIAZZA MATTEOTTI 10;21-03-2018;370;0;73;1;Spese correnti;3;Acquisto di beni e servizi;2;Acquisto di servizi;13;Servizi ausiliari per il funzionamento dell'ente;1;"Servizi di sorveglianza, custodia e accoglienza";21-03-2018;
680;1;0;"37,81";"37,81";CIVIS SPA;Z5D21A9503;SALDO Fatt.n. V9/0000710  del 02/03/2018 SERVIZIO ISPETTIVO VIA VOLTA;21-03-2018;370;0;73;1;Spese correnti;3;Acquisto di beni e servizi;2;Acquisto di servizi;13;Servizi ausiliari per il funzionamento dell'ente;1;"Servizi di sorveglianza, custodia e accoglienza";21-03-2018;
681;1;0;"1.244,40";"1.244,40";FONZO CARMINE COSTRUZIONI EDILI;Z7121C4BC5;SALDO Fatt.n. 0000005  del 08/03/2018 MANUTENZIONI LOCULI;21-03-2018;2247;0;123;1;Spese correnti;3;Acquisto di beni e servizi;2;Acquisto di servizi;99;Altri servizi;999;Altri servizi diversi n.a.c.;21-03-2018;
682;1;0;"2.105,72";"2.105,72";LA SEMAFORICA SRL;ZAA21B08DF;SALDO Fatt.n. 1800058/8  del 21/02/2018 IMPIANTO SEMAFORICO;21-03-2018;3342;0;158;1;Spese correnti;3;Acquisto di beni e servizi;2;Acquisto di servizi;99;Altri servizi;999;Altri servizi diversi n.a.c.;21-03-2018;
683;1;0;"1.000,00";"1.000,00";TRE R SRL;Z402196031;SALDO Fatt.n. 1P  del 31/01/2018 fornitura materiale antiinfortunistica;21-03-2018;3400;0;48;1;Spese correnti;3;Acquisto di beni e servizi;1;Acquisto di beni;2;Altri beni di consumo;4;Vestiario;21-03-2018;
684;1;0;"450,49";"450,49";MATERIALE EDILE DONA' SRL;Z5A21B8566;SALDO Fatt.n. 0000001  del 31/01/2018 fornitura varia materiale edile;21-03-2018;3420;0;113;1;Spese correnti;3;Acquisto di beni e servizi;1;Acquisto di beni;2;Altri beni di consumo;999;Altri beni e materiali di consumo n.a.c.;21-03-2018;
685;1;0;"62,22";"62,22";GIORNI NUOVI SOCIETA' COOP. SOCIALE DI SOLIDARIETA';ZE4225CDE5;SALDO Fatt.n. 2/28  del 28/02/2018 SERVIZIO PULIZIA STRAORDINARIA SALETTA RIUNIONI;21-03-2018;932;0;239;1;Spese correnti;3;Acquisto di beni e servizi;2;Acquisto di servizi;99;Altri servizi;999;Altri servizi diversi n.a.c.;21-03-2018;
686;1;0;"3.879,60";"3.879,60";GARDEN FIORI E FOGLIE SOLUTION di De Pretto S.;ZB22197131;SALDO Fatt.n. 000002-2018-PA  del 26/02/2018 POTATURA PARCO RIMEMBRANZA;21-03-2018;2800;0;148;1;Spese correnti;3;Acquisto di beni e servizi;2;Acquisto di servizi;9;Manutenzione ordinaria e riparazioni;12;Manutenzione ordinaria e riparazioni di terreni e beni materiali non prodotti;21-03-2018;
687;1;0;"2.148,20";"2.148,20";GIORNI NUOVI SOCIETA' COOP. SOCIALE DI SOLIDARIETA';67802821B6;ACCONTO Fatt.n. 2/26  del 28/02/2018 SERVIZIO PULIZIE CANONE MENSILE;21-03-2018;259;5;547;1;Spese correnti;3;Acquisto di beni e servizi;2;Acquisto di servizi;13;Servizi ausiliari per il funzionamento dell'ente;2;Servizi di pulizia e lavanderia;21-03-2018;
688;1;0;"1.224,07";"1.224,07";GIORNI NUOVI SOCIETA' COOP. SOCIALE DI SOLIDARIETA';67802821B6;ACCONTO Fatt.n. 2/26  del 28/02/2018 SERVIZIO PULIZIE CANONE MENSILE;21-03-2018;1810;3;548;1;Spese correnti;3;Acquisto di beni e servizi;2;Acquisto di servizi;13;Servizi ausiliari per il funzionamento dell'ente;2;Servizi di pulizia e lavanderia;21-03-2018;
689;1;0;"207,95";"207,95";GIORNI NUOVI SOCIETA' COOP. SOCIALE DI SOLIDARIETA';67802821B6;ACCONTO Fatt.n. 2/26  del 28/02/2018 SERVIZIO PULIZIE CANONE MENSILE;21-03-2018;1285;0;549;1;Spese correnti;3;Acquisto di beni e servizi;2;Acquisto di servizi;13;Servizi ausiliari per il funzionamento dell'ente;2;Servizi di pulizia e lavanderia;21-03-2018;
690;1;0;"499,83";"499,83";GIORNI NUOVI SOCIETA' COOP. SOCIALE DI SOLIDARIETA';67802821B6;ACCONTO Fatt.n. 2/26  del 28/02/2018 SERVIZIO PULIZIE CANONE MENSILE;21-03-2018;1565;0;550;1;Spese correnti;3;Acquisto di beni e servizi;2;Acquisto di servizi;13;Servizi ausiliari per il funzionamento dell'ente;2;Servizi di pulizia e lavanderia;21-03-2018;
691;1;0;"414,69";"414,69";GIORNI NUOVI SOCIETA' COOP. SOCIALE DI SOLIDARIETA';67802821B6;SALDO Fatt.n. 2/26  del 28/02/2018 SERVIZIO PULIZIE CANONE MENSILE;21-03-2018;3147;1;551;1;Spese correnti;3;Acquisto di beni e servizi;2;Acquisto di servizi;13;Servizi ausiliari per il funzionamento dell'ente;2;Servizi di pulizia e lavanderia;21-03-2018;
692;1;0;"2.952,40";"2.952,40";GARDEN FIORI E FOGLIE SOLUTION di De Pretto S.;ZB22197131;SALDO Fatt.n. 000003-2018-PA  del 28/02/2018 POTATURA VIA CHIESA ANCIGNANO;21-03-2018;2800;0;148;1;Spese correnti;3;Acquisto di beni e servizi;2;Acquisto di servizi;9;Manutenzione ordinaria e riparazioni;12;Manutenzione ordinaria e riparazioni di terreni e beni materiali non prodotti;21-03-2018;
693;1;0;"178,36";"178,36";GIORNI NUOVI SOCIETA' COOP. SOCIALE DI SOLIDARIETA';ZA71DBB6F4;SALDO Fatt.n. 2/27  del 28/02/2018 SERVIZIO PULIZIE BAGNI CIMITERO;21-03-2018;259;5;269;1;Spese correnti;3;Acquisto di beni e servizi;2;Acquisto di servizi;13;Servizi ausiliari per il funzionamento dell'ente;2;Servizi di pulizia e lavanderia;21-03-2018;
694;1;0;"7.683,02";"7.683,02";GLOBAL POWER SERVICE SPA;6239603B46;SALDO Fatt.n. 2018-V5-49  del 01/03/2018 CANONE RISPARMIO ENERGETICO MARZO 2018;21-03-2018;3320;0;127;1;Spese correnti;3;Acquisto di beni e servizi;2;Acquisto di servizi;9;Manutenzione ordinaria e riparazioni;4;Manutenzione ordinaria e riparazioni di impianti e macchinari;21-03-2018;
695;1;0;"921,10";"921,10";GLOBAL POWER SERVICE SPA;6239603B46;SALDO Fatt.n. 2018-V5-50  del 01/03/2018 CANONE MENSILE MANUTENZIONE ORDINARIA MARZO 2018;21-03-2018;3302;0;128;1;Spese correnti;3;Acquisto di beni e servizi;2;Acquisto di servizi;9;Manutenzione ordinaria e riparazioni;4;Manutenzione ordinaria e riparazioni di impianti e macchinari;21-03-2018;
696;1;0;"219,60";"219,60";COVER UP SRL;Z591C0FAD9;SALDO Fatt.n. 178B  del 28/02/2018 NOLEGGIO GENNAIO - FEBBRAIO - MARZO 2018;21-03-2018;340;0;853;1;Spese correnti;3;Acquisto di beni e servizi;2;Acquisto di servizi;19;Servizi informatici e di telecomunicazioni;5;Servizi per i sistemi e relativa manutenzione;21-03-2018;
697;1;0;"1.213,90";"1.213,90";COVER UP SRL;ZB921FB52A;SALDO Fatt.n. 161B  del 28/02/2018 STAMPANTE EPSON;21-03-2018;4009;0;193;2;Spese in conto capitale;2;Investimenti fissi lordi e acquisto di terreni;1;Beni materiali;7;Hardware;2;Postazioni di lavoro;21-03-2018;
698;1;0;"67,10";"67,10";COVER UP SRL;ZEF1962A6B;SALDO Fatt.n. 173B  del 28/02/2018 NOLEGGIO STAMPANTE MESE FEBBRAIO 2018;21-03-2018;340;0;255;1;Spese correnti;3;Acquisto di beni e servizi;2;Acquisto di servizi;19;Servizi informatici e di telecomunicazioni;5;Servizi per i sistemi e relativa manutenzione;21-03-2018;
699;1;0;"7.930,00";"7.930,00";TRAFFIC TECNOLOGY SRL;Z302197E32;SALDO Fatt.n. 247  del 19/02/2018 VISTA RED;21-03-2018;3342;0;169;1;Spese correnti;3;Acquisto di beni e servizi;2;Acquisto di servizi;99;Altri servizi;999;Altri servizi diversi n.a.c.;21-03-2018;
700;1;0;"1.749,99";"1.749,99";STUDIO ASSOCIATO ARCHISTUDIO DI M.FANTIN E I.PANGRAZI;Z291D6CF54;SALDO Fatt.n. 8/PA  del 26/02/2018 SALDO VARIANTE 1/2017 AL PI;21-03-2018;4250;0;216;2;Spese in conto capitale;2;Investimenti fissi lordi e acquisto di terreni;3;Beni immateriali;5;Incarichi professionali per la realizzazione di investimenti;1;Incarichi professionali per la realizzazione di investimenti;21-03-2018;
702;1;0;"65,00";"65,00";AMMINISTRAZIONE PROVINCIALE DI VICENZA; ;LAVORI DI MANUTENZIONE STRAORDINARIA STRADE E MARCIAPIEDI COMUNALI. RICHIESTA AUTORIZZAZIONE DI VI.ABILITA' PER INTERVENTI DI MANUTENZIONE STRAORDINARIA ISOLE SPARTITRAFFICO IN S.P. CHIZZALUNGA. IMPEGNO DI SPESA E PAGAMENTO ONERI DI ISTRUTTORIA.;21-03-2018;761;0;262;1;Spese correnti;3;Acquisto di beni e servizi;2;Acquisto di servizi;99;Altri servizi;999;Altri servizi diversi n.a.c.;21-03-2018;
714;1;0;"2.952,40";"2.952,40";GARDEN FIORI E FOGLIE SOLUTION di De Pretto S.;ZB22197131;ACCONTO Fatt.n. 000004-2018-PA  del 14/03/2018 ABBATTIMENTO PIANTE;23-03-2018;2800;0;148;1;Spese correnti;3;Acquisto di beni e servizi;2;Acquisto di servizi;9;Manutenzione ordinaria e riparazioni;12;Manutenzione ordinaria e riparazioni di terreni e beni materiali non prodotti;23-03-2018;
715;1;0;"439,20";"439,20";GARDEN FIORI E FOGLIE SOLUTION di De Pretto S.;ZB22197131;SALDO Fatt.n. 000004-2018-PA  del 14/03/2018 ABBATTIMENTO PIANTE;23-03-2018;3343;0;149;1;Spese correnti;3;Acquisto di beni e servizi;2;Acquisto di servizi;99;Altri servizi;999;Altri servizi diversi n.a.c.;23-03-2018;
716;1;0;"5.999,96";"5.999,96";DAL LAGO F.LLI SRL;Z721FC05A1;SALDO Fatt.n. 1/P  del 27/02/2018 NUOVA ILLUMINAZIONE BIBLIOTECA;23-03-2018;1810;4;551;1;Spese correnti;3;Acquisto di beni e servizi;2;Acquisto di servizi;9;Manutenzione ordinaria e riparazioni;4;Manutenzione ordinaria e riparazioni di impianti e macchinari;23-03-2018;
717;1;0;"435,66";"435,66";COSTRUZIONI GENERALI GIRARDINI SPA;Z9E21B7F37;SALDO Fatt.n. 0000022/E  del 28/02/2018 CONGLOMERATO PLASTICO A FREDDO;23-03-2018;3420;0;114;1;Spese correnti;3;Acquisto di beni e servizi;1;Acquisto di beni;2;Altri beni di consumo;999;Altri beni e materiali di consumo n.a.c.;23-03-2018;
718;1;0;"684,10";"684,10";GLOBAL POWER SERVICE SPA;Z9C222FD74;SALDO Fatt.n. 2018-V5-59  del 19/03/2018 INTERVENTI MESSA IN SICUREZZA;23-03-2018;3320;0;217;1;Spese correnti;3;Acquisto di beni e servizi;2;Acquisto di servizi;9;Manutenzione ordinaria e riparazioni;4;Manutenzione ordinaria e riparazioni di impianti e macchinari;23-03-2018;
719;1;0;"5.495,90";"5.495,90";S.I.A. Societa' Intercomunale Ambiente SRL; ;SALDO Fatt.n. 36/PA18  del 28/02/2018 CONFERIMENTO RSU SECCO MESE DI FEBBRAIO 2018;23-03-2018;2695;0;163;1;Spese correnti;3;Acquisto di beni e servizi;2;Acquisto di servizi;15;Contratti di servizio pubblico;5;Contratti di servizio per il conferimento in discarica dei rifiuti;23-03-2018;
720;1;0;"4.806,50";"4.806,50";STUDIO T.ASS.D.DARTENI GIUSEPPE  E ING. DARTENI PIERO;Z4416EE1BE;SALDO Fatt.n. FATTPA 3_18  del 27/02/2018 GESTIONE POST-OPERATIVA EX DISCARICA DI VIA GALVANI;23-03-2018;2798;0;643;1;Spese correnti;3;Acquisto di beni e servizi;2;Acquisto di servizi;99;Altri servizi;999;Altri servizi diversi n.a.c.;23-03-2018;
721;1;0;"29,40";"29,40";COMUNE DI SARCEDO; ;LIQUIDAZIONE SPESE DI NOTIFICA AL COMUNE DI SARCEDO;23-03-2018;1120;1;234;1;Spese correnti;3;Acquisto di beni e servizi;2;Acquisto di servizi;99;Altri servizi;999;Altri servizi diversi n.a.c.;23-03-2018;
722;1;0;"721,97";"721,97";MINISTERO DELL'INTERNO; ;COMUNE DI SANDRIGO - CORRISPETTIVO PER IL RILASCIO DI N. 43 CIE EMESSE DAL 01/03/2018 AL 15/03/2018 MINISTERO;23-03-2018;901;0;147;1;Spese correnti;4;Trasferimenti correnti;1;Trasferimenti correnti a Amministrazioni Pubbliche;1;Trasferimenti correnti a Amministrazioni Centrali;1;Trasferimenti correnti a Ministeri;23-03-2018;
723;1;0;"80,33";"80,33";GLOBAL POWER SPA;622385037F;(SOS. 489) - ACCONTO Fatt.n. V0/30350  del 01/03/2018 CONSUMI E.E. MESE FEBBRAIO 2018 - ECOCENTRO;23-03-2018;2685;0;60;1;Spese correnti;3;Acquisto di beni e servizi;2;Acquisto di servizi;5;Utenze e canoni;4;Energia elettrica;23-03-2018;
724;1;0;"151,87";"1.066,10";GLOBAL POWER SPA;622385037F;(SOS. 487/P) - ACCONTO Fatt.n. V0/30354  del 01/03/2018 CONSUMI E.E. MESE FEBBRAIO 2018 - SCUOLE;23-03-2018;259;0;51;1;Spese correnti;3;Acquisto di beni e servizi;2;Acquisto di servizi;5;Utenze e canoni;4;Energia elettrica;23-03-2018;
724;2;0;"914,23";"1.066,10";GLOBAL POWER SPA;622385037F;(SOS. 488/P) - ACCONTO Fatt.n. V0/30355  del 01/03/2018 CONSUMI E.E. MESE FEBBRAIO 2018 - VARIE;23-03-2018;259;0;51;1;Spese correnti;3;Acquisto di beni e servizi;2;Acquisto di servizi;5;Utenze e canoni;4;Energia elettrica;23-03-2018;
725;1;0;"33,91";"1.026,39";GLOBAL POWER SPA;622385037F;(SOS. 490) - ACCONTO Fatt.n. V0/30352  del 01/03/2018 CONSUMI E.E. MESE FEBBRAIO 2018 - CENTRO DIREZIONALE MARCONI;23-03-2018;938;0;52;1;Spese correnti;3;Acquisto di beni e servizi;2;Acquisto di servizi;5;Utenze e canoni;4;Energia elettrica;23-03-2018;
725;2;0;"78,72";"1.026,39";GLOBAL POWER SPA;622385037F;(SOS. 484) - ACCONTO Fatt.n. V0/30351  del 01/03/2018 CONSUMI E.E. MESE FEBBRAIO 2018 - PALAZZINA TRISSINO;23-03-2018;938;0;52;1;Spese correnti;3;Acquisto di beni e servizi;2;Acquisto di servizi;5;Utenze e canoni;4;Energia elettrica;23-03-2018;
725;3;0;"913,76";"1.026,39";GLOBAL POWER SPA;622385037F;(SOS. 488/P) - ACCONTO Fatt.n. V0/30355  del 01/03/2018 CONSUMI E.E. MESE FEBBRAIO 2018 - VARIE;23-03-2018;938;0;52;1;Spese correnti;3;Acquisto di beni e servizi;2;Acquisto di servizi;5;Utenze e canoni;4;Energia elettrica;23-03-2018;
726;1;0;"62,93";"62,93";POSTE ITALIANE SPA;ZF421B5C8C;IMPEGNO DI SPESA PER LA GESTIONE DEI CONTI CORRENTI POSTALI PER L'ANNO 2018.;23-03-2018;1115;0;71;1;Spese correnti;3;Acquisto di beni e servizi;2;Acquisto di servizi;3;Aggi di riscossione;999;Altri aggi di riscossione n.a.c.;23-03-2018;
727;1;0;"196,77";"466,29";GLOBAL POWER SPA;622385037F;(SOS. 488/P) - ACCONTO Fatt.n. V0/30355  del 01/03/2018 CONSUMI E.E. MESE FEBBRAIO 2018 - VARIE;26-03-2018;1432;0;53;1;Spese correnti;3;Acquisto di beni e servizi;2;Acquisto di servizi;5;Utenze e canoni;4;Energia elettrica;26-03-2018;
727;2;0;"269,52";"466,29";GLOBAL POWER SPA;622385037F;(SOS. 487/P) - ACCONTO Fatt.n. V0/30354  del 01/03/2018 CONSUMI E.E. MESE FEBBRAIO 2018 - SCUOLE;26-03-2018;1432;0;53;1;Spese correnti;3;Acquisto di beni e servizi;2;Acquisto di servizi;5;Utenze e canoni;4;Energia elettrica;26-03-2018;
728;1;0;"1.239,68";"1.239,68";GLOBAL POWER SPA;622385037F;(SOS. 487/P) - ACCONTO Fatt.n. V0/30354  del 01/03/2018 CONSUMI E.E. MESE FEBBRAIO 2018 - SCUOLE;26-03-2018;1573;0;54;1;Spese correnti;3;Acquisto di beni e servizi;2;Acquisto di servizi;5;Utenze e canoni;4;Energia elettrica;26-03-2018;
729;1;0;"446,74";"1.223,48";GLOBAL POWER SPA;622385037F;(SOS. 488/P) - ACCONTO Fatt.n. V0/30355  del 01/03/2018 CONSUMI E.E. MESE FEBBRAIO 2018 - VARIE;26-03-2018;1651;1;55;1;Spese correnti;3;Acquisto di beni e servizi;2;Acquisto di servizi;5;Utenze e canoni;4;Energia elettrica;26-03-2018;
729;2;0;"776,74";"1.223,48";GLOBAL POWER SPA;622385037F;(SOS. 487/P) - ACCONTO Fatt.n. V0/30354  del 01/03/2018 CONSUMI E.E. MESE FEBBRAIO 2018 - SCUOLE;26-03-2018;1651;1;55;1;Spese correnti;3;Acquisto di beni e servizi;2;Acquisto di servizi;5;Utenze e canoni;4;Energia elettrica;26-03-2018;
730;1;0;"678,29";"678,29";GLOBAL POWER SPA;622385037F;(SOS. 488/P) - ACCONTO Fatt.n. V0/30355  del 01/03/2018 CONSUMI E.E. MESE FEBBRAIO 2018 - VARIE;26-03-2018;1810;0;56;1;Spese correnti;3;Acquisto di beni e servizi;2;Acquisto di servizi;5;Utenze e canoni;4;Energia elettrica;26-03-2018;
731;1;0;"153,66";"153,66";GLOBAL POWER SPA;622385037F;(SOS. 485) - ACCONTO Fatt.n. V0/30356  del 01/03/2018 CONSUMI E.E. MESE FEBBRAIO 2018 - CIMITERI;26-03-2018;2240;0;57;1;Spese correnti;3;Acquisto di beni e servizi;2;Acquisto di servizi;5;Utenze e canoni;4;Energia elettrica;26-03-2018;
732;1;0;"82,66";"82,66";GLOBAL POWER SPA;622385037F;(SOS. 488/P) - ACCONTO Fatt.n. V0/30355  del 01/03/2018 CONSUMI E.E. MESE FEBBRAIO 2018 - VARIE;26-03-2018;3147;0;58;1;Spese correnti;3;Acquisto di beni e servizi;2;Acquisto di servizi;5;Utenze e canoni;4;Energia elettrica;26-03-2018;
733;1;0;"79,62";"4.833,31";GLOBAL POWER SPA;622385037F;(SOS. 488/P) - ACCONTO Fatt.n. V0/30355  del 01/03/2018 CONSUMI E.E. MESE FEBBRAIO 2018 - VARIE;26-03-2018;3303;0;59;1;Spese correnti;3;Acquisto di beni e servizi;2;Acquisto di servizi;5;Utenze e canoni;4;Energia elettrica;26-03-2018;
733;2;0;"4.753,69";"4.833,31";GLOBAL POWER SPA;622385037F;(SOS. 486) - ACCONTO Fatt.n. V0/30353  del 01/03/2018 CONSUMI E.E. MESE FEBBRAIO 2018 - ILL.NE PUBBLICA;26-03-2018;3303;0;59;1;Spese correnti;3;Acquisto di beni e servizi;2;Acquisto di servizi;5;Utenze e canoni;4;Energia elettrica;26-03-2018;
734;1;0;"17,67";"17,67";GLOBAL POWER SPA;622385037F;SALDO Fatt.n. V0/30350  del 01/03/2018 CONSUMI E.E. MESE FEBBRAIO 2018 - ECOCENTRO;26-03-2018;2685;0;60;1;Spese correnti;3;Acquisto di beni e servizi;2;Acquisto di servizi;5;Utenze e canoni;4;Energia elettrica;26-03-2018;
735;1;0;"33,41";"234,54";GLOBAL POWER SPA;622385037F;ACCONTO Fatt.n. V0/30354  del 01/03/2018 CONSUMI E.E. MESE FEBBRAIO 2018 - SCUOLE;26-03-2018;259;0;51;1;Spese correnti;3;Acquisto di beni e servizi;2;Acquisto di servizi;5;Utenze e canoni;4;Energia elettrica;26-03-2018;
735;2;0;"201,13";"234,54";GLOBAL POWER SPA;622385037F;ACCONTO Fatt.n. V0/30355  del 01/03/2018 CONSUMI E.E. MESE FEBBRAIO 2018 - VARIE;26-03-2018;259;0;51;1;Spese correnti;3;Acquisto di beni e servizi;2;Acquisto di servizi;5;Utenze e canoni;4;Energia elettrica;26-03-2018;
736;1;0;"7,46";"216,36";GLOBAL POWER SPA;622385037F;SALDO Fatt.n. V0/30352  del 01/03/2018 CONSUMI E.E. MESE FEBBRAIO 2018 - CENTRO DIREZIONALE MARCONI;26-03-2018;938;0;52;1;Spese correnti;3;Acquisto di beni e servizi;2;Acquisto di servizi;5;Utenze e canoni;4;Energia elettrica;26-03-2018;
736;2;0;"7,87";"216,36";GLOBAL POWER SPA;622385037;SALDO Fatt.n. V0/30351  del 01/03/2018 CONSUMI E.E. MESE FEBBRAIO 2018 - PALAZZINA TRISSINO;26-03-2018;938;0;52;1;Spese correnti;3;Acquisto di beni e servizi;2;Acquisto di servizi;5;Utenze e canoni;4;Energia elettrica;26-03-2018;
736;3;0;"201,03";"216,36";GLOBAL POWER SPA;622385037F;ACCONTO Fatt.n. V0/30355  del 01/03/2018 CONSUMI E.E. MESE FEBBRAIO 2018 - VARIE;26-03-2018;938;0;52;1;Spese correnti;3;Acquisto di beni e servizi;2;Acquisto di servizi;5;Utenze e canoni;4;Energia elettrica;26-03-2018;
737;1;0;"19,68";"46,63";GLOBAL POWER SPA;622385037F;ACCONTO Fatt.n. V0/30355  del 01/03/2018 CONSUMI E.E. MESE FEBBRAIO 2018 - VARIE;26-03-2018;1432;0;53;1;Spese correnti;3;Acquisto di beni e servizi;2;Acquisto di servizi;5;Utenze e canoni;4;Energia elettrica;26-03-2018;
737;2;0;"26,95";"46,63";GLOBAL POWER SPA;622385037F;ACCONTO Fatt.n. V0/30354  del 01/03/2018 CONSUMI E.E. MESE FEBBRAIO 2018 - SCUOLE;26-03-2018;1432;0;53;1;Spese correnti;3;Acquisto di beni e servizi;2;Acquisto di servizi;5;Utenze e canoni;4;Energia elettrica;26-03-2018;
738;1;0;"123,97";"123,97";GLOBAL POWER SPA;622385037F;ACCONTO Fatt.n. V0/30354  del 01/03/2018 CONSUMI E.E. MESE FEBBRAIO 2018 - SCUOLE;26-03-2018;1573;0;54;1;Spese correnti;3;Acquisto di beni e servizi;2;Acquisto di servizi;5;Utenze e canoni;4;Energia elettrica;26-03-2018;
739;1;0;"77,67";"175,95";GLOBAL POWER SPA;622385037F;SALDO Fatt.n. V0/30354  del 01/03/2018 CONSUMI E.E. MESE FEBBRAIO 2018 - SCUOLE;26-03-2018;1651;1;55;1;Spese correnti;3;Acquisto di beni e servizi;2;Acquisto di servizi;5;Utenze e canoni;4;Energia elettrica;26-03-2018;
739;2;0;"98,28";"175,95";GLOBAL POWER SPA;622385037F;ACCONTO Fatt.n. V0/30355  del 01/03/2018 CONSUMI E.E. MESE FEBBRAIO 2018 - VARIE;26-03-2018;1651;1;55;1;Spese correnti;3;Acquisto di beni e servizi;2;Acquisto di servizi;5;Utenze e canoni;4;Energia elettrica;26-03-2018;
740;1;0;"149,23";"149,23";GLOBAL POWER SPA;622385037F;ACCONTO Fatt.n. V0/30355  del 01/03/2018 CONSUMI E.E. MESE FEBBRAIO 2018 - VARIE;26-03-2018;1810;0;56;1;Spese correnti;3;Acquisto di beni e servizi;2;Acquisto di servizi;5;Utenze e canoni;4;Energia elettrica;26-03-2018;
741;1;0;"33,81";"33,81";GLOBAL POWER SPA;622385037F;SALDO Fatt.n. V0/30356  del 01/03/2018 CONSUMI E.E. MESE FEBBRAIO 2018 - CIMITERI;26-03-2018;2240;0;57;1;Spese correnti;3;Acquisto di beni e servizi;2;Acquisto di servizi;5;Utenze e canoni;4;Energia elettrica;26-03-2018;
742;1;0;"18,18";"18,18";GLOBAL POWER SPA;622385037F;ACCONTO Fatt.n. V0/30355  del 01/03/2018 CONSUMI E.E. MESE FEBBRAIO 2018 - VARIE;26-03-2018;3147;0;58;1;Spese correnti;3;Acquisto di beni e servizi;2;Acquisto di servizi;5;Utenze e canoni;4;Energia elettrica;26-03-2018;
743;1;0;"17,52";"1.063,33";GLOBAL POWER SPA;622385037F;SALDO Fatt.n. V0/30355  del 01/03/2018 CONSUMI E.E. MESE FEBBRAIO 2018 - VARIE;26-03-2018;3303;0;59;1;Spese correnti;3;Acquisto di beni e servizi;2;Acquisto di servizi;5;Utenze e canoni;4;Energia elettrica;26-03-2018;
743;2;0;"1.045,81";"1.063,33";GLOBAL POWER SPA;622385037F;SALDO Fatt.n. V0/30353  del 01/03/2018 CONSUMI E.E. MESE FEBBRAIO 2018 - ILL.NE PUBBLICA;26-03-2018;3303;0;59;1;Spese correnti;3;Acquisto di beni e servizi;2;Acquisto di servizi;5;Utenze e canoni;4;Energia elettrica;26-03-2018;
744;1;0;"300,00";"300,00";COMITATO PROVINCIALE C.O.N.I. DI VICENZA; ;MAV 01005026041229320 - DIRITTI AMM.VI RILASCIO PARERE PER CIS-2018-0020 - IMPIANTO POLISPORTIVO VIA ANDRETTO;28-03-2018;4512;0;900;2;Spese in conto capitale;2;Investimenti fissi lordi e acquisto di terreni;1;Beni materiali;9;Beni immobili;16;Impianti sportivi;28-03-2018;
746;1;0;"2.999,98";"2.999,98";GARDEN FIORI E FOGLIE SOLUTION di De Pretto S.;Z0C20DBD3D;SALDO Fatt.n. 000001-2018-PA  del 25/01/2018 INTERVENTO DEL 22/11/2017;28-03-2018;4562;0;729;2;Spese in conto capitale;5;Altre spese in conto capitale;99;Altre spese in conto capitale n.a.c.;99;Altre spese in conto capitale n.a.c.;999;Altre spese in conto capitale n.a.c.;28-03-2018;
747;1;0;"2,00";"92,00";STELLA LUCIANO;ZOB22932EE;SALDO Fatt.n. 02/PA18  del 08/03/2018 Accordatura Pianoforti . Compenso non soggetto a ritenuta d'acconto ( art.1 co.67 l. 190/2014);28-03-2018;1811;0;248;1;Spese correnti;3;Acquisto di beni e servizi;2;Acquisto di servizi;99;Altri servizi;999;Altri servizi diversi n.a.c.;28-03-2018;
747;2;0;"90,00";"92,00";STELLA LUCIANO;ZOB22932EE;ACCONTO Fatt.n. 02/PA18  del 08/03/2018 Accordatura Pianoforti . Compenso non soggetto a ritenuta d'acconto ( art.1 co.67 l. 190/2014);28-03-2018;1811;0;248;1;Spese correnti;3;Acquisto di beni e servizi;2;Acquisto di servizi;99;Altri servizi;999;Altri servizi diversi n.a.c.;28-03-2018;
748;1;0;"4.803,75";"4.803,75";STUDIOENTE SRL;Z21208F950;SALDO Fatt.n. 51  del 19/03/2018 SERVIZIO DI SUPPORTO UFFICIO TRIBUTI;06-04-2018;1120;0;672;1;Spese correnti;3;Acquisto di beni e servizi;2;Acquisto di servizi;99;Altri servizi;999;Altri servizi diversi n.a.c.;06-04-2018;
749;1;0;"1.073,32";"1.073,32";KUWAIT PETROLEUM ITALIA SPA;ZE3176A2E8;ACCONTO Fatt.n. PJ00117126  del 28/02/2018 CONSUMO CARBURANTE MESE FEBBRAIO 2018;06-04-2018;780;0;251;1;Spese correnti;3;Acquisto di beni e servizi;1;Acquisto di beni;2;Altri beni di consumo;2;"Carburanti, combustibili e lubrificanti";06-04-2018;
750;1;0;"120,95";"120,95";KUWAIT PETROLEUM ITALIA SPA;ZE3176A2E8;SALDO Fatt.n. PJ00117126  del 28/02/2018 CONSUMO CARBURANTE MESE FEBBRAIO 2018;06-04-2018;3182;0;252;1;Spese correnti;3;Acquisto di beni e servizi;1;Acquisto di beni;2;Altri beni di consumo;2;"Carburanti, combustibili e lubrificanti";06-04-2018;
751;1;0;"215,06";"215,06";CECCHINATO CRISTIAN;Z8B1D3C5C2;ACCONTO Fatt.n. FATTPA 5_18  del 21/03/2018 VISITE MEDICHE;06-04-2018;761;0;137;1;Spese correnti;3;Acquisto di beni e servizi;2;Acquisto di servizi;99;Altri servizi;999;Altri servizi diversi n.a.c.;06-04-2018;
752;1;0;"4,54";"4,54";CECCHINATO CRISTIAN;Z312244E54;SALDO Fatt.n. FATTPA 5_18  del 21/03/2018 VISITE MEDICHE;06-04-2018;761;0;218;1;Spese correnti;3;Acquisto di beni e servizi;2;Acquisto di servizi;99;Altri servizi;999;Altri servizi diversi n.a.c.;06-04-2018;
753;1;0;"756,94";"756,94";MATERIALE EDILE DONA' SRL;Z5A21B8566;SALDO Fatt.n. 0000003  del 28/02/2018 ACQUISTO MATERIALE VARIO;06-04-2018;3420;0;113;1;Spese correnti;3;Acquisto di beni e servizi;1;Acquisto di beni;2;Altri beni di consumo;999;Altri beni e materiali di consumo n.a.c.;06-04-2018;
754;1;0;"3.965,00";"3.965,00";TRAFFIC TECNOLOGY SRL;Z302197E32;SALDO Fatt.n. 377  del 22/03/2018 CANONE SISTEMA VISTA RED;06-04-2018;3342;0;169;1;Spese correnti;3;Acquisto di beni e servizi;2;Acquisto di servizi;99;Altri servizi;999;Altri servizi diversi n.a.c.;06-04-2018;
755;1;0;"6.954,00";"6.954,00";D'ANGELO NICOLA;Z22156C655;ACCONTO Fatt.n. 0000002/PA  del 01/03/2018 PROGETTO ESECUTIVO PER RISTRUTTURAZIONE PRIMO PIANO PALAZZO MARCONI;06-04-2018;4031;0;864;2;Spese in conto capitale;2;Investimenti fissi lordi e acquisto di terreni;1;Beni materiali;10;"Beni immobili di valore culturale, storico ed artistico";2;"Fabbricati ad uso commerciale di valore culturale, storico ed artistico";06-04-2018;
756;1;0;"8.233,54";"8.233,54";D'ANGELO NICOLA;Z22156C655;SALDO Fatt.n. 0000002/PA  del 01/03/2018 PROGETTO ESECUTIVO PER RISTRUTTURAZIONE PRIMO PIANO PALAZZO MARCONI;06-04-2018;4031;0;896;2;Spese in conto capitale;2;Investimenti fissi lordi e acquisto di terreni;1;Beni materiali;10;"Beni immobili di valore culturale, storico ed artistico";2;"Fabbricati ad uso commerciale di valore culturale, storico ed artistico";06-04-2018;
757;1;0;"3.817,55";"3.817,55";BIEMME TECNO SRL;6719181B8F;SALDO Fatt.n. 1PA  del 14/03/2018 lavori realizzazione centro polifunzionale Sandrigo;06-04-2018;4512;0;900;2;Spese in conto capitale;2;Investimenti fissi lordi e acquisto di terreni;1;Beni materiali;9;Beni immobili;16;Impianti sportivi;06-04-2018;
758;1;0;"3.806,40";"3.806,40";PACCAGNELLA MIRKO;Z2156C655;SALDO Fatt.n. 1/PA  del 05/03/2018 PROGETTO ESECUTIVO PER RISTRUTTURAZIONE PRIMO PIANO PALAZZO MARCONI;06-04-2018;4031;0;896;2;Spese in conto capitale;2;Investimenti fissi lordi e acquisto di terreni;1;Beni materiali;10;"Beni immobili di valore culturale, storico ed artistico";2;"Fabbricati ad uso commerciale di valore culturale, storico ed artistico";06-04-2018;
759;1;0;"1.226,42";"1.226,42";TIM SPA;29726146AB;SALDO Fatt.n. 7X00378662  del 14/02/2018 2BIM 2018;06-04-2018;259;3;49;1;Spese correnti;3;Acquisto di beni e servizi;2;Acquisto di servizi;5;Utenze e canoni;2;Telefonia mobile;06-04-2018;
760;1;0;"494,10";"494,10";P.M.P.;Z1E22C6CB4;SALDO Fatt.n. 000007-2018-PA  del 26/03/2018 SALE GROSSO;06-04-2018;3420;0;270;1;Spese correnti;3;Acquisto di beni e servizi;1;Acquisto di beni;2;Altri beni di consumo;999;Altri beni e materiali di consumo n.a.c.;06-04-2018;
761;1;0;"2.215,60";"2.215,60";GARDEN FIORI E FOGLIE SOLUTION di De Pretto S.;ZB22197131;ACCONTO Fatt.n. 000005-2018-PA  del 26/03/2018 POTATURA- MESSA A DIMORA;06-04-2018;2800;0;148;1;Spese correnti;3;Acquisto di beni e servizi;2;Acquisto di servizi;9;Manutenzione ordinaria e riparazioni;12;Manutenzione ordinaria e riparazioni di terreni e beni materiali non prodotti;06-04-2018;
762;1;0;"468,40";"468,40";GARDEN FIORI E FOGLIE SOLUTION di De Pretto S.;ZB22197131;SALDO Fatt.n. 000005-2018-PA  del 26/03/2018 POTATURA- MESSA A DIMORA;06-04-2018;3343;0;149;1;Spese correnti;3;Acquisto di beni e servizi;2;Acquisto di servizi;99;Altri servizi;999;Altri servizi diversi n.a.c.;06-04-2018;
763;1;0;"600,85";"600,85";GARDEN FIORI E FOGLIE SOLUTION di De Pretto S.;ZB22197131;ACCONTO Fatt.n. 000006-2018-PA  del 26/03/2018 POTATURA PIANTE;09-04-2018;3343;0;272;1;Spese correnti;3;Acquisto di beni e servizi;2;Acquisto di servizi;99;Altri servizi;999;Altri servizi diversi n.a.c.;09-04-2018;
764;1;0;"275,72";"275,72";GARDEN FIORI E FOGLIE SOLUTION di De Pretto S.;ZB22197131;SALDO Fatt.n. 000006-2018-PA  del 26/03/2018 POTATURA PIANTE;09-04-2018;928;0;271;1;Spese correnti;3;Acquisto di beni e servizi;2;Acquisto di servizi;9;Manutenzione ordinaria e riparazioni;8;Manutenzione ordinaria e riparazioni di beni immobili;09-04-2018;
765;1;0;"624,43";"624,43";ASCOTRADE SPA;Z651E20991;ACCONTO Fatt.n. 364245  del 23/03/2018 15351020002625 - PIAZZA GARIBALDI 0 36066 SANDRIGO VI;09-04-2018;3133;0;319;1;Spese correnti;3;Acquisto di beni e servizi;2;Acquisto di servizi;5;Utenze e canoni;6;Gas;09-04-2018;
766;1;0;"597,54";"597,54";ASCOTRADE SPA;1514046647;SALDO Fatt.n. 364245  del 23/03/2018 15351020002625 - PIAZZA GARIBALDI 0 36066 SANDRIGO VI;09-04-2018;3133;0;176;1;Spese correnti;3;Acquisto di beni e servizi;2;Acquisto di servizi;5;Utenze e canoni;6;Gas;09-04-2018;
767;1;0;"194,44";"194,44";ASCOTRADE SPA;Z651E20991;ACCONTO Fatt.n. 394201  del 23/03/2018 FORNITURA GAS;09-04-2018;934;0;318;1;Spese correnti;3;Acquisto di beni e servizi;2;Acquisto di servizi;5;Utenze e canoni;6;Gas;09-04-2018;
768;1;0;"96,78";"96,78";ASCOTRADE SPA;1514046647;SALDO Fatt.n. 394201  del 23/03/2018 FORNITURA GAS;09-04-2018;934;0;175;1;Spese correnti;3;Acquisto di beni e servizi;2;Acquisto di servizi;5;Utenze e canoni;6;Gas;09-04-2018;
769;1;0;"18,81";"18,81";ASCOTRADE SPA;Z651E20991;SALDO Fatt.n. 364244  del 23/03/2018 15351020002672 - PIAZZA GARIBALDI 0 36066 SANDRIGO VI;10-04-2018;934;0;318;1;Spese correnti;3;Acquisto di beni e servizi;2;Acquisto di servizi;5;Utenze e canoni;6;Gas;10-04-2018;
770;1;0;"2.000,00";"2.000,00";SCREMIN SRL;Z7222302CD;ACCONTO Fatt.n. 12FPA  del 21/03/2018 LAVORI STRAORDINARI PER PUBBLICA ILLUMINAZIONE;10-04-2018;1651;4;224;1;Spese correnti;3;Acquisto di beni e servizi;2;Acquisto di servizi;9;Manutenzione ordinaria e riparazioni;8;Manutenzione ordinaria e riparazioni di beni immobili;10-04-2018;
771;1;0;"500,00";"500,00";SCREMIN SRL;Z7222302CD;ACCONTO Fatt.n. 12FPA  del 21/03/2018 LAVORI STRAORDINARI PER PUBBLICA ILLUMINAZIONE;10-04-2018;259;4;221;1;Spese correnti;3;Acquisto di beni e servizi;2;Acquisto di servizi;9;Manutenzione ordinaria e riparazioni;8;Manutenzione ordinaria e riparazioni di beni immobili;10-04-2018;
772;1;0;"1.000,00";"1.000,00";SCREMIN SRL;Z7222302CD;ACCONTO Fatt.n. 12FPA  del 21/03/2018 LAVORI STRAORDINARI PER PUBBLICA ILLUMINAZIONE;10-04-2018;928;0;222;1;Spese correnti;3;Acquisto di beni e servizi;2;Acquisto di servizi;9;Manutenzione ordinaria e riparazioni;8;Manutenzione ordinaria e riparazioni di beni immobili;10-04-2018;
773;1;0;"1.000,00";"1.000,00";SCREMIN SRL;Z7222302CD;ACCONTO Fatt.n. 12FPA  del 21/03/2018 LAVORI STRAORDINARI PER PUBBLICA ILLUMINAZIONE;10-04-2018;1573;3;223;1;Spese correnti;3;Acquisto di beni e servizi;2;Acquisto di servizi;9;Manutenzione ordinaria e riparazioni;8;Manutenzione ordinaria e riparazioni di beni immobili;10-04-2018;
774;1;0;"1.718,45";"1.718,45";SCREMIN SRL;Z7222302CD;ACCONTO Fatt.n. 12FPA  del 21/03/2018 LAVORI STRAORDINARI PER PUBBLICA ILLUMINAZIONE;10-04-2018;2242;0;225;1;Spese correnti;3;Acquisto di beni e servizi;2;Acquisto di servizi;9;Manutenzione ordinaria e riparazioni;8;Manutenzione ordinaria e riparazioni di beni immobili;10-04-2018;
775;1;0;"304,28";"304,28";SCREMIN SRL;Z7222302CD;SALDO Fatt.n. 12FPA  del 21/03/2018 LAVORI STRAORDINARI PER PUBBLICA ILLUMINAZIONE;10-04-2018;3342;0;226;1;Spese correnti;3;Acquisto di beni e servizi;2;Acquisto di servizi;99;Altri servizi;999;Altri servizi diversi n.a.c.;10-04-2018;
776;1;0;"23.237,65";"23.237,65";ENGIE Servizi Spa;6838324B79;ACCONTO Fatt.n. 2200003368  del 26/03/2018 CONVENZIONE CONSIP;11-04-2018;1651;3;76;1;Spese correnti;3;Acquisto di beni e servizi;2;Acquisto di servizi;5;Utenze e canoni;6;Gas;11-04-2018;
777;1;0;"10.730,84";"10.730,84";ENGIE Servizi Spa;6838324B79;ACCONTO Fatt.n. 2200003368  del 26/03/2018 CONVENZIONE CONSIP;11-04-2018;259;2;73;1;Spese correnti;3;Acquisto di beni e servizi;2;Acquisto di servizi;5;Utenze e canoni;6;Gas;11-04-2018;
778;1;0;"5.938,90";"5.938,90";ENGIE Servizi Spa;6838324B79;ACCONTO Fatt.n. 2200003368  del 26/03/2018 CONVENZIONE CONSIP;11-04-2018;1432;2;74;1;Spese correnti;3;Acquisto di beni e servizi;2;Acquisto di servizi;5;Utenze e canoni;6;Gas;11-04-2018;
779;1;0;"11.618,38";"11.618,38";ENGIE Servizi Spa;6838324B79;ACCONTO Fatt.n. 2200003368  del 26/03/2018 CONVENZIONE CONSIP;11-04-2018;1573;2;75;1;Spese correnti;3;Acquisto di beni e servizi;2;Acquisto di servizi;5;Utenze e canoni;6;Gas;11-04-2018;
780;1;0;"4.371,85";"4.371,85";ENGIE Servizi Spa;6838324B79;SALDO Fatt.n. 2200003368  del 26/03/2018 CONVENZIONE CONSIP;11-04-2018;1810;2;77;1;Spese correnti;3;Acquisto di beni e servizi;2;Acquisto di servizi;5;Utenze e canoni;6;Gas;11-04-2018;
781;1;0;"11,41";"11,41";TIM SPA; ;SALDO Fatt.n. 8E00111715  del 06/02/2018 2BIM 2018;11-04-2018;259;3;50;1;Spese correnti;3;Acquisto di beni e servizi;2;Acquisto di servizi;5;Utenze e canoni;1;Telefonia fissa;11-04-2018;
782;1;0;"249,12";"249,12";TIM SPA; ;SALDO Fatt.n. 8E00108938  del 06/02/2018 2BIM 2018;11-04-2018;259;3;50;1;Spese correnti;3;Acquisto di beni e servizi;2;Acquisto di servizi;5;Utenze e canoni;1;Telefonia fissa;11-04-2018;
783;1;0;"3,38";"3,38";TIM SPA; ;SALDO Fatt.n. 8E00106833  del 06/02/2018 2BIM 2018;11-04-2018;259;3;50;1;Spese correnti;3;Acquisto di beni e servizi;2;Acquisto di servizi;5;Utenze e canoni;1;Telefonia fissa;11-04-2018;
784;1;0;"0,13";"0,13";TIM SPA; ;SALDO Fatt.n. 8A00089209  del 06/02/2018 2BIM 2018;11-04-2018;259;3;50;1;Spese correnti;3;Acquisto di beni e servizi;2;Acquisto di servizi;5;Utenze e canoni;1;Telefonia fissa;11-04-2018;
785;1;0;"2,15";"2,15";TIM SPA; ;SALDO Fatt.n. 8E00106314  del 06/02/2018 2BIM 2018;11-04-2018;259;3;50;1;Spese correnti;3;Acquisto di beni e servizi;2;Acquisto di servizi;5;Utenze e canoni;1;Telefonia fissa;11-04-2018;
786;1;0;"311,50";"311,50";IPAB COMM. A MICHELAZZO; ;SALDO Fatt.n. 12/B  del 28/02/2018 RETTE OSPITI CASA DI RIPOSO - MESE FEBBRAIO 2017;11-04-2018;3201;0;153;1;Spese correnti;3;Acquisto di beni e servizi;2;Acquisto di servizi;15;Contratti di servizio pubblico;8;Contratti di servizio di assistenza sociale residenziale e semiresidenziale;11-04-2018;
787;1;0;"275,44";"275,44";CASA DI RIPOSO DI DUEVILLE; ;SALDO Fatt.n. 17/VH  del 28/02/2018 Rette 2/2018 MANFRIN MARIA CATERINA;11-04-2018;3201;0;154;1;Spese correnti;3;Acquisto di beni e servizi;2;Acquisto di servizi;15;Contratti di servizio pubblico;8;Contratti di servizio di assistenza sociale residenziale e semiresidenziale;11-04-2018;
788;1;0;"411,53";"411,53";I.P.A.B. SUOR DIODATA BERTOLO; ;SALDO Fatt.n. 39/E  del 15/03/2018 RETTE OSPITI CASA DI RIPOSO;11-04-2018;3201;0;151;1;Spese correnti;3;Acquisto di beni e servizi;2;Acquisto di servizi;15;Contratti di servizio pubblico;8;Contratti di servizio di assistenza sociale residenziale e semiresidenziale;11-04-2018;
789;1;0;"1.454,00";"1.454,00";I.P.A.B. SUOR DIODATA BERTOLO; ;"SALDO Fatt.n. 36/E  del 08/03/2018 Determina impegno di spesa nr. 74 del 30/01/2018 - CASAGRANDE ANNALISA, DALLA COSTA ROSA";11-04-2018;3201;0;151;1;Spese correnti;3;Acquisto di beni e servizi;2;Acquisto di servizi;15;Contratti di servizio pubblico;8;Contratti di servizio di assistenza sociale residenziale e semiresidenziale;11-04-2018;
790;1;0;"252,00";"252,00";I.P.A.B. SUOR DIODATA BERTOLO; ;SALDO Fatt.n. 30/E  del 06/03/2018 Determina impegno di spesa nr. 74 del 30/01/2018- DALLA COSTA ROSA;11-04-2018;3201;0;151;1;Spese correnti;3;Acquisto di beni e servizi;2;Acquisto di servizi;15;Contratti di servizio pubblico;8;Contratti di servizio di assistenza sociale residenziale e semiresidenziale;11-04-2018;
791;1;0;"653,60";"653,60";IPAB di VICENZA; ;SALDO Fatt.n. 31/E  del 28/02/2018 Esente da bollo ai sensi dell'art. 5 c. 4 tabella allegato B DPR 642/72- RETTA CAPPELLARI GIUSEPPE;11-04-2018;3201;0;152;1;Spese correnti;3;Acquisto di beni e servizi;2;Acquisto di servizi;15;Contratti di servizio pubblico;8;Contratti di servizio di assistenza sociale residenziale e semiresidenziale;11-04-2018;
792;1;0;"750,28";"750,28";MOTOR SERVICE SRL;Z5D22AF67A;SALDO Fatt.n. 2/PA  del 21/03/2018 MATERIALE VARIO DI CONSUMO;11-04-2018;781;0;263;1;Spese correnti;3;Acquisto di beni e servizi;2;Acquisto di servizi;9;Manutenzione ordinaria e riparazioni;1;"Manutenzione ordinaria e riparazioni di mezzi di trasporto ad uso civile, di sicurezza e ordine pubblico";11-04-2018;
793;1;0;"5.980,44";"5.980,44";MERENTI DUILIO;Z3620CFF90;SALDO Fatt.n. 000001-2018-PA  del 28/02/2018 FORNITURA E INSTALLAZIONE NR. 2 CONDIZIONATORI SALA BIBLIOTECA;11-04-2018;4106;0;727;2;Spese in conto capitale;2;Investimenti fissi lordi e acquisto di terreni;1;Beni materiali;9;Beni immobili;18;"Musei, teatri e biblioteche";11-04-2018;
794;1;0;"38,04";"38,04";COMUNE DI VALDAGNO; ;LIQUIDAZIONE SPESE DI NOTIFICA AL COMUNE DI VALDAGNO;11-04-2018;1120;1;234;1;Spese correnti;3;Acquisto di beni e servizi;2;Acquisto di servizi;99;Altri servizi;999;Altri servizi diversi n.a.c.;11-04-2018;
